Workbook

Sheet Cover
A20: Your name :
A21: Customer name :
A22: Date :
A24: Item code - UKWHG02180013
A25: Date of Recertification - April 2018

Sheet National
B2: Select Region : | C2: East
B4: Select Local Authority : | C4: Huntingdonshire | F4: Deprivation Sector 6 : | G4: =IF(ISBLANK($C$4),"",(VLOOKUP($C$4,Summary!$A$2:'Summary'!$AI$371,35,0))) -> Green | J4: Total Population 4 : | K4: =IF(ISBLANK($C$4),"",(VLOOKUP($C$4,Summary!BH1:BI371,2,0))) -> 173605
E6: Local Authority | G6: Region | I6: Regional L.A. Average | K6: National
E7: =C4 -> Huntingdonshire | G7: =C2 -> East | I7: =G7 -> East | K7: England
B10: Live births 1 & 3 : | E10: =IF(ISBLANK($C$4),"",(VLOOKUP($C$4,Summary!$A$2:'Summary'!$AE$371,2,0))) -> 1966 | G10: =IF(ISBLANK($C$2),"",(VLOOKUP($C$2,Summary!$A$2:'Summary'!$AE$371,12,0))) -> 71855 | I10: =IF(ISBLANK($C$2),"",(VLOOKUP($C$2,Summary!$A$2:'Summary'!$AE$371,19,0))) -> 1528.829787 | K10: =IF(K6="National",Summary!BE6,IF(National!K6="National L.A. Average",Summary!BF6,"")) -> 661496
B12: Estimated number of unplanned pregnancies resulting in live births 1 & 3 : | E12: =IF(ISBLANK($C$4),"",(VLOOKUP($C$4,Summary!$A$2:'Summary'!$AE$371,3,0))) -> 112 | G12: =IF(ISBLANK($C$2),"",(VLOOKUP($C$2,Summary!$A$2:'Summary'!$AE$371,13,0))) -> 4096 | I12: =IF(ISBLANK($C$2),"",(VLOOKUP($C$2,Summary!$A$2:'Summary'!$AE$371,20,0))) -> 87.12765957 | K12: =IF(K6="National",Summary!BE7,IF(National!K6="National L.A. Average",Summary!BF7,"")) -> 37705
B14: Total estimated education cost per annum 2 : | E14: =IF(ISBLANK($C$4),"",(VLOOKUP($C$4,Summary!$A$2:'Summary'!$AE$371,4,0))) -> 162376.7174 | G14: =IF(ISBLANK($C$2),"",(VLOOKUP($C$2,Summary!$A$2:'Summary'!$AE$371,14,0))) -> 5934679.058 | I14: =IF(ISBLANK($C$2),"",(VLOOKUP($C$2,Summary!$A$2:'Summary'!$AE$371,21,0))) -> 126269.7672 | K14: =IF(K6="National",Summary!BE8,IF(National!K6="National L.A. Average",Summary!BF8,"")) -> 54634562
B16: Total estimated housing cost per annum 2 : | E16: =IF(ISBLANK($C$4),"",(VLOOKUP($C$4,Summary!$A$2:'Summary'!$AE$371,5,0))) -> 38946.02748 | G16: =IF(ISBLANK($C$2),"",(VLOOKUP($C$2,Summary!$A$2:'Summary'!$AE$371,15,0))) -> 1423431.742 | I16: =IF(ISBLANK($C$2),"",(VLOOKUP($C$2,Summary!$A$2:'Summary'!$AE$371,22,0))) -> 30285.78174 | K16: =IF(K6="National",Summary!BE9,IF(National!K6="National L.A. Average",Summary!BF9,"")) -> 13104090
B18: Total estimated personal social services cost per annum 2 : | E18: =IF(ISBLANK($C$4),"",(VLOOKUP($C$4,Summary!$A$2:'Summary'!$AE$371,6,0))) -> 18406.1835 | G18: =IF(ISBLANK($C$2),"",(VLOOKUP($C$2,Summary!$A$2:'Summary'!$AE$371,16,0))) -> 672724.4738 | I18: =IF(ISBLANK($C$2),"",(VLOOKUP($C$2,Summary!$A$2:'Summary'!$AE$371,23,0))) -> 14313.28668 | K18: =IF(K6="National",Summary!BE10,IF(National!K6="National L.A. Average",Summary!BF10,"")) -> 6193091
B20: Total estimated social welfare cost per annum 2 : | E20: =IF(ISBLANK($C$4),"",(VLOOKUP($C$4,Summary!$A$2:'Summary'!$AE$371,7,0))) -> 129242.2252 | G20: =IF(ISBLANK($C$2),"",(VLOOKUP($C$2,Summary!$A$2:'Summary'!$AE$371,17,0))) -> 4723652.133 | I20: =IF(ISBLANK($C$2),"",(VLOOKUP($C$2,Summary!$A$2:'Summary'!$AE$371,24,0))) -> 100503.2369 | K20: =IF(K6="National",Summary!BE11,IF(National!K6="National L.A. Average",Summary!BF11,"")) -> 43485867
B22: Total estimated public sector cost per annum 4 : | E22: =IF(ISBLANK($C$4),"",(VLOOKUP($C$4,Summary!$A$2:'Summary'!$AE$371,8,0))) -> 348971.1536 | G22: =IF(ISBLANK($C$2),"",(VLOOKUP($C$2,Summary!$A$2:'Summary'!$AE$371,18,0))) -> 12754487.41 | I22: =IF(ISBLANK($C$2),"",(VLOOKUP($C$2,Summary!$A$2:'Summary'!$AE$371,25,0))) -> 271372.0725 | K22: =IF(K6="National",Summary!BE12,IF(National!K6="National L.A. Average",Summary!BF12,"")) -> 117417610
B24: Total estimated public sector cost per annum per capita* 4 : | E24: =IF(ISBLANK($C$4),"",(VLOOKUP($C$4,Summary!$A$2:'Summary'!$AE$371,9,0))) -> 2.010144602 | G24: =IF(ISBLANK($C$2),"",(VLOOKUP($C$2,Summary!$A$2:'Summary'!$AE$371,11,0))) -> 2.12 | I24: =IF(ISBLANK($C$2),"",(VLOOKUP($C$2,Summary!$A$2:'Summary'!$AF$371,32,0))) -> 2.12 | K24: =IF(K6="National",Summary!BE13,IF(National!K6="National L.A. Average",Summary!BF13,"")) -> 2.16
B26: Additional savings associated with 5% reduction in unplanned pregnancies resulting in live births : | E26: =IF(ISBLANK($C$4),"",(VLOOKUP($C$4,Summary!$A$2:'Summary'!$AE$371,26,0))) -> 17448.55768 | G26: =IF(ISBLANK($C$2),"",(VLOOKUP($C$2,Summary!$A$2:'Summary'!$AE$371,28,0))) -> 637724.3703 | I26: =IF(ISBLANK($C$2),"",(VLOOKUP($C$2,Summary!$A$2:'Summary'!$AE$371,30,0))) -> 13568.60362 | K26: =IF(K6="National",Summary!BE14,IF(National!K6="National L.A. Average",Summary!BF14,"")) -> 5870881
B28: Additional savings associated with 10% reduction in unplanned pregnancies resulting in live births : | E28: =IF(ISBLANK($C$4),"",(VLOOKUP($C$4,Summary!$A$2:'Summary'!$AE$371,27,0))) -> 34897.11536 | G28: =IF(ISBLANK($C$2),"",(VLOOKUP($C$2,Summary!$A$2:'Summary'!$AE$371,29,0))) -> 1275448.741 | I28: =IF(ISBLANK($C$2),"",(VLOOKUP($C$2,Summary!$A$2:'Summary'!$AE$371,31,0))) -> 27137.20725 | K28: =IF(K6="National",Summary!BE15,IF(National!K6="National L.A. Average",Summary!BF15,"")) -> 11741761
A32: * Note: Per capita is spend per head of the total local authority/England population
A33: As of April 2013 commissioning of Specialist Contraception Services and General Practice provision of intra-uterine methods and implants for contraception has been the responsibility of England’s 152 single and upper-tier authorities5
A34: Item code -UKWHG02180013
A35: Date of Recertification - April 2018

Sheet National Charts
E2: ="Cost of Unplanned Pregnancies - "&National!E7&" LA & "&National!I7 -> Cost of Unplanned Pregnancies - Huntingdonshire LA & East
A32: Please note all costs are based on estimated costs per annum
A33: Item code -UKWHG02180013
A34: Date of Recertification - April 2018

Sheet National Charts by Type
E2: ="Cost of Unplanned Pregnancies - "&National!E7&" LA & "&National!I7 -> Cost of Unplanned Pregnancies - Huntingdonshire LA & East
C4: Select chart type : | D4: Estimated unplanned pregnancies
A33: Please note all costs are based on estimated costs per annum
A34: Item code -UKWHG02180013
A35: Date of Recertification - April 2018

Sheet Regional
C2: Compare Costs of Unplanned Pregnancies Across Local Authorities/Regions
C4: Select Area Type : | E4: Local Authority
E6: =E4 -> Local Authority | G6: ="Select "&E4 -> Select Local Authority | I6: ="Select "&E4 -> Select Local Authority | K6: ="Select "&E4 -> Select Local Authority
E7: =IF(E4="Local Authority",National!C4,IF(Regional!E4="Region",National!C2," ")) -> Huntingdonshire | G7: Tameside | I7: Salford | K7: Aylesbury Vale
B9: Live births 1 & 3 : | E9: =IF(E4="Local Authority",National!E10,IF(Regional!E4="Region",National!G10," ")) -> 1966 | G9: =IF(ISBLANK($G$7),"",(VLOOKUP($G$7,Summary!$A$2:'Summary'!$AE$371,2,0))) -> 2975 | I9: =IF(ISBLANK($I$7),"",(VLOOKUP($I$7,Summary!$A$2:'Summary'!$AE$371,2,0))) -> 3512 | K9: =IF(ISBLANK($K$7),"",(VLOOKUP($K$7,Summary!$A$2:'Summary'!$AE$371,2,0))) -> 2207
B11: Estimated number of unplanned pregnancies resulting in live births 1 & 3 : | E11: =IF(E4="Local Authority",National!E12,IF(Regional!E4="Region",National!G12," ")) -> 112 | G11: =IF(ISBLANK($G$7),"",(VLOOKUP($G$7,Summary!$A$2:'Summary'!$AE$371,3,0))) -> 170 | I11: =IF(ISBLANK($I$7),"",(VLOOKUP($I$7,Summary!$A$2:'Summary'!$AE$371,3,0))) -> 200 | K11: =IF(ISBLANK($K$7),"",(VLOOKUP($K$7,Summary!$A$2:'Summary'!$AE$371,3,0))) -> 126
B13: Total estimated education cost per annum 2 : | E13: =IF(E4="Local Authority",National!E14,IF(Regional!E4="Region",National!G14," ")) -> 162376.7174 | G13: =IF(ISBLANK($G$7),"",(VLOOKUP($G$7,Summary!$A$2:'Summary'!$AE$371,4,0))) -> 245712.4793 | I13: =IF(ISBLANK($I$7),"",(VLOOKUP($I$7,Summary!$A$2:'Summary'!$AE$371,4,0))) -> 290064.6142 | K13: =IF(ISBLANK($K$7),"",(VLOOKUP($K$7,Summary!$A$2:'Summary'!$AE$371,4,0))) -> 182281.493
B15: Total estimated housing cost per annum 2 : | E15: =IF(E4="Local Authority",National!E16,IF(Regional!E4="Region",National!G16," ")) -> 38946.02748 | G15: =IF(ISBLANK($G$7),"",(VLOOKUP($G$7,Summary!$A$2:'Summary'!$AE$371,5,0))) -> 58934.0955 | I15: =IF(ISBLANK($I$7),"",(VLOOKUP($I$7,Summary!$A$2:'Summary'!$AE$371,5,0))) -> 69571.94736 | K15: =IF(ISBLANK($K$7),"",(VLOOKUP($K$7,Summary!$A$2:'Summary'!$AE$371,5,0))) -> 43720.18446
B17: Total estimated personal social services cost per annum 2 : | E17: =IF(E4="Local Authority",National!E18,IF(Regional!E4="Region",National!G18," ")) -> 18406.1835 | G17: =IF(ISBLANK($G$7),"",(VLOOKUP($G$7,Summary!$A$2:'Summary'!$AE$371,6,0))) -> 27852.69375 | I17: =IF(ISBLANK($I$7),"",(VLOOKUP($I$7,Summary!$A$2:'Summary'!$AE$371,6,0))) -> 32880.222 | K17: =IF(ISBLANK($K$7),"",(VLOOKUP($K$7,Summary!$A$2:'Summary'!$AE$371,6,0))) -> 20662.48575
B19: Total estimated social welfare cost per annum 2 : | E19: =IF(E4="Local Authority",National!E20,IF(Regional!E4="Region",National!G20," ")) -> 129242.2252 | G19: =IF(ISBLANK($G$7),"",(VLOOKUP($G$7,Summary!$A$2:'Summary'!$AE$371,7,0))) -> 195572.5433 | I19: =IF(ISBLANK($I$7),"",(VLOOKUP($I$7,Summary!$A$2:'Summary'!$AE$371,7,0))) -> 230874.209 | K19: =IF(ISBLANK($K$7),"",(VLOOKUP($K$7,Summary!$A$2:'Summary'!$AE$371,7,0))) -> 145085.2447
B21: Total estimated public sector cost per annum 4 : | E21: =IF(E4="Local Authority",National!E22,IF(Regional!E4="Region",National!G22," ")) -> 348971.1536 | G21: =IF(ISBLANK($G$7),"",(VLOOKUP($G$7,Summary!$A$2:'Summary'!$AE$371,8,0))) -> 528071.8117 | I21: =IF(ISBLANK($I$7),"",(VLOOKUP($I$7,Summary!$A$2:'Summary'!$AE$371,8,0))) -> 623390.9926 | K21: =IF(ISBLANK($K$7),"",(VLOOKUP($K$7,Summary!$A$2:'Summary'!$AE$371,8,0))) -> 391749.4079
B23: Total estimated public sector cost per annum per capita* 4 : | E23: =IF(E4="Local Authority",National!E24,IF(Regional!E4="Region",National!G24," ")) -> 2.010144602 | G23: =IF(ISBLANK($G$7),"",(VLOOKUP($G$7,Summary!$A$2:'Summary'!$AE$371,9,0))) -> 2.391943741 | I23: =IF(ISBLANK($I$7),"",(VLOOKUP($I$7,Summary!$A$2:'Summary'!$AE$371,9,0))) -> 2.575570123 | K23: =IF(ISBLANK($K$7),"",(VLOOKUP($K$7,Summary!$A$2:'Summary'!$AE$371,9,0))) -> 2.122612743
B25: Additional savings associated with 5% reduction in unplanned pregnancies resulting in live births : | E25: =IF(E4="Local Authority",National!E26,IF(Regional!E4="Region",National!G26," ")) -> 17448.55768 | G25: =IF(ISBLANK($G$7),"",(VLOOKUP($G$7,Summary!$A$2:'Summary'!$AE$371,26,0))) -> 26403.59059 | I25: =IF(ISBLANK($I$7),"",(VLOOKUP($I$7,Summary!$A$2:'Summary'!$AE$371,26,0))) -> 31169.54963 | K25: =IF(ISBLANK($K$7),"",(VLOOKUP($K$7,Summary!$A$2:'Summary'!$AE$371,26,0))) -> 19587.4704
B27: Additional savings associated with 10% reduction in unplanned pregnancies resulting in live births : | E27: =IF(E4="Local Authority",National!E28,IF(Regional!E4="Region",National!G28," ")) -> 34897.11536 | G27: =IF(ISBLANK($G$7),"",(VLOOKUP($G$7,Summary!$A$2:'Summary'!$AE$371,27,0))) -> 52807.18118 | I27: =IF(ISBLANK($I$7),"",(VLOOKUP($I$7,Summary!$A$2:'Summary'!$AE$371,27,0))) -> 62339.09926 | K27: =IF(ISBLANK($K$7),"",(VLOOKUP($K$7,Summary!$A$2:'Summary'!$AE$371,27,0))) -> 39174.94079
A31: * Note: Per capita is spend per head of the total local authority population
A32: As of April 2013 commissioning of Specialist Contraception Services and General Practice provision of intra-uterine methods and implants for contraception has been the responsibility of England’s 152 single and upper-tier authorities5
A33: Item code -UKWHG02180013
A34: Date of Recertification - April 2018

Sheet Summary (hidden)
A1: Area of usual residence | B1: Live births | C1: Unplanned pregnancies resulting in live births | D1: Estimated expenditure on education associated with live births from unintended pregnancies (minimum) | E1: Estimated expenditure on housing associated with live births from unintended pregnancies (minimum) | F1: Estimated expenditure on personal social services associated with live births from unintended pregnancies (minimum) | G1: Estimated expenditure on social welfare associated with live births from unintended pregnancies (minimum) | H1: Total public sector expenditure | I1: Estimated overall public expenditure associated with live births from unintended pregnancies per capita | J1: Region | K1: Estimated overall public expenditure on education associated with live births from unintended pregnancies (regional) | L1: Regional Live births | M1: Regional Unplanned pregnancies resulting in live births | N1: Regional Estimated expenditure on education associated with live births from unintended pregnancies (minimum) | O1: Regional Estimated expenditure on housing associated with live births from unintended pregnancies (minimum) | P1: Regional Estimated expenditure on personal social services associated with live births from unintended pregnancies (minimum) | Q1: Regional Estimated expenditure on social welfare associated with live births from unintended pregnancies (minimum) | R1: Regional total public sector expenditure | S1: Regional Live births (average) | T1: Regional Unplanned pregnancies resulting in live births (average) | U1: Regional Average Estimated expenditure on education associated with live births from unintended pregnancies (minimum) | V1: Regional Average Estimated expenditure on housing associated with live births from unintended pregnancies (minimum) | W1: Regional Average Estimated expenditure on personal social services associated with live births from unintended pregnancies (minimum) | X1: Regional Average Estimated expenditure on social welfare associated with live births from unintended pregnancies (minimum) | Y1: Regional total public sector expenditure (average) | Z1: Additional cost associated with 5% increase in unplanned pregnancies resulting in live births | AA1: Additional cost with 10% increase | AB1: (Regional) Additional cost associated with 5% increase in unplanned pregnancies resulting in live births | AC1: (Regional) Additional cost with 10% increase | AD1: Regional average additional cost associated with 5% increase | AE1: Regional average additional cost associated with 10% increase | AF1: Regional average of cost/capita | AG1: IMD - Average rank | AH1: IMD - Rank of average rank | AI1: IMD - Rank of average rank - Colour | AK1: Local Authority | AL1: Region | AP1: Area of usual residence | AQ1: Region | AZ1: Local Authority | BA1: Local Authority District name (2013) | BH1: Area of usual residence | BI1: Estimated Population mid-2014
A2: Adur | B2: 692 | C2: 39 | D2: 57153.96156 | E2: 13708.36776 | F2: 6478.677 | G2: 45491.15964 | H2: =SUM(D2:G2) -> 122832.166 | I2: 1.944285266 | J2: South East | K2: 2.05 | L2: 102406 | M2: 5837 | N2: 8457960.387 | O2: 2028640.331 | P2: 958750.5735 | Q2: 6732034.24 | R2: 18177385.53 | S2: 1528.447761 | T2: 87.10447761 | U2: 126238.2147 | V2: 30278.21389 | W2: 14309.71005 | X2: 100478.123 | Y2: 271304.2617 | Z2: 6141.608298 | AA2: 12283.2166 | AB2: 908869.2765 | AC2: 1817738.553 | AD2: 13565.21308 | AE2: 27130.42617 | AG2: 15648.1 | AH2: 150 | AI2: Amber | AK2: Adur | AL2: East | AM2: Local Authority | AN2: LA | AP2: Babergh | AQ2: East | AR2: East | AS2: East | AU2: Area of usual residence | AV2: A | AW2: 1 | AZ2: Adur | BA2: Adur | BD2: National | BH2: Adur | BI2: 63176
A3: Allerdale | B3: 902 | C3: 51 | D3: 74498.37186 | E3: 17868.42156 | F3: 8444.7495 | G3: 59296.28034 | H3: =SUM(D3:G3) -> 160107.8233 | I3: 1.659647182 | J3: North West | K3: 2.13 | L3: 85606 | M3: 4880 | N3: 7070407.563 | O3: 1695836.027 | P3: 801464.7735 | Q3: 5627624.584 | R3: 15195332.95 | S3: 2195.025641 | T3: 125.1538462 | U3: 181292.5016 | V3: 43482.97504 | W3: 20550.37881 | X3: 144298.0663 | Y3: 389623.9217 | Z3: 8005.391163 | AA3: 16010.78233 | AB3: 759766.6473 | AC3: 1519533.295 | AD3: 19481.19609 | AE3: 38962.39217 | AG3: 17703.95 | AH3: 114 | AI3: Amber | AK3: Allerdale | AL3: East Midlands | AM3: Region | AN3: Region | AP3: Basildon | AQ3: East | AR3: East Midlands | AS3: EastMidlands | AU3: Live births | AV3: B | AW3: 2 | AZ3: Allerdale | BA3: Allerdale | BD3: National L.A. Average | BH3: Allerdale | BI3: 96471
A4: Amber Valley | B4: 1248 | C4: 71 | D4: 103075.3526 | E4: 24722.60544 | F4: 11684.088 | G4: 82041.86016 | H4: 221523.9062 | I4: 1.787319119 | J4: East Midlands | K4: 2.04 | L4: 53170 | M4: 3031 | N4: 4391439.503 | O4: 1053286.003 | P4: 497790.8325 | Q4: 3495325.084 | R4: 9437841.422 | S4: 1329.25 | T4: 75.8 | U4: 109785.9876 | V4: 26332.15007 | W4: 12444.77081 | X4: 87383.1271 | Y4: 235946.0356 | Z4: 11076.19531 | AA4: 22152.39062 | AB4: 471892.0711 | AC4: 943784.1422 | AD4: 11797.30178 | AE4: 23594.60356 | AG4: 15071.99 | AH4: 162 | AI4: Amber | AK4: Amber Valley | AL4: London | AP4: Bedford UA | AQ4: East | AR4: London | AS4: London | AU4: Unplanned pregnancies resulting in live births | AV4: C | AW4: 3 | AZ4: Amber Valley | BA4: Amber Valley | BH4: Amber Valley | BI4: 123942
A5: Arun | B5: 1463 | C5: 83 | D5: 120832.7251 | E5: 28981.70814 | F5: 13696.97175 | G5: 96175.67421 | H5: 259687.0792 | I5: 1.681758644 | J5: South East | K5: 2.05 | L5: 102406 | M5: 5837 | N5: 8457960.387 | O5: 2028640.331 | P5: 958750.5735 | Q5: 6732034.24 | R5: 18177385.53 | S5: 1528.447761 | T5: 87.10447761 | U5: 126238.2147 | V5: 30278.21389 | W5: 14309.71005 | X5: 100478.123 | Y5: 271304.2617 | Z5: 12984.35396 | AA5: 25968.70792 | AB5: 908869.2765 | AC5: 1817738.553 | AD5: 13565.21308 | AE5: 27130.42617 | AG5: 14648.58 | AH5: 174 | AI5: Amber | AK5: Arun | AL5: North East | AM5: Select | AN5: =Regional!E4 -> Local Authority | AP5: Braintree | AQ5: East | AR5: North East | AS5: NorthEast | AU5: Total (per annum) education expenditure | AV5: D | AW5: 4 | AZ5: Arun | BA5: Arun | BE5: National | BF5: National Average | BH5: Arun | BI5: 154414
A6: Ashfield | B6: 1449 | C6: 83 | D6: 119676.4311 | E6: 28704.37122 | F6: 13565.90025 | G6: 95255.33283 | H6: 257202.0354 | I6: 2.099471344 | J6: East Midlands | K6: 2.04 | L6: 53170 | M6: 3031 | N6: 4391439.503 | O6: 1053286.003 | P6: 497790.8325 | Q6: 3495325.084 | R6: 9437841.422 | S6: 1329.25 | T6: 75.8 | U6: 109785.9876 | V6: 26332.15007 | W6: 12444.77081 | X6: 87383.1271 | Y6: 235946.0356 | Z6: 12860.10177 | AA6: 25720.20354 | AB6: 471892.0711 | AC6: 943784.1422 | AD6: 11797.30178 | AE6: 23594.60356 | AG6: 19912.58 | AH6: 70 | AI6: Red | AK6: Ashfield | AL6: North West | AM6: List | AN6: =VLOOKUP(AN5,AM2:AN3,2,) -> LA | AP6: Breckland | AQ6: East | AR6: North West | AS6: NorthWest | AU6: Total housing expenditure | AV6: E | AW6: 5 | AZ6: Ashfield | BA6: Ashfield | BD6: Live births : | BE6: 661496 | BF6: 2035 | BG6: =BF6*325 -> 661375 | BH6: Ashfield | BI6: 122508
A7: Ashford | B7: 1474 | C7: 84 | D7: 121741.2418 | E7: 29199.61572 | F7: 13799.9565 | G7: 96898.79958 | H7: 261639.6136 | I7: 2.122233959 | J7: South East | K7: 2.05 | L7: 102406 | M7: 5837 | N7: 8457960.387 | O7: 2028640.331 | P7: 958750.5735 | Q7: 6732034.24 | R7: 18177385.53 | S7: 1528.447761 | T7: 87.10447761 | U7: 126238.2147 | V7: 30278.21389 | W7: 14309.71005 | X7: 100478.123 | Y7: 271304.2617 | Z7: 13081.98068 | AA7: 26163.96136 | AB7: 908869.2765 | AC7: 1817738.553 | AD7: 13565.21308 | AE7: 27130.42617 | AG7: 14683.06 | AH7: 173 | AI7: Amber | AK7: Ashford | AL7: South East | AP7: Brentwood | AQ7: East | AR7: South East | AS7: SouthEast | AU7: Total personal social services | AV7: F | AW7: 6 | AZ7: Ashford | BA7: Ashford | BD7: Estimated number of unplanned pregnancies resulting in live births : | BE7: 37705 | BF7: 116 | BG7: =BF7*325 -> 37700 | BH7: Ashford | BI7: 123285
A8: Aylesbury Vale | B8: 2207 | C8: 126 | D8: 182281.493 | E8: 43720.18446 | F8: 20662.48575 | G8: 145085.2447 | H8: 391749.4079 | I8: 2.122612743 | J8: South East | K8: 2.05 | L8: 102406 | M8: 5837 | N8: 8457960.387 | O8: 2028640.331 | P8: 958750.5735 | Q8: 6732034.24 | R8: 18177385.53 | S8: 1528.447761 | T8: 87.10447761 | U8: 126238.2147 | V8: 30278.21389 | W8: 14309.71005 | X8: 100478.123 | Y8: 271304.2617 | Z8: 19587.4704 | AA8: 39174.94079 | AB8: 908869.2765 | AC8: 1817738.553 | AD8: 13565.21308 | AE8: 27130.42617 | AG8: 9072.88 | AH8: 283 | AI8: Green | AK8: Aylesbury Vale | AL8: South West | AM8: =INDIRECT(List) | AP8: Broadland | AQ8: East | AR8: South West | AS8: SouthWest | AU8: Total social welfare expenditure | AV8: G | AW8: 7 | AZ8: Aylesbury Vale | BA8: Aylesbury Vale | BD8: Total education cost : | BE8: 54634562 | BF8: 168106 | BG8: 54634450 | BH8: Aylesbury Vale | BI8: 184560
A9: Babergh | B9: 756 | C9: 43 | D9: 62439.87708 | E9: 14976.19368 | F9: 7077.861 | G9: 49698.43452 | H9: 134192.3663 | I9: 1.510409886 | J9: East | K9: 2.12 | L9: 71855 | M9: 4096 | N9: 5934679.058 | O9: 1423431.742 | P9: 672724.4738 | Q9: 4723652.133 | R9: 12754487.41 | S9: 1528.829787 | T9: 87.12765957 | U9: 126269.7672 | V9: 30285.78174 | W9: 14313.28668 | X9: 100503.2369 | Y9: 271372.0725 | Z9: 6709.618314 | AA9: 13419.23663 | AB9: 637724.3703 | AC9: 1275448.741 | AD9: 13568.60362 | AE9: 27137.20725 | AG9: 13145.45 | AH9: 200 | AI9: Amber | AK9: Babergh | AL9: West Midlands | AP9: Broxbourne | AQ9: East | AR9: West Midlands | AS9: WestMidlands | AU9: Total public sector expenditure | AV9: H | AW9: 8 | AZ9: Babergh | BA9: Babergh | BD9: Total housing cost : | BE9: 13104090 | BF9: 40320 | BG9: 13104000 | BH9: Babergh | BI9: 88845
A10: Barking and Dagenham | B10: 3569 | C10: 203 | D10: 294772.3827 | E10: 70701.10482 | F10: 33413.87025 | G10: 234621.3132 | H10: 633508.671 | I10: 3.194794956 | J10: London | K10: 2.65 | L10: 127399 | M10: 7262 | N10: 10522192.99 | O10: 2523746.162 | P10: 1192741.288 | Q10: 8375040.819 | R10: 22613721.26 | S10: 3860.575758 | T10: 220 | U10: 318854.333 | V10: 76477.15643 | W10: 36143.67539 | X10: 253789.1157 | Y10: 685264.2806 | Z10: 31675.43355 | AA10: 63350.8671 | AB10: 1130686.063 | AC10: 2261372.126 | AD10: 34263.21403 | AE10: 68526.42806 | AG10: 26045.93 | AH10: 3 | AI10: Red | AK10: Barking and Dagenham | AL10: Yorkshire and the Humber | AP10: Cambridge | AQ10: East | AR10: Yorkshire and the Humber | AS10: Yorkshire | AU10: Total cost per capita | AV10: I | AW10: 9 | AZ10: Barking and Dagenham | BA10: Barking and Dagenham | BD10: Total personal social services cost : | BE10: 6193091 | BF10: 19056 | BG10: 6193200 | BH10: Barking and Dagenham | BI10: 198294
A11: Barnet | B11: 5244 | C11: 299 | D11: 433114.7029 | E11: 103882.4863 | F11: 49095.639 | G11: 344733.5855 | H11: 930826.4137 | I11: 2.48276653 | J11: London | K11: 2.65 | L11: 127399 | M11: 7262 | N11: 10522192.99 | O11: 2523746.162 | P11: 1192741.288 | Q11: 8375040.819 | R11: 22613721.26 | S11: 3860.575758 | T11: 220 | U11: 318854.333 | V11: 76477.15643 | W11: 36143.67539 | X11: 253789.1157 | Y11: 685264.2806 | Z11: 46541.32069 | AA11: 93082.64137 | AB11: 1130686.063 | AC11: 2261372.126 | AD11: 34263.21403 | AE11: 68526.42806 | AG11: 15235.25 | AH11: 157 | AI11: Amber | AK11: Barnet | AP11: Cambridgeshire | AQ11: East | AU11: Region | AV11: J | AW11: 10 | AZ11: Barnet | BA11: Barnet | BD11: Total social welfare cost : | BE11: 43485867 | BF11: 133803 | BG11: 43485975 | BH11: Barnet | BI11: 374915
A12: Barnsley | B12: 2789 | C12: 159 | D12: 230350.2873 | E12: 55249.47642 | F12: 26111.31525 | G12: 183345.1506 | H12: 495056.2296 | I12: 2.081441243 | J12: Yorkshire and the Humber | K12: 2.12 | L12: 64078 | M12: 3652 | N12: 5292357.73 | O12: 1269371.083 | P12: 599914.2555 | Q12: 4212402.496 | R12: 11374045.56 | S12: 3051.333333 | T12: 174 | U12: 252017.0347 | V12: 60446.24204 | W12: 28567.3455 | X12: 200590.5951 | Y12: 541621.2173 | Z12: 24752.81148 | AA12: 49505.62296 | AB12: 568702.2782 | AC12: 1137404.556 | AD12: 27081.06087 | AE12: 54162.12173 | AG12: 21550.43 | AH12: 37 | AI12: Red | AK12: Barnsley | AP12: Castle Point | AQ12: East | AR12: Select | AS12: =National!C2 -> East | AU12: Regional cost per capita | AV12: K | AW12: 11 | AZ12: Barnsley | BA12: Barnsley | BD12: Total public sector cost : | BE12: 117417610 | BF12: 361285 | BG12: 117417625 | BH12: Barnsley | BI12: 237843
A13: Barrow-in-Furness | B13: 727 | C13: 41 | D13: 60044.69661 | E13: 14401.71006 | F13: 6806.35575 | G13: 47792.01309 | H13: 129044.7755 | I13: 1.90759188 | J13: North West | K13: 2.13 | L13: 85606 | M13: 4880 | N13: 7070407.563 | O13: 1695836.027 | P13: 801464.7735 | Q13: 5627624.584 | R13: 15195332.95 | S13: 2195.025641 | T13: 125.1538462 | U13: 181292.5016 | V13: 43482.97504 | W13: 20550.37881 | X13: 144298.0663 | Y13: 389623.9217 | Z13: 6452.238776 | AA13: 12904.47755 | AB13: 759766.6473 | AC13: 1519533.295 | AD13: 19481.19609 | AE13: 38962.39217 | AG13: 21290.62 | AH13: 44 | AI13: Red | AK13: Barrow-in-Furness | AP13: Central Bedfordshire UA | AQ13: East | AR13: List | AS13: =VLOOKUP(AS12,AR2:AS10,2,0) -> East | AU13: Regional Live births | AV13: L | AW13: 12 | AZ13: Barrow-in-Furness | BA13: Barrow-in-Furness | BD13: Total public sector cost per capita : | BE13: 2.16 | BF13: 2.16 | BH13: Barrow-in-Furness | BI13: 67648
A14: Basildon | B14: 2425 | C14: 138 | D14: 200286.6427 | E14: 48038.7165 | F14: 22703.45625 | G14: 159416.2747 | H14: 430445.0903 | I14: 2.384459926 | J14: East | K14: 2.12 | L14: 71855 | M14: 4096 | N14: 5934679.058 | O14: 1423431.742 | P14: 672724.4738 | Q14: 4723652.133 | R14: 12754487.41 | S14: 1528.829787 | T14: 87.12765957 | U14: 126269.7672 | V14: 30285.78174 | W14: 14313.28668 | X14: 100503.2369 | Y14: 271372.0725 | Z14: 21522.25451 | AA14: 43044.50903 | AB14: 637724.3703 | AC14: 1275448.741 | AD14: 13568.60362 | AE14: 27137.20725 | AG14: 17704.19 | AH14: 113 | AI14: Amber | AK14: Basildon | AP14: Chelmsford | AQ14: East | AU14: Regional Unplanned pregnancies resulting in live births | AV14: M | AW14: 13 | AZ14: Basildon | BA14: Basildon | BD14: Additional savings associated with 5% reduction in unplanned pregnancies resulting in live births : | BE14: 5870881 | BF14: 18064 | BG14: 5870800 | BH14: Basildon | BI14: 180521
A15: Basingstoke and Deane | B15: 2111 | C15: 120 | D15: 174352.6197 | E15: 41818.44558 | F15: 19763.70975 | G15: 138774.3324 | H15: 374709.1074 | I15: 2.167577413 | J15: South East | K15: 2.05 | L15: 102406 | M15: 5837 | N15: 8457960.387 | O15: 2028640.331 | P15: 958750.5735 | Q15: 6732034.24 | R15: 18177385.53 | S15: 1528.447761 | T15: 87.10447761 | U15: 126238.2147 | V15: 30278.21389 | W15: 14309.71005 | X15: 100478.123 | Y15: 271304.2617 | Z15: 18735.45537 | AA15: 37470.91074 | AB15: 908869.2765 | AC15: 1817738.553 | AD15: 13565.21308 | AE15: 27130.42617 | AG15: 9420.16 | AH15: 275 | AI15: Green | AK15: Basingstoke and Deane | AP15: Colchester | AQ15: East | AR15: =INDIRECT(Select) | AU15: Regional total (per annum) education expenditure | AV15: N | AW15: 14 | AZ15: Basingstoke and Deane | BA15: Basingstoke and Deane | BD15: Additional savings associated with 10% reduction in unplanned pregnancies resulting in live births : | BE15: 11741761 | BF15: 36128 | BG15: 11741600 | BH15: Basingstoke and Deane | BI15: 172870
A16: Bassetlaw | B16: 1189 | C16: 68 | D16: 98202.39927 | E16: 23553.82842 | F16: 11131.71525 | G16: 78163.27863 | H16: 211051.2216 | I16: 1.849007136 | J16: East Midlands | K16: 2.04 | L16: 53170 | M16: 3031 | N16: 4391439.503 | O16: 1053286.003 | P16: 497790.8325 | Q16: 3495325.084 | R16: 9437841.422 | S16: 1329.25 | T16: 75.8 | U16: 109785.9876 | V16: 26332.15007 | W16: 12444.77081 | X16: 87383.1271 | Y16: 235946.0356 | Z16: 10552.56108 | AA16: 21105.12216 | AB16: 471892.0711 | AC16: 943784.1422 | AD16: 11797.30178 | AE16: 23594.60356 | AG16: 17685.8 | AH16: 115 | AI16: Amber | AK16: Bassetlaw | AP16: Dacorum | AQ16: East | AU16: Regional total housing expenditure | AV16: O | AW16: 15 | AZ16: Bassetlaw | BA16: Bassetlaw | BH16: Bassetlaw | BI16: 114143
A17: Bath and North East Somerset UA | B17: 1702 | C17: 97 | D17: 140572.3159 | E17: 33716.24556 | F17: 15934.5495 | G17: 111887.2163 | H17: 302110.3273 | I17: 1.659755343 | J17: South West | K17: 1.91 | L17: 58403 | M17: 3329 | N17: 4823645.689 | O17: 1156950.581 | P17: 546783.4868 | Q17: 3839335.544 | R17: 10366715.3 | S17: 1622.305556 | T17: 92.52777778 | U17: 133990.158 | V17: 32137.51615 | W17: 15188.43019 | X17: 106648.2096 | Y17: 287964.3139 | Z17: 15105.51636 | AA17: 30211.03273 | AB17: 518335.7651 | AC17: 1036671.53 | AD17: 14398.2157 | AE17: 28796.43139 | AG17: 9734.43 | AH17: 268 | AI17: Green | AK17: Bath and North East Somerset UA | AP17: East Cambridgeshire | AQ17: East | AU17: Regional total personal social services | AV17: P | AW17: 16 | AZ17: Bath and North East Somerset UA | BA17: Bath and North East Somerset | BH17: Bath and North East Somerset UA | BI17: 182021
A18: Bedford UA | B18: 2150 | C18: 123 | D18: 177573.7245 | E18: 42591.027 | F18: 20128.8375 | G18: 141338.1405 | H18: 381631.7295 | I18: 2.328101617 | J18: East | K18: 2.12 | L18: 71855 | M18: 4096 | N18: 5934679.058 | O18: 1423431.742 | P18: 672724.4738 | Q18: 4723652.133 | R18: 12754487.41 | S18: 1528.829787 | T18: 87.12765957 | U18: 126269.7672 | V18: 30285.78174 | W18: 14313.28668 | X18: 100503.2369 | Y18: 271372.0725 | Z18: 19081.58648 | AA18: 38163.17295 | AB18: 637724.3703 | AC18: 1275448.741 | AD18: 13568.60362 | AE18: 27137.20725 | AG18: 15368.67 | AH18: 154 | AI18: Amber | AK18: Bedford UA | AP18: East Hertfordshire | AQ18: East | AU18: Regional total social welfare expenditure | AV18: Q | AW18: 17 | AZ18: Bedford UA | BA18: Bedford | BH18: Bedford UA | BI18: 163924
A19: Bexley | B19: 3037 | C19: 173 | D19: 250833.2099 | E19: 60162.30186 | F19: 28433.15325 | G19: 199648.3408 | H19: 539077.0058 | I19: 2.247418364 | J19: London | K19: 2.65 | L19: 127399 | M19: 7262 | N19: 10522192.99 | O19: 2523746.162 | P19: 1192741.288 | Q19: 8375040.819 | R19: 22613721.26 | S19: 3860.575758 | T19: 220 | U19: 318854.333 | V19: 76477.15643 | W19: 36143.67539 | X19: 253789.1157 | Y19: 685264.2806 | Z19: 26953.85029 | AA19: 53907.70058 | AB19: 1130686.063 | AC19: 2261372.126 | AD19: 34263.21403 | AE19: 68526.42806 | AG19: 13505.22 | AH19: 195 | AI19: Amber | AK19: Bexley | AP19: Epping Forest | AQ19: East | AU19: Regional total public sector expenditure | AV19: R | AW19: 18 | AZ19: Bexley | BA19: Bexley | BH19: Bexley | BI19: 239865
A20: Birmingham | B20: 16925 | C20: 965 | D20: 1397876.878 | E20: 335280.5265 | F20: 158456.0813 | G20: 1112626.99 | H20: 3004240.475 | I20: 2.727755207 | J20: West Midlands | K20: 2.18 | L20: 70123 | M20: 3997 | N20: 5791628.969 | O20: 1389121.203 | P20: 656509.0567 | Q20: 4609792.756 | R20: 12447051.98 | S20: 2337.433333 | T20: 133.2333333 | U20: 193054.299 | V20: 46304.0401 | W20: 21883.63522 | X20: 153659.7585 | Y20: 414901.7328 | Z20: 150212.0238 | AA20: 300424.0475 | AB20: 622352.5992 | AC20: 1244705.198 | AD20: 20745.08664 | AE20: 41490.17328 | AG20: 24955.09 | AH20: 11 | AI20: Red | AK20: Birmingham | AP20: Essex | AQ20: East | AU20: Regional Live births (average) | AV20: S | AW20: 19 | AZ20: Birmingham | BA20: Birmingham | BH20: Birmingham | BI20: 1101360
A21: Blaby | B21: 1062 | C21: 61 | D21: 87713.16066 | E21: 21037.98636 | F21: 9942.7095 | G21: 69814.46754 | H21: 188508.3241 | I21: 1.966680828 | J21: East Midlands | K21: 2.04 | L21: 53170 | M21: 3031 | N21: 4391439.503 | O21: 1053286.003 | P21: 497790.8325 | Q21: 3495325.084 | R21: 9437841.422 | S21: 1329.25 | T21: 75.8 | U21: 109785.9876 | V21: 26332.15007 | W21: 12444.77081 | X21: 87383.1271 | Y21: 235946.0356 | Z21: 9425.416203 | AA21: 18850.83241 | AB21: 471892.0711 | AC21: 943784.1422 | AD21: 11797.30178 | AE21: 23594.60356 | AG21: 8729.67 | AH21: 288 | AI21: Green | AK21: Blaby | AP21: Fenland | AQ21: East | AU21: Regional Unplanned pregnancies resulting in live births (average) | AV21: T | AW21: 20 | AZ21: Blaby | BA21: Blaby | BH21: Blaby | BI21: 95851
A22: Blackburn with Darwen UA | B22: 2212 | C22: 126 | D22: 182694.4552 | E22: 43819.23336 | F22: 20709.297 | G22: 145413.938 | H22: 392636.9236 | I22: 2.675677365 | J22: North West | K22: 2.13 | L22: 85606 | M22: 4880 | N22: 7070407.563 | O22: 1695836.027 | P22: 801464.7735 | Q22: 5627624.584 | R22: 15195332.95 | S22: 2195.025641 | T22: 125.1538462 | U22: 181292.5016 | V22: 43482.97504 | W22: 20550.37881 | X22: 144298.0663 | Y22: 389623.9217 | Z22: 19631.84618 | AA22: 39263.69236 | AB22: 759766.6473 | AC22: 1519533.295 | AD22: 19481.19609 | AE22: 38962.39217 | AG22: 22896.14 | AH22: 24 | AI22: Red | AK22: Blackburn with Darwen UA | AP22: Forest Heath | AQ22: East | AU22: Regional total (per annum) education expenditure (average) | AV22: U | AW22: 21 | AZ22: Blackburn with Darwen UA | BA22: Blackburn with Darwen | BH22: Blackburn with Darwen UA | BI22: 146743
A23: Blackpool UA | B23: 1819 | C23: 104 | D23: 150235.6302 | E23: 36033.98982 | F23: 17029.93275 | G23: 119578.6407 | H23: 322878.1935 | I23: 2.298049078 | J23: North West | K23: 2.13 | L23: 85606 | M23: 4880 | N23: 7070407.563 | O23: 1695836.027 | P23: 801464.7735 | Q23: 5627624.584 | R23: 15195332.95 | S23: 2195.025641 | T23: 125.1538462 | U23: 181292.5016 | V23: 43482.97504 | W23: 20550.37881 | X23: 144298.0663 | Y23: 389623.9217 | Z23: 16143.90967 | AA23: 32287.81935 | AB23: 759766.6473 | AC23: 1519533.295 | AD23: 19481.19609 | AE23: 38962.39217 | AG23: 25692.67 | AH23: 4 | AI23: Red | AK23: Blackpool UA | AP23: Great Yarmouth | AQ23: East | AU23: Regional total housing expenditure (average) | AV23: V | AW23: 22 | AZ23: Blackpool UA | BA23: Blackpool | BH23: Blackpool UA | BI23: 140501
A24: Bolsover | B24: 822 | C24: 47 | D24: 67890.97746 | E24: 16283.63916 | F24: 7695.7695 | G24: 54037.18674 | H24: 145907.5729 | I24: 1.89109679 | J24: East Midlands | K24: 2.04 | L24: 53170 | M24: 3031 | N24: 4391439.503 | O24: 1053286.003 | P24: 497790.8325 | Q24: 3495325.084 | R24: 9437841.422 | S24: 1329.25 | T24: 75.8 | U24: 109785.9876 | V24: 26332.15007 | W24: 12444.77081 | X24: 87383.1271 | Y24: 235946.0356 | Z24: 7295.378643 | AA24: 14590.75729 | AB24: 471892.0711 | AC24: 943784.1422 | AD24: 11797.30178 | AE24: 23594.60356 | AG24: 20183.4 | AH24: 61 | AI24: Red | AK24: Bolsover | AP24: Harlow | AQ24: East | AU24: Regional total personal social services (average) | AV24: W | AW24: 23 | AZ24: Bolsover | BA24: Bolsover | BH24: Bolsover | BI24: 77155
A25: Bolton | B25: 3758 | C25: 214 | D25: 310382.3519 | E25: 74445.15324 | F25: 35183.3355 | G25: 247045.9219 | H25: 667056.7625 | I25: 2.37861625 | J25: North West | K25: 2.13 | L25: 85606 | M25: 4880 | N25: 7070407.563 | O25: 1695836.027 | P25: 801464.7735 | Q25: 5627624.584 | R25: 15195332.95 | S25: 2195.025641 | T25: 125.1538462 | U25: 181292.5016 | V25: 43482.97504 | W25: 20550.37881 | X25: 144298.0663 | Y25: 389623.9217 | Z25: 33352.83813 | AA25: 66705.67625 | AB25: 759766.6473 | AC25: 1519533.295 | AD25: 19481.19609 | AE25: 38962.39217 | AG25: 20028.17 | AH25: 64 | AI25: Red | AK25: Bolton | AP25: Hertfordshire | AQ25: East | AU25: Regional total social welfare expenditure (average) | AV25: X | AW25: 24 | AZ25: Bolton | BA25: Bolton | BH25: Bolton | BI25: 280439
A26: Boston | B26: 857 | C26: 49 | D26: 70781.71251 | E26: 16976.98146 | F26: 8023.44825 | G26: 56338.04019 | H26: 152120.1824 | I26: 2.288967203 | J26: East Midlands | K26: 2.04 | L26: 53170 | M26: 3031 | N26: 4391439.503 | O26: 1053286.003 | P26: 497790.8325 | Q26: 3495325.084 | R26: 9437841.422 | S26: 1329.25 | T26: 75.8 | U26: 109785.9876 | V26: 26332.15007 | W26: 12444.77081 | X26: 87383.1271 | Y26: 235946.0356 | Z26: 7606.009121 | AA26: 15212.01824 | AB26: 471892.0711 | AC26: 943784.1422 | AD26: 11797.30178 | AE26: 23594.60356 | AG26: 19945.4 | AH26: 66 | AI26: Red | AK26: Boston | AP26: Hertsmere | AQ26: East | AU26: Regional total public sector expenditure (average) | AV26: Y | AW26: 25 | AZ26: Boston | BA26: Boston | BH26: Boston | BI26: 66458
A27: Bournemouth UA | B27: 2224 | C27: 127 | D27: 183685.5643 | E27: 44056.95072 | F27: 20821.644 | G27: 146202.8021 | H27: 394766.9611 | I27: 2.062631073 | J27: South West | K27: 1.91 | L27: 58403 | M27: 3329 | N27: 4823645.689 | O27: 1156950.581 | P27: 546783.4868 | Q27: 3839335.544 | R27: 10366715.3 | S27: 1622.305556 | T27: 92.52777778 | U27: 133990.158 | V27: 32137.51615 | W27: 15188.43019 | X27: 106648.2096 | Y27: 287964.3139 | Z27: 19738.34806 | AA27: 39476.69611 | AB27: 518335.7651 | AC27: 1036671.53 | AD27: 14398.2157 | AE27: 28796.43139 | AG27: 17588.51 | AH27: 117 | AI27: Amber | AK27: Bournemouth UA | AP27: Huntingdonshire | AQ27: East | AU27: Additional cost associated with 5% increase in unplanned pregnancies resulting in live births | AV27: Z | AW27: 26 | AZ27: Bournemouth UA | BA27: Bournemouth | BH27: Bournemouth UA | BI27: 191390
A28: Bracknell Forest UA | B28: 1510 | C28: 86 | D28: 124714.5693 | E28: 29912.7678 | F28: 14136.9975 | G28: 99265.3917 | H28: 268029.7263 | I28: 2.270957223 | J28: South East | K28: 2.05 | L28: 102406 | M28: 5837 | N28: 8457960.387 | O28: 2028640.331 | P28: 958750.5735 | Q28: 6732034.24 | R28: 18177385.53 | S28: 1528.447761 | T28: 87.10447761 | U28: 126238.2147 | V28: 30278.21389 | W28: 14309.71005 | X28: 100478.123 | Y28: 271304.2617 | Z28: 13401.48631 | AA28: 26802.97263 | AB28: 908869.2765 | AC28: 1817738.553 | AD28: 13565.21308 | AE28: 27130.42617 | AG28: 8755.26 | AH28: 287 | AI28: Green | AK28: Bracknell Forest UA | AP28: Ipswich | AQ28: East | AU28: Additional cost with 10% increase | AV28: AA | AW28: 27 | AZ28: Bracknell Forest UA | BA28: Bracknell Forest | BH28: Bracknell Forest UA | BI28: 118025
A29: Bradford | B29: 8100 | C29: 462 | D29: 668998.683 | E29: 160459.218 | F29: 75834.225 | G29: 532483.227 | H29: 1437775.353 | I29: 2.722260232 | J29: Yorkshire and the Humber | K29: 2.12 | L29: 64078 | M29: 3652 | N29: 5292357.73 | O29: 1269371.083 | P29: 599914.2555 | Q29: 4212402.496 | R29: 11374045.56 | S29: 3051.333333 | T29: 174 | U29: 252017.0347 | V29: 60446.24204 | W29: 28567.3455 | X29: 200590.5951 | Y29: 541621.2173 | Z29: 71888.76765 | AA29: 143777.5353 | AB29: 568702.2782 | AC29: 1137404.556 | AD29: 27081.06087 | AE29: 54162.12173 | AG29: 22184.16 | AH29: 30 | AI29: Red | AK29: Bradford | AP29: King’s Lynn and West Norfolk | AQ29: East | AU29: (Regional) Additional cost associated with 5% increase in unplanned pregnancies resulting in live births | AV29: AB | AW29: 28 | AZ29: Bradford | BA29: Bradford | BH29: Bradford | BI29: 528155
A30: Braintree | B30: 1644 | C30: 94 | D30: 135781.9549 | E30: 32567.27832 | F30: 15391.539 | G30: 108074.3735 | H30: 291815.1457 | I30: 1.945628868 | J30: East | K30: 2.12 | L30: 71855 | M30: 4096 | N30: 5934679.058 | O30: 1423431.742 | P30: 672724.4738 | Q30: 4723652.133 | R30: 12754487.41 | S30: 1528.829787 | T30: 87.12765957 | U30: 126269.7672 | V30: 30285.78174 | W30: 14313.28668 | X30: 100503.2369 | Y30: 271372.0725 | Z30: 14590.75729 | AA30: 29181.51457 | AB30: 637724.3703 | AC30: 1275448.741 | AD30: 13568.60362 | AE30: 27137.20725 | AG30: 13452.81 | AH30: 197 | AI30: Amber | AK30: Braintree | AP30: Luton UA | AQ30: East | AU30: (Regional) Additional cost with 10% increase | AV30: AC | AW30: 29 | AZ30: Braintree | BA30: Braintree | BH30: Braintree | BI30: 149985
A31: Breckland | B31: 1432 | C31: 82 | D31: 118272.3598 | E31: 28367.60496 | F31: 13406.742 | G31: 94137.77544 | H31: 254184.4822 | I31: 1.897097325 | J31: East | K31: 2.12 | L31: 71855 | M31: 4096 | N31: 5934679.058 | O31: 1423431.742 | P31: 672724.4738 | Q31: 4723652.133 | R31: 12754487.41 | S31: 1528.829787 | T31: 87.12765957 | U31: 126269.7672 | V31: 30285.78174 | W31: 14313.28668 | X31: 100503.2369 | Y31: 271372.0725 | Z31: 12709.22411 | AA31: 25418.44822 | AB31: 637724.3703 | AC31: 1275448.741 | AD31: 13568.60362 | AE31: 27137.20725 | AG31: 17070.84 | AH31: 129 | AI31: Amber | AK31: Breckland | AP31: Maldon | AQ31: East | AU31: Regional average additional cost associated with 5% increase | AV31: AD | AW31: 30 | AZ31: Breckland | BA31: Breckland | BH31: Breckland | BI31: 133986
A32: Brent | B32: 5078 | C32: 289 | D32: 419404.3595 | E32: 100594.0628 | F32: 47541.5055 | G32: 333820.9663 | H32: 901360.8941 | I32: 2.810061336 | J32: London | K32: 2.65 | L32: 127399 | M32: 7262 | N32: 10522192.99 | O32: 2523746.162 | P32: 1192741.288 | Q32: 8375040.819 | R32: 22613721.26 | S32: 3860.575758 | T32: 220 | U32: 318854.333 | V32: 76477.15643 | W32: 36143.67539 | X32: 253789.1157 | Y32: 685264.2806 | Z32: 45068.04471 | AA32: 90136.08941 | AB32: 1130686.063 | AC32: 2261372.126 | AD32: 34263.21403 | AE32: 68526.42806 | AG32: 21519.93 | AH32: 39 | AI32: Red | AK32: Brent | AP32: Mid Suffolk | AQ32: East | AU32: Regional average additional cost associated with 10% increase | AV32: AE | AW32: 31 | AZ32: Brent | BA32: Brent | BH32: Brent | BI32: 320762
A33: Brentwood | B33: 874 | C33: 50 | D33: 72185.78382 | E33: 17313.74772 | F33: 8182.6065 | G33: 57455.59758 | H33: 155137.7356 | I33: 2.050865697 | J33: East | K33: 2.12 | L33: 71855 | M33: 4096 | N33: 5934679.058 | O33: 1423431.742 | P33: 672724.4738 | Q33: 4723652.133 | R33: 12754487.41 | S33: 1528.829787 | T33: 87.12765957 | U33: 126269.7672 | V33: 30285.78174 | W33: 14313.28668 | X33: 100503.2369 | Y33: 271372.0725 | Z33: 7756.886781 | AA33: 15513.77356 | AB33: 637724.3703 | AC33: 1275448.741 | AD33: 13568.60362 | AE33: 27137.20725 | AG33: 8128.47 | AH33: 294 | AI33: Green | AK33: Brentwood | AP33: Norfolk | AQ33: East | AU33: Regional average cost per capita | AV33: AF | AW33: 32 | AZ33: Brentwood | BA33: Brentwood | BH33: Brentwood | BI33: 75645
A34: Brighton and Hove UA | B34: 2987 | C34: 170 | D34: 246703.5884 | E34: 59171.81286 | F34: 27965.04075 | G34: 196361.4073 | H34: 530201.8493 | I34: 1.88632914 | J34: South East | K34: 2.05 | L34: 102406 | M34: 5837 | N34: 8457960.387 | O34: 2028640.331 | P34: 958750.5735 | Q34: 6732034.24 | R34: 18177385.53 | S34: 1528.447761 | T34: 87.10447761 | U34: 126238.2147 | V34: 30278.21389 | W34: 14309.71005 | X34: 100478.123 | Y34: 271304.2617 | Z34: 26510.09247 | AA34: 53020.18493 | AB34: 908869.2765 | AC34: 1817738.553 | AD34: 13565.21308 | AE34: 27130.42617 | AG34: 18157.98 | AH34: 109 | AI34: Amber | AK34: Brighton and Hove UA | AP34: North Hertfordshire | AQ34: East | AU34: IMD - Average rank | AV34: AG | AW34: 33 | AZ34: Brighton and Hove UA | BA34: Brighton and Hove | BH34: Brighton and Hove UA | BI34: 281076
A35: Bristol, City of UA | B35: 6442 | C35: 367 | D35: 532060.4341 | E35: 127614.6028 | F35: 60311.6145 | G35: 423488.5121 | H35: 1143475.163 | I35: 2.584276508 | J35: South West | K35: 1.91 | L35: 58403 | M35: 3329 | N35: 4823645.689 | O35: 1156950.581 | P35: 546783.4868 | Q35: 3839335.544 | R35: 10366715.3 | S35: 1622.305556 | T35: 92.52777778 | U35: 133990.158 | V35: 32137.51615 | W35: 15188.43019 | X35: 106648.2096 | Y35: 287964.3139 | Z35: 57173.75817 | AA35: 114347.5163 | AB35: 518335.7651 | AC35: 1036671.53 | AD35: 14398.2157 | AE35: 28796.43139 | AG35: 19759.77 | AH35: 77 | AI35: Red | AK35: Bristol, City of UA | AP35: North Norfolk | AQ35: East | AU35: IMD - Rank of average rank | AV35: AH | AW35: 34 | AZ35: Bristol, City of UA | BA35: Bristol, City of | BH35: Bristol, City of UA | BI35: 442474
A36: Broadland | B36: 1069 | C36: 61 | D36: 88291.30767 | E36: 21176.65482 | F36: 10008.24525 | G36: 70274.63823 | H36: 189750.846 | I36: 1.50642537 | J36: East | K36: 2.12 | L36: 71855 | M36: 4096 | N36: 5934679.058 | O36: 1423431.742 | P36: 672724.4738 | Q36: 4723652.133 | R36: 12754487.41 | S36: 1528.829787 | T36: 87.12765957 | U36: 126269.7672 | V36: 30285.78174 | W36: 14313.28668 | X36: 100503.2369 | Y36: 271372.0725 | Z36: 9487.542299 | AA36: 18975.0846 | AB36: 637724.3703 | AC36: 1275448.741 | AD36: 13568.60362 | AE36: 27137.20725 | AG36: 9531.78 | AH36: 273 | AI36: Green | AK36: Broadland | AP36: Norwich | AQ36: East | AU36: IMD - Rank of average rank - Colour | AV36: AI | AW36: 35 | AZ36: Broadland | BA36: Broadland | BH36: Broadland | BI36: 125961
A37: Bromley | B37: 4086 | C37: 233 | D37: 337472.669 | E37: 80942.76108 | F37: 38254.1535 | G37: 268608.2056 | H37: 725277.7892 | I37: 2.257477291 | J37: London | K37: 2.65 | L37: 127399 | M37: 7262 | N37: 10522192.99 | O37: 2523746.162 | P37: 1192741.288 | Q37: 8375040.819 | R37: 22613721.26 | S37: 3860.575758 | T37: 220 | U37: 318854.333 | V37: 76477.15643 | W37: 36143.67539 | X37: 253789.1157 | Y37: 685264.2806 | Z37: 36263.88946 | AA37: 72527.77892 | AB37: 1130686.063 | AC37: 2261372.126 | AD37: 34263.21403 | AE37: 68526.42806 | AG37: 12023.39 | AH37: 220 | AI37: Green | AK37: Bromley | AP37: Peterborough UA | AQ37: East | AZ37: Bromley | BA37: Bromley | BH37: Bromley | BI37: 321278
A38: Bromsgrove | B38: 908 | C38: 52 | D38: 74993.92644 | E38: 17987.28024 | F38: 8500.923 | G38: 59690.71236 | H38: 161172.842 | I38: 1.68793886 | J38: West Midlands | K38: 2.18 | L38: 70123 | M38: 3997 | N38: 5791628.969 | O38: 1389121.203 | P38: 656509.0567 | Q38: 4609792.756 | R38: 12447051.98 | S38: 2337.433333 | T38: 133.2333333 | U38: 193054.299 | V38: 46304.0401 | W38: 21883.63522 | X38: 153659.7585 | Y38: 414901.7328 | Z38: 8058.642102 | AA38: 16117.2842 | AB38: 622352.5992 | AC38: 1244705.198 | AD38: 20745.08664 | AE38: 41490.17328 | AG38: 9135.43 | AH38: 282 | AI38: Green | AK38: Bromsgrove | AP38: Rochford | AQ38: East | AZ38: Bromsgrove | BA38: Bromsgrove | BH38: Bromsgrove | BI38: 95485
A39: Broxbourne | B39: 1223 | C39: 70 | D39: 101010.5419 | E39: 24227.36094 | F39: 11450.03175 | G39: 80398.39341 | H39: 217086.328 | I39: 2.267267494 | J39: East | K39: 2.12 | L39: 71855 | M39: 4096 | N39: 5934679.058 | O39: 1423431.742 | P39: 672724.4738 | Q39: 4723652.133 | R39: 12754487.41 | S39: 1528.829787 | T39: 87.12765957 | U39: 126269.7672 | V39: 30285.78174 | W39: 14313.28668 | X39: 100503.2369 | Y39: 271372.0725 | Z39: 10854.3164 | AA39: 21708.6328 | AB39: 637724.3703 | AC39: 1275448.741 | AD39: 13568.60362 | AE39: 27137.20725 | AG39: 14793.04 | AH39: 171 | AI39: Amber | AK39: Broxbourne | AP39: South Cambridgeshire | AQ39: East | AZ39: Broxbourne | BA39: Broxbourne | BH39: Broxbourne | BI39: 95748
A40: Broxtowe | B40: 1206 | C40: 69 | D40: 99606.47058 | E40: 23890.59468 | F40: 11290.8735 | G40: 79280.83602 | H40: 214068.7748 | I40: 1.91509013 | J40: East Midlands | K40: 2.04 | L40: 53170 | M40: 3031 | N40: 4391439.503 | O40: 1053286.003 | P40: 497790.8325 | Q40: 3495325.084 | R40: 9437841.422 | S40: 1329.25 | T40: 75.8 | U40: 109785.9876 | V40: 26332.15007 | W40: 12444.77081 | X40: 87383.1271 | Y40: 235946.0356 | Z40: 10703.43874 | AA40: 21406.87748 | AB40: 471892.0711 | AC40: 943784.1422 | AD40: 11797.30178 | AE40: 23594.60356 | AG40: 12049.77 | AH40: 219 | AI40: Green | AK40: Broxtowe | AP40: South Norfolk | AQ40: East | AZ40: Broxtowe | BA40: Broxtowe | BH40: Broxtowe | BI40: 111780
A41: Buckinghamshire | B41: 5989 | C41: 341 | D41: 494646.0633 | E41: 118640.7724 | F41: 56070.51525 | G41: 393708.8946 | H41: 1063066.246 | I41: 2.036829729 | J41: South East | K41: 2.05 | L41: 102406 | M41: 5837 | N41: 8457960.387 | O41: 2028640.331 | P41: 958750.5735 | Q41: 6732034.24 | R41: 18177385.53 | S41: 1528.447761 | T41: 87.10447761 | U41: 126238.2147 | V41: 30278.21389 | W41: 14309.71005 | X41: 100478.123 | Y41: 271304.2617 | Z41: 53153.31228 | AA41: 106306.6246 | AB41: 908869.2765 | AC41: 1817738.553 | AD41: 13565.21308 | AE41: 27130.42617 | AK41: Buckinghamshire | AP41: Southend-on-Sea UA | AQ41: East | AZ41: Buckinghamshire | BH41: Buckinghamshire | BI41: 521922
A42: Burnley | B42: 1122 | C42: 64 | D42: 92668.70646 | E42: 22226.57316 | F42: 10504.4445 | G42: 73758.78774 | H42: 199158.5119 | I42: 2.281546916 | J42: North West | K42: 2.13 | L42: 85606 | M42: 4880 | N42: 7070407.563 | O42: 1695836.027 | P42: 801464.7735 | Q42: 5627624.584 | R42: 15195332.95 | S42: 2195.025641 | T42: 125.1538462 | U42: 181292.5016 | V42: 43482.97504 | W42: 20550.37881 | X42: 144298.0663 | Y42: 389623.9217 | Z42: 9957.925593 | AA42: 19915.85119 | AB42: 759766.6473 | AC42: 1519533.295 | AD42: 19481.19609 | AE42: 38962.39217 | AG42: 23559.19 | AH42: 17 | AI42: Red | AK42: Burnley | AP42: St Albans | AQ42: East | AZ42: Burnley | BA42: Burnley | BH42: Burnley | BI42: 87291
A43: Bury | B43: 2329 | C43: 133 | D43: 192357.7695 | E43: 46136.97762 | F43: 21804.68025 | G43: 153105.3624 | H43: 413404.7898 | I43: 2.205131324 | J43: North West | K43: 2.13 | L43: 85606 | M43: 4880 | N43: 7070407.563 | O43: 1695836.027 | P43: 801464.7735 | Q43: 5627624.584 | R43: 15195332.95 | S43: 2195.025641 | T43: 125.1538462 | U43: 181292.5016 | V43: 43482.97504 | W43: 20550.37881 | X43: 144298.0663 | Y43: 389623.9217 | Z43: 20670.23949 | AA43: 41340.47898 | AB43: 759766.6473 | AC43: 1519533.295 | AD43: 19481.19609 | AE43: 38962.39217 | AG43: 16736.98 | AH43: 132 | AI43: Amber | AK43: Bury | AP43: St Edmundsbury | AQ43: East | AZ43: Bury | BA43: Bury | BH43: Bury | BI43: 187474
A44: Calderdale | B44: 2533 | C44: 144 | D44: 209206.6252 | E44: 50178.17274 | F44: 23714.57925 | G44: 166516.0511 | H44: 449615.4283 | I44: 2.168116987 | J44: Yorkshire and the Humber | K44: 2.12 | L44: 64078 | M44: 3652 | N44: 5292357.73 | O44: 1269371.083 | P44: 599914.2555 | Q44: 4212402.496 | R44: 11374045.56 | S44: 3051.333333 | T44: 174 | U44: 252017.0347 | V44: 60446.24204 | W44: 28567.3455 | X44: 200590.5951 | Y44: 541621.2173 | Z44: 22480.77141 | AA44: 44961.54283 | AB44: 568702.2782 | AC44: 1137404.556 | AD44: 27081.06087 | AE44: 54162.12173 | AG44: 18599.6 | AH44: 96 | AI44: Red | AK44: Calderdale | AP44: Stevenage | AQ44: East | AZ44: Calderdale | BA44: Calderdale | BH44: Calderdale | BI44: 207376
A45: Cambridge | B45: 1421 | C45: 81 | D45: 117363.843 | E45: 28149.69738 | F45: 13303.75725 | G45: 93414.65007 | H45: 252231.9477 | I45: 1.96266543 | J45: East | K45: 2.12 | L45: 71855 | M45: 4096 | N45: 5934679.058 | O45: 1423431.742 | P45: 672724.4738 | Q45: 4723652.133 | R45: 12754487.41 | S45: 1528.829787 | T45: 87.12765957 | U45: 126269.7672 | V45: 30285.78174 | W45: 14313.28668 | X45: 100503.2369 | Y45: 271372.0725 | Z45: 12611.59739 | AA45: 25223.19477 | AB45: 637724.3703 | AC45: 1275448.741 | AD45: 13568.60362 | AE45: 27137.20725 | AG45: 11742.5 | AH45: 227 | AI45: Green | AK45: Cambridge | AP45: Suffolk | AQ45: East | AZ45: Cambridge | BA45: Cambridge | BH45: Cambridge | BI45: 128515
A46: Cambridgeshire | B46: 7269 | C46: 414 | D46: 600364.3737 | E46: 143997.2908 | F46: 68054.19525 | G46: 477854.3922 | H46: 1290270.252 | I46: 2.016620745 | J46: East | K46: 2.12 | L46: 71855 | M46: 4096 | N46: 5934679.058 | O46: 1423431.742 | P46: 672724.4738 | Q46: 4723652.133 | R46: 12754487.41 | S46: 1528.829787 | T46: 87.12765957 | U46: 126269.7672 | V46: 30285.78174 | W46: 14313.28668 | X46: 100503.2369 | Y46: 271372.0725 | Z46: 64513.5126 | AA46: 129027.0252 | AB46: 637724.3703 | AC46: 1275448.741 | AD46: 13568.60362 | AE46: 27137.20725 | AK46: Cambridgeshire | AP46: Suffolk Coastal | AQ46: East | AZ46: Cambridgeshire | BH46: Cambridgeshire | BI46: 639818
A47: Camden | B47: 2700 | C47: 154 | D47: 222999.561 | E47: 53486.406 | F47: 25278.075 | G47: 177494.409 | H47: 479258.451 | I47: 2.040734997 | J47: London | K47: 2.65 | L47: 127399 | M47: 7262 | N47: 10522192.99 | O47: 2523746.162 | P47: 1192741.288 | Q47: 8375040.819 | R47: 22613721.26 | S47: 3860.575758 | T47: 220 | U47: 318854.333 | V47: 76477.15643 | W47: 36143.67539 | X47: 253789.1157 | Y47: 685264.2806 | Z47: 23962.92255 | AA47: 47925.8451 | AB47: 1130686.063 | AC47: 2261372.126 | AD47: 34263.21403 | AE47: 68526.42806 | AG47: 19916.9 | AH47: 69 | AI47: Red | AK47: Camden | AP47: Tendring | AQ47: East | AZ47: Camden | BA47: Camden | BH47: Camden | BI47: 234846
A48: Cannock Chase | B48: 1104 | C48: 63 | D48: 91182.04272 | E48: 21869.99712 | F48: 10335.924 | G48: 72575.49168 | H48: 195963.4555 | I48: 1.988487509 | J48: West Midlands | K48: 2.18 | L48: 70123 | M48: 3997 | N48: 5791628.969 | O48: 1389121.203 | P48: 656509.0567 | Q48: 4609792.756 | R48: 12447051.98 | S48: 2337.433333 | T48: 133.2333333 | U48: 193054.299 | V48: 46304.0401 | W48: 21883.63522 | X48: 153659.7585 | Y48: 414901.7328 | Z48: 9798.172776 | AA48: 19596.34555 | AB48: 622352.5992 | AC48: 1244705.198 | AD48: 20745.08664 | AE48: 41490.17328 | AG48: 17194.53 | AH48: 128 | AI48: Amber | AK48: Cannock Chase | AP48: Three Rivers | AQ48: East | AZ48: Cannock Chase | BA48: Cannock Chase | BH48: Cannock Chase | BI48: 98549
A49: Canterbury | B49: 1366 | C49: 78 | D49: 112821.2594 | E49: 27060.15948 | F49: 12788.8335 | G49: 89799.02322 | H49: 242469.2756 | I49: 1.538032436 | J49: South East | K49: 2.05 | L49: 102406 | M49: 5837 | N49: 8457960.387 | O49: 2028640.331 | P49: 958750.5735 | Q49: 6732034.24 | R49: 18177385.53 | S49: 1528.447761 | T49: 87.10447761 | U49: 126238.2147 | V49: 30278.21389 | W49: 14309.71005 | X49: 100478.123 | Y49: 271304.2617 | Z49: 12123.46378 | AA49: 24246.92756 | AB49: 908869.2765 | AC49: 1817738.553 | AD49: 13565.21308 | AE49: 27130.42617 | AG49: 14091.31 | AH49: 183 | AI49: Amber | AK49: Canterbury | AP49: Thurrock UA | AQ49: East | AZ49: Canterbury | BA49: Canterbury | BH49: Canterbury | BI49: 157649
A50: Carlisle | B50: 1261 | C50: 72 | D50: 104149.0542 | E50: 24980.13258 | F50: 11805.79725 | G50: 82896.46287 | H50: 223831.4469 | I50: 2.072091305 | J50: North West | K50: 2.13 | L50: 85606 | M50: 4880 | N50: 7070407.563 | O50: 1695836.027 | P50: 801464.7735 | Q50: 5627624.584 | R50: 15195332.95 | S50: 2195.025641 | T50: 125.1538462 | U50: 181292.5016 | V50: 43482.97504 | W50: 20550.37881 | X50: 144298.0663 | Y50: 389623.9217 | Z50: 11191.57235 | AA50: 22383.14469 | AB50: 759766.6473 | AC50: 1519533.295 | AD50: 19481.19609 | AE50: 38962.39217 | AG50: 17742.24 | AH50: 112 | AI50: Amber | AK50: Carlisle | AP50: Uttlesford | AQ50: East | AZ50: Carlisle | BA50: Carlisle | BH50: Carlisle | BI50: 108022
A51: Castle Point | B51: 861 | C51: 49 | D51: 71112.08223 | E51: 17056.22058 | F51: 8060.89725 | G51: 56600.99487 | H51: 152830.1949 | I51: 1.718989449 | J51: East | K51: 2.12 | L51: 71855 | M51: 4096 | N51: 5934679.058 | O51: 1423431.742 | P51: 672724.4738 | Q51: 4723652.133 | R51: 12754487.41 | S51: 1528.829787 | T51: 87.12765957 | U51: 126269.7672 | V51: 30285.78174 | W51: 14313.28668 | X51: 100503.2369 | Y51: 271372.0725 | Z51: 7641.509746 | AA51: 15283.01949 | AB51: 637724.3703 | AC51: 1275448.741 | AD51: 13568.60362 | AE51: 27137.20725 | AG51: 13918.57 | AH51: 187 | AI51: Amber | AK51: Castle Point | AP51: Watford | AQ51: East | AZ51: Castle Point | BA51: Castle Point | BH51: Castle Point | BI51: 88907
A52: Central Bedfordshire UA | B52: 3246 | C52: 185 | D52: 268095.0278 | E52: 64302.54588 | F52: 30389.8635 | G52: 213387.7228 | H52: 576175.16 | I52: 2.141310113 | J52: East | K52: 2.12 | L52: 71855 | M52: 4096 | N52: 5934679.058 | O52: 1423431.742 | P52: 672724.4738 | Q52: 4723652.133 | R52: 12754487.41 | S52: 1528.829787 | T52: 87.12765957 | U52: 126269.7672 | V52: 30285.78174 | W52: 14313.28668 | X52: 100503.2369 | Y52: 271372.0725 | Z52: 28808.758 | AA52: 57617.516 | AB52: 637724.3703 | AC52: 1275448.741 | AD52: 13568.60362 | AE52: 27137.20725 | AG52: 9908.76 | AH52: 264 | AI52: Green | AK52: Central Bedfordshire UA | AP52: Waveney | AQ52: East | AZ52: Central Bedfordshire UA | BA52: Central Bedfordshire | BH52: Central Bedfordshire UA | BI52: 269076
A53: Charnwood | B53: 1766 | C53: 101 | D53: 145858.2314 | E53: 34984.07148 | F53: 16533.7335 | G53: 116094.4912 | H53: 313470.5276 | I53: 1.80627807 | J53: East Midlands | K53: 2.04 | L53: 53170 | M53: 3031 | N53: 4391439.503 | O53: 1053286.003 | P53: 497790.8325 | Q53: 3495325.084 | R53: 9437841.422 | S53: 1329.25 | T53: 75.8 | U53: 109785.9876 | V53: 26332.15007 | W53: 12444.77081 | X53: 87383.1271 | Y53: 235946.0356 | Z53: 15673.52638 | AA53: 31347.05276 | AB53: 471892.0711 | AC53: 943784.1422 | AD53: 11797.30178 | AE53: 23594.60356 | AG53: 11208.3 | AH53: 237 | AI53: Green | AK53: Charnwood | AP53: Welwyn Hatfield | AQ53: East | AZ53: Charnwood | BA53: Charnwood | BH53: Charnwood | BI53: 173545
A54: Chelmsford | B54: 1957 | C54: 112 | D54: 161633.3855 | E54: 38767.73946 | F54: 18321.92325 | G54: 128650.5772 | H54: 347373.6254 | I54: 2.023932609 | J54: East | K54: 2.12 | L54: 71855 | M54: 4096 | N54: 5934679.058 | O54: 1423431.742 | P54: 672724.4738 | Q54: 4723652.133 | R54: 12754487.41 | S54: 1528.829787 | T54: 87.12765957 | U54: 126269.7672 | V54: 30285.78174 | W54: 14313.28668 | X54: 100503.2369 | Y54: 271372.0725 | Z54: 17368.68127 | AA54: 34737.36254 | AB54: 637724.3703 | AC54: 1275448.741 | AD54: 13568.60362 | AE54: 27137.20725 | AG54: 10252.97 | AH54: 261 | AI54: Green | AK54: Chelmsford | AP54: Amber Valley | AQ54: East Midlands | AZ54: Chelmsford | BA54: Chelmsford | BH54: Chelmsford | BI54: 171633
A55: Cheltenham | B55: 1435 | C55: 82 | D55: 118520.1371 | E55: 28427.0343 | F55: 13434.82875 | G55: 94334.99145 | H55: 254716.9916 | I55: 2.186505786 | J55: South West | K55: 1.91 | L55: 58403 | M55: 3329 | N55: 4823645.689 | O55: 1156950.581 | P55: 546783.4868 | Q55: 3839335.544 | R55: 10366715.3 | S55: 1622.305556 | T55: 92.52777778 | U55: 133990.158 | V55: 32137.51615 | W55: 15188.43019 | X55: 106648.2096 | Y55: 287964.3139 | Z55: 12735.84958 | AA55: 25471.69916 | AB55: 518335.7651 | AC55: 1036671.53 | AD55: 14398.2157 | AE55: 28796.43139 | AG55: 11657.23 | AH55: 228 | AI55: Green | AK55: Cheltenham | AP55: Ashfield | AQ55: East Midlands | AZ55: Cheltenham | BA55: Cheltenham | BH55: Cheltenham | BI55: 116495
A56: Cherwell | B56: 1817 | C56: 104 | D56: 150070.4453 | E56: 35994.37026 | F56: 17011.20825 | G56: 119447.1634 | H56: 322523.1872 | I56: 2.232087057 | J56: South East | K56: 2.05 | L56: 102406 | M56: 5837 | N56: 8457960.387 | O56: 2028640.331 | P56: 958750.5735 | Q56: 6732034.24 | R56: 18177385.53 | S56: 1528.447761 | T56: 87.10447761 | U56: 126238.2147 | V56: 30278.21389 | W56: 14309.71005 | X56: 100478.123 | Y56: 271304.2617 | Z56: 16126.15936 | AA56: 32252.31872 | AB56: 908869.2765 | AC56: 1817738.553 | AD56: 13565.21308 | AE56: 27130.42617 | AG56: 10495.71 | AH56: 256 | AI56: Green | AK56: Cherwell | AP56: Bassetlaw | AQ56: East Midlands | AZ56: Cherwell | BA56: Cherwell | BH56: Cherwell | BI56: 144494
A57: Cheshire East UA | B57: 3749 | C57: 214 | D57: 309639.0201 | E57: 74266.86522 | F57: 35099.07525 | G57: 246454.2738 | H57: 665459.2344 | I57: 1.778451582 | J57: North West | K57: 2.13 | L57: 85606 | M57: 4880 | N57: 7070407.563 | O57: 1695836.027 | P57: 801464.7735 | Q57: 5627624.584 | R57: 15195332.95 | S57: 2195.025641 | T57: 125.1538462 | U57: 181292.5016 | V57: 43482.97504 | W57: 20550.37881 | X57: 144298.0663 | Y57: 389623.9217 | Z57: 33272.96172 | AA57: 66545.92344 | AB57: 759766.6473 | AC57: 1519533.295 | AD57: 19481.19609 | AE57: 38962.39217 | AG57: 11097.21 | AH57: 241 | AI57: Green | AK57: Cheshire East UA | AP57: Blaby | AQ57: East Midlands | AZ57: Cheshire East UA | BA57: Cheshire East | BH57: Cheshire East UA | BI57: 374179
A58: Cheshire West and Chester UA | B58: 3527 | C58: 201 | D58: 291303.5006 | E58: 69869.09406 | F58: 33020.65575 | G58: 231860.2891 | H58: 626053.5395 | I58: 1.884511422 | J58: North West | K58: 2.13 | L58: 85606 | M58: 4880 | N58: 7070407.563 | O58: 1695836.027 | P58: 801464.7735 | Q58: 5627624.584 | R58: 15195332.95 | S58: 2195.025641 | T58: 125.1538462 | U58: 181292.5016 | V58: 43482.97504 | W58: 20550.37881 | X58: 144298.0663 | Y58: 389623.9217 | Z58: 31302.67698 | AA58: 62605.35395 | AB58: 759766.6473 | AC58: 1519533.295 | AD58: 19481.19609 | AE58: 38962.39217 | AG58: 13790.42 | AH58: 192 | AI58: Amber | AK58: Cheshire West and Chester UA | AP58: Bolsover | AQ58: East Midlands | AZ58: Cheshire West and Chester UA | BA58: Cheshire West and Chester | BH58: Cheshire West and Chester UA | BI58: 332210
A59: Chesterfield | B59: 1144 | C59: 65 | D59: 94485.73992 | E59: 22662.38832 | F59: 10710.414 | G59: 75205.03848 | H59: 203063.5807 | I59: 1.947142344 | J59: East Midlands | K59: 2.04 | L59: 53170 | M59: 3031 | N59: 4391439.503 | O59: 1053286.003 | P59: 497790.8325 | Q59: 3495325.084 | R59: 9437841.422 | S59: 1329.25 | T59: 75.8 | U59: 109785.9876 | V59: 26332.15007 | W59: 12444.77081 | X59: 87383.1271 | Y59: 235946.0356 | Z59: 10153.17904 | AA59: 20306.35807 | AB59: 471892.0711 | AC59: 943784.1422 | AD59: 11797.30178 | AE59: 23594.60356 | AG59: 19375.63 | AH59: 85 | AI59: Red | AK59: Chesterfield | AP59: Boston | AQ59: East Midlands | AZ59: Chesterfield | BA59: Chesterfield | BH59: Chesterfield | BI59: 104288
A60: Chichester | B60: 1060 | C60: 60 | D60: 87547.9758 | E60: 20998.3668 | F60: 9923.985 | G60: 69682.9902 | H60: 188153.3178 | I60: 1.628652331 | J60: South East | K60: 2.05 | L60: 102406 | M60: 5837 | N60: 8457960.387 | O60: 2028640.331 | P60: 958750.5735 | Q60: 6732034.24 | R60: 18177385.53 | S60: 1528.447761 | T60: 87.10447761 | U60: 126238.2147 | V60: 30278.21389 | W60: 14309.71005 | X60: 100478.123 | Y60: 271304.2617 | Z60: 9407.66589 | AA60: 18815.33178 | AB60: 908869.2765 | AC60: 1817738.553 | AD60: 13565.21308 | AE60: 27130.42617 | AG60: 11442.03 | AH60: 231 | AI60: Green | AK60: Chichester | AP60: Broxtowe | AQ60: East Midlands | AZ60: Chichester | BA60: Chichester | BH60: Chichester | BI60: 115527
A61: Chiltern | B61: 916 | C61: 52 | D61: 75654.66588 | E61: 18145.75848 | F61: 8575.821 | G61: 60216.62172 | H61: 162592.8671 | I61: 1.730226739 | J61: South East | K61: 2.05 | L61: 102406 | M61: 5837 | N61: 8457960.387 | O61: 2028640.331 | P61: 958750.5735 | Q61: 6732034.24 | R61: 18177385.53 | S61: 1528.447761 | T61: 87.10447761 | U61: 126238.2147 | V61: 30278.21389 | W61: 14309.71005 | X61: 100478.123 | Y61: 271304.2617 | Z61: 8129.643354 | AA61: 16259.28671 | AB61: 908869.2765 | AC61: 1817738.553 | AD61: 13565.21308 | AE61: 27130.42617 | AG61: 4904.37 | AH61: 324 | AI61: Green | AK61: Chiltern | AP61: Charnwood | AQ61: East Midlands | AZ61: Chiltern | BA61: Chiltern | BH61: Chiltern | BI61: 93972
A62: Chorley | B62: 1231 | C62: 70 | D62: 101671.2813 | E62: 24385.83918 | F62: 11524.92975 | G62: 80924.30277 | H62: 218506.353 | I62: 1.957819429 | J62: North West | K62: 2.13 | L62: 85606 | M62: 4880 | N62: 7070407.563 | O62: 1695836.027 | P62: 801464.7735 | Q62: 5627624.584 | R62: 15195332.95 | S62: 2195.025641 | T62: 125.1538462 | U62: 181292.5016 | V62: 43482.97504 | W62: 20550.37881 | X62: 144298.0663 | Y62: 389623.9217 | Z62: 10925.31765 | AA62: 21850.6353 | AB62: 759766.6473 | AC62: 1519533.295 | AD62: 19481.19609 | AE62: 38962.39217 | AG62: 13933.76 | AH62: 186 | AI62: Amber | AK62: Chorley | AP62: Chesterfield | AQ62: East Midlands | AZ62: Chorley | BA62: Chorley | BH62: Chorley | BI62: 111607
A63: Christchurch | B63: 378 | C63: 22 | D63: 31219.93854 | E63: 7488.09684 | F63: 3538.9305 | G63: 24849.21726 | H63: 67096.18314 | I63: 1.372250397 | J63: South West | K63: 1.91 | L63: 58403 | M63: 3329 | N63: 4823645.689 | O63: 1156950.581 | P63: 546783.4868 | Q63: 3839335.544 | R63: 10366715.3 | S63: 1622.305556 | T63: 92.52777778 | U63: 133990.158 | V63: 32137.51615 | W63: 15188.43019 | X63: 106648.2096 | Y63: 287964.3139 | Z63: 3354.809157 | AA63: 6709.618314 | AB63: 518335.7651 | AC63: 1036671.53 | AD63: 14398.2157 | AE63: 28796.43139 | AG63: 10427.12 | AH63: 259 | AI63: Green | AK63: Christchurch | AP63: Corby | AQ63: East Midlands | AZ63: Christchurch | BA63: Christchurch | BH63: Christchurch | BI63: 48895
A64: City of London | B64: 61 | C64: 3 | D64: 5038.13823 | E64: 1208.39658 | F64: 571.09725 | G64: 4010.05887 | H64: 10827.69093 | I64: 1.341388866 | J64: London | K64: 2.65 | L64: 127399 | M64: 7262 | N64: 10522192.99 | O64: 2523746.162 | P64: 1192741.288 | Q64: 8375040.819 | R64: 22613721.26 | S64: 3860.575758 | T64: 220 | U64: 318854.333 | V64: 76477.15643 | W64: 36143.67539 | X64: 253789.1157 | Y64: 685264.2806 | Z64: 541.3845465 | AA64: 1082.769093 | AB64: 1130686.063 | AC64: 2261372.126 | AD64: 34263.21403 | AE64: 68526.42806 | AG64: 11769.01 | AH64: 226 | AI64: Green | AK64: City of London | AP64: Daventry | AQ64: East Midlands | AZ64: City of London | BA64: City of London | BH64: City of London | BI64: 8072
A65: Colchester | B65: 2229 | C65: 127 | D65: 184098.5265 | E65: 44155.99962 | F65: 20868.45525 | G65: 146531.4954 | H65: 395654.4768 | I65: 2.192963512 | J65: East | K65: 2.12 | L65: 71855 | M65: 4096 | N65: 5934679.058 | O65: 1423431.742 | P65: 672724.4738 | Q65: 4723652.133 | R65: 12754487.41 | S65: 1528.829787 | T65: 87.12765957 | U65: 126269.7672 | V65: 30285.78174 | W65: 14313.28668 | X65: 100503.2369 | Y65: 271372.0725 | Z65: 19782.72384 | AA65: 39565.44768 | AB65: 637724.3703 | AC65: 1275448.741 | AD65: 13568.60362 | AE65: 27137.20725 | AG65: 14032.56 | AH65: 185 | AI65: Amber | AK65: Colchester | AP65: Derby UA | AQ65: East Midlands | AZ65: Colchester | BA65: Colchester | BH65: Colchester | BI65: 180420
A66: Copeland | B66: 677 | C66: 39 | D66: 55915.07511 | E66: 13411.22106 | F66: 6338.24325 | G66: 44505.07959 | H66: 120169.619 | I66: 1.720838856 | J66: North West | K66: 2.13 | L66: 85606 | M66: 4880 | N66: 7070407.563 | O66: 1695836.027 | P66: 801464.7735 | Q66: 5627624.584 | R66: 15195332.95 | S66: 2195.025641 | T66: 125.1538462 | U66: 181292.5016 | V66: 43482.97504 | W66: 20550.37881 | X66: 144298.0663 | Y66: 389623.9217 | Z66: 6008.480951 | AA66: 12016.9619 | AB66: 759766.6473 | AC66: 1519533.295 | AD66: 19481.19609 | AE66: 38962.39217 | AG66: 20033.16 | AH66: 63 | AI66: Red | AK66: Copeland | AP66: Derbyshire | AQ66: East Midlands | AZ66: Copeland | BA66: Copeland | BH66: Copeland | BI66: 69832
A67: Corby | B67: 913 | C67: 52 | D67: 75406.88859 | E67: 18086.32914 | F67: 8547.73425 | G67: 60019.40571 | H67: =SUM(D67:G67) -> 162060.3577 | I67: 2.47669954 | J67: East Midlands | K67: 2.04 | L67: 53170 | M67: 3031 | N67: 4391439.503 | O67: 1053286.003 | P67: 497790.8325 | Q67: 3495325.084 | R67: 9437841.422 | S67: 1329.25 | T67: 75.8 | U67: 109785.9876 | V67: 26332.15007 | W67: 12444.77081 | X67: 87383.1271 | Y67: 235946.0356 | Z67: 8103.017885 | AA67: 16206.03577 | AB67: 471892.0711 | AC67: 943784.1422 | AD67: 11797.30178 | AE67: 23594.60356 | AG67: 19863.39 | AH67: 75 | AI67: Red | AK67: Corby | AP67: Derbyshire Dales | AQ67: East Midlands | AZ67: Corby | BA67: Corby | BH67: Corby | BI67: 65434
A68: Cornwall UA and Isles of Scilly UA | B68: 5447 | C68: 310 | D68: 449880.9662 | E68: 107903.8717 | F68: 50996.17575 | G68: 358078.5355 | H68: 966859.5491 | I68: 1.772964415 | J68: South West | K68: 1.91 | L68: 58403 | M68: 3329 | N68: 4823645.689 | O68: 1156950.581 | P68: 546783.4868 | Q68: 3839335.544 | R68: 10366715.3 | S68: 1622.305556 | T68: 92.52777778 | U68: 133990.158 | V68: 32137.51615 | W68: 15188.43019 | X68: 106648.2096 | Y68: 287964.3139 | Z68: 48342.97746 | AA68: 96685.95491 | AB68: 518335.7651 | AC68: 1036671.53 | AD68: 14398.2157 | AE68: 28796.43139 | AG68: 19922.89 | AH68: 68 | AI68: Red | AK68: Cornwall UA and Isles of Scilly UA | AP68: East Lindsey | AQ68: East Midlands | AZ68: Cornwall UA and Isles of Scilly UA | BA68: Cornwall | BH68: Cornwall UA and Isles of Scilly UA | BI68: 545335
A69: Cotswold | B69: 681 | C69: 39 | D69: 56245.44483 | E69: 13490.46018 | F69: 6375.69225 | G69: 44768.03427 | H69: 120879.6315 | I69: 1.42821262 | J69: South West | K69: 1.91 | L69: 58403 | M69: 3329 | N69: 4823645.689 | O69: 1156950.581 | P69: 546783.4868 | Q69: 3839335.544 | R69: 10366715.3 | S69: 1622.305556 | T69: 92.52777778 | U69: 133990.158 | V69: 32137.51615 | W69: 15188.43019 | X69: 106648.2096 | Y69: 287964.3139 | Z69: 6043.981577 | AA69: 12087.96315 | AB69: 518335.7651 | AC69: 1036671.53 | AD69: 14398.2157 | AE69: 28796.43139 | AG69: 9743.66 | AH69: 267 | AI69: Green | AK69: Cotswold | AP69: East Northamptonshire | AQ69: East Midlands | AZ69: Cotswold | BA69: Cotswold | BH69: Cotswold | BI69: 84637
A70: County Durham UA | B70: 5361 | C70: 306 | D70: 442778.0172 | E70: 106200.2306 | F70: 50191.02225 | G70: 352425.0099 | H70: 951594.2799 | I70: 1.837859989 | J70: North East | K70: 1.93 | L70: 28456 | M70: 1622 | N70: 2350250.188 | O70: 563707.0997 | P70: 266412.186 | Q70: 1870659.594 | R70: 5051029.067 | S70: 2371.333333 | T70: 135.25 | U70: 195854.1823 | V70: 46975.59164 | W70: 22201.0155 | X70: 155888.2995 | Y70: 420919.0889 | Z70: 47579.714 | AA70: 95159.42799 | AB70: 252551.4534 | AC70: 505102.9067 | AD70: 21045.95445 | AE70: 42091.90889 | AG70: 19605.69 | AH70: 81 | AI70: Red | AK70: County Durham UA | AP70: Erewash | AQ70: East Midlands | AZ70: County Durham UA | BA70: County Durham | BH70: County Durham UA | BI70: 517773
A71: Coventry | B71: 4572 | C71: 261 | D71: 377612.59 | E71: 90570.31416 | F71: 42804.207 | G71: 300557.1992 | H71: 811544.3104 | I71: 2.40508882 | J71: West Midlands | K71: 2.18 | L71: 70123 | M71: 3997 | N71: 5791628.969 | O71: 1389121.203 | P71: 656509.0567 | Q71: 4609792.756 | R71: 12447051.98 | S71: 2337.433333 | T71: 133.2333333 | U71: 193054.299 | V71: 46304.0401 | W71: 21883.63522 | X71: 153659.7585 | Y71: 414901.7328 | Z71: 40577.21552 | AA71: 81154.43104 | AB71: 622352.5992 | AC71: 1244705.198 | AD71: 20745.08664 | AE71: 41490.17328 | AG71: 20298.45 | AH71: 60 | AI71: Red | AK71: Coventry | AP71: Gedling | AQ71: East Midlands | AZ71: Coventry | BA71: Coventry | BH71: Coventry | BI71: 337428
A72: Craven | B72: 441 | C72: 25 | D72: 36423.26163 | E72: 8736.11298 | F72: 4128.75225 | G72: 28990.75347 | H72: 78278.88033 | I72: 1.405466826 | J72: Yorkshire and the Humber | K72: 2.12 | L72: 64078 | M72: 3652 | N72: 5292357.73 | O72: 1269371.083 | P72: 599914.2555 | Q72: 4212402.496 | R72: 11374045.56 | S72: 3051.333333 | T72: 174 | U72: 252017.0347 | V72: 60446.24204 | W72: 28567.3455 | X72: 200590.5951 | Y72: 541621.2173 | Z72: 3913.944016 | AA72: 7827.888033 | AB72: 568702.2782 | AC72: 1137404.556 | AD72: 27081.06087 | AE72: 54162.12173 | AG72: 10727.3 | AH72: 250 | AI72: Green | AK72: Craven | AP72: Harborough | AQ72: East Midlands | AZ72: Craven | BA72: Craven | BH72: Craven | BI72: 55696
A73: Crawley | B73: 1618 | C73: 92 | D73: 133634.5517 | E73: 32052.22404 | F73: 15148.1205 | G73: 106365.1681 | H73: 287200.0643 | I73: 2.613689691 | J73: South East | K73: 2.05 | L73: 102406 | M73: 5837 | N73: 8457960.387 | O73: 2028640.331 | P73: 958750.5735 | Q73: 6732034.24 | R73: 18177385.53 | S73: 1528.447761 | T73: 87.10447761 | U73: 126238.2147 | V73: 30278.21389 | W73: 14309.71005 | X73: 100478.123 | Y73: 271304.2617 | Z73: 14360.00322 | AA73: 28720.00643 | AB73: 908869.2765 | AC73: 1817738.553 | AD73: 13565.21308 | AE73: 27130.42617 | AG73: 15613.8 | AH73: 151 | AI73: Amber | AK73: Crawley | AP73: High Peak | AQ73: East Midlands | AZ73: Crawley | BA73: Crawley | BH73: Crawley | BI73: 109883
A74: Croydon | B74: 5645 | C74: 322 | D74: 466234.2673 | E74: 111826.2081 | F74: 52849.90125 | G74: 371094.7921 | H74: 1002005.169 | I74: 2.664623893 | J74: London | K74: 2.65 | L74: 127399 | M74: 7262 | N74: 10522192.99 | O74: 2523746.162 | P74: 1192741.288 | Q74: 8375040.819 | R74: 22613721.26 | S74: 3860.575758 | T74: 220 | U74: 318854.333 | V74: 76477.15643 | W74: 36143.67539 | X74: 253789.1157 | Y74: 685264.2806 | Z74: 50100.25844 | AA74: 100200.5169 | AB74: 1130686.063 | AC74: 2261372.126 | AD74: 34263.21403 | AE74: 68526.42806 | AG74: 19008.44 | AH74: 91 | AI74: Red | AK74: Croydon | AP74: Hinckley and Bosworth | AQ74: East Midlands | AZ74: Croydon | BA74: Croydon | BH74: Croydon | BI74: 376040
A75: Cumbria | B75: 4760 | C75: 271 | D75: 393139.9668 | E75: 94294.5528 | F75: 44564.31 | G75: 312916.0692 | H75: 844914.8988 | I75: 1.697045636 | J75: North West | K75: 2.13 | L75: 85606 | M75: 4880 | N75: 7070407.563 | O75: 1695836.027 | P75: 801464.7735 | Q75: 5627624.584 | R75: 15195332.95 | S75: 2195.025641 | T75: 125.1538462 | U75: 181292.5016 | V75: 43482.97504 | W75: 20550.37881 | X75: 144298.0663 | Y75: 389623.9217 | Z75: 42245.74494 | AA75: 84491.48988 | AB75: 759766.6473 | AC75: 1519533.295 | AD75: 19481.19609 | AE75: 38962.39217 | AK75: Cumbria | AP75: Kettering | AQ75: East Midlands | AZ75: Cumbria | BH75: Cumbria | BI75: 497874
A76: Dacorum | B76: 1901 | C76: 108 | D76: 157008.2094 | E76: 37658.39178 | F76: 17797.63725 | G76: 124969.2117 | H76: 337433.4501 | I76: 2.253447287 | J76: East | K76: 2.12 | L76: 71855 | M76: 4096 | N76: 5934679.058 | O76: 1423431.742 | P76: 672724.4738 | Q76: 4723652.133 | R76: 12754487.41 | S76: 1528.829787 | T76: 87.12765957 | U76: 126269.7672 | V76: 30285.78174 | W76: 14313.28668 | X76: 100503.2369 | Y76: 271372.0725 | Z76: 16871.67251 | AA76: 33743.34501 | AB76: 637724.3703 | AC76: 1275448.741 | AD76: 13568.60362 | AE76: 27137.20725 | AG76: 10266.72 | AH76: 260 | AI76: Green | AK76: Dacorum | AP76: Leicester UA | AQ76: East Midlands | AZ76: Dacorum | BA76: Dacorum | BH76: Dacorum | BI76: 149741
A77: Darlington UA | B77: 1226 | C77: 70 | D77: 101258.3192 | E77: 24286.79028 | F77: 11478.1185 | G77: 80595.60942 | H77: 217618.8374 | I77: 2.065341496 | J77: North East | K77: 1.93 | L77: 28456 | M77: 1622 | N77: 2350250.188 | O77: 563707.0997 | P77: 266412.186 | Q77: 1870659.594 | R77: 5051029.067 | S77: 2371.333333 | T77: 135.25 | U77: 195854.1823 | V77: 46975.59164 | W77: 22201.0155 | X77: 155888.2995 | Y77: 420919.0889 | Z77: 10880.94187 | AA77: 21761.88374 | AB77: 252551.4534 | AC77: 505102.9067 | AD77: 21045.95445 | AE77: 42091.90889 | AG77: 17423.32 | AH77: 122 | AI77: Amber | AK77: Darlington UA | AP77: Leicestershire | AQ77: East Midlands | AZ77: Darlington UA | BA77: Darlington | BH77: Darlington UA | BI77: 105367
A78: Dartford | B78: 1494 | C78: 85 | D78: 123393.0904 | E78: 29595.81132 | F78: 13987.2015 | G78: 98213.57298 | H78: 265189.6762 | I78: 2.593947965 | J78: South East | K78: 2.05 | L78: 102406 | M78: 5837 | N78: 8457960.387 | O78: 2028640.331 | P78: 958750.5735 | Q78: 6732034.24 | R78: 18177385.53 | S78: 1528.447761 | T78: 87.10447761 | U78: 126238.2147 | V78: 30278.21389 | W78: 14309.71005 | X78: 100478.123 | Y78: 271304.2617 | Z78: 13259.48381 | AA78: 26518.96762 | AB78: 908869.2765 | AC78: 1817738.553 | AD78: 13565.21308 | AE78: 27130.42617 | AG78: 14833.84 | AH78: 170 | AI78: Amber | AK78: Dartford | AP78: Lincoln | AQ78: East Midlands | AZ78: Dartford | BA78: Dartford | BH78: Dartford | BI78: 102234
A79: Daventry | B79: 706 | C79: 40 | D79: 58310.25558 | E79: 13985.70468 | F79: 6609.7485 | G79: 46411.50102 | H79: 125317.2098 | I79: 1.585571256 | J79: East Midlands | K79: 2.04 | L79: 53170 | M79: 3031 | N79: 4391439.503 | O79: 1053286.003 | P79: 497790.8325 | Q79: 3495325.084 | R79: 9437841.422 | S79: 1329.25 | T79: 75.8 | U79: 109785.9876 | V79: 26332.15007 | W79: 12444.77081 | X79: 87383.1271 | Y79: 235946.0356 | Z79: 6265.860489 | AA79: 12531.72098 | AB79: 471892.0711 | AC79: 943784.1422 | AD79: 11797.30178 | AE79: 23594.60356 | AG79: 11204.34 | AH79: 238 | AI79: Green | AK79: Daventry | AP79: Lincolnshire | AQ79: East Midlands | AZ79: Daventry | BA79: Daventry | BH79: Daventry | BI79: 79036
A80: Derby UA | B80: 3512 | C80: 200 | D80: 290064.6142 | E80: 69571.94736 | F80: 32880.222 | G80: 230874.209 | H80: 623390.9926 | I80: 2.469237047 | J80: East Midlands | K80: 2.04 | L80: 53170 | M80: 3031 | N80: 4391439.503 | O80: 1053286.003 | P80: 497790.8325 | Q80: 3495325.084 | R80: 9437841.422 | S80: 1329.25 | T80: 75.8 | U80: 109785.9876 | V80: 26332.15007 | W80: 12444.77081 | X80: 87383.1271 | Y80: 235946.0356 | Z80: 31169.54963 | AA80: 62339.09926 | AB80: 471892.0711 | AC80: 943784.1422 | AD80: 11797.30178 | AE80: 23594.60356 | AG80: 19381.47 | AH80: 84 | AI80: Red | AK80: Derby UA | AP80: Mansfield | AQ80: East Midlands | AZ80: Derby UA | BA80: Derby | BH80: Derby UA | BI80: 252463
A81: Derbyshire | B81: 7866 | C81: 448 | D81: 649672.0544 | E81: 155823.7295 | F81: 73643.4585 | G81: 517100.3782 | H81: 1396239.621 | I81: 1.790500716 | J81: East Midlands | K81: 2.04 | L81: 53170 | M81: 3031 | N81: 4391439.503 | O81: 1053286.003 | P81: 497790.8325 | Q81: 3495325.084 | R81: 9437841.422 | S81: 1329.25 | T81: 75.8 | U81: 109785.9876 | V81: 26332.15007 | W81: 12444.77081 | X81: 87383.1271 | Y81: 235946.0356 | Z81: 69811.98103 | AA81: 139623.9621 | AB81: 471892.0711 | AC81: 943784.1422 | AD81: 11797.30178 | AE81: 23594.60356 | AK81: Derbyshire | AP81: Melton | AQ81: East Midlands | AZ81: Derbyshire | BH81: Derbyshire | BI81: 779804
A82: Derbyshire Dales | B82: 525 | C82: 30 | D82: 43361.02575 | E82: 10400.1345 | F82: 4915.18125 | G82: 34512.80175 | H82: 93189.14325 | I82: 1.307348989 | J82: East Midlands | K82: 2.04 | L82: 53170 | M82: 3031 | N82: 4391439.503 | O82: 1053286.003 | P82: 497790.8325 | Q82: 3495325.084 | R82: 9437841.422 | S82: 1329.25 | T82: 75.8 | U82: 109785.9876 | V82: 26332.15007 | W82: 12444.77081 | X82: 87383.1271 | Y82: 235946.0356 | Z82: 4659.457163 | AA82: 9318.914325 | AB82: 471892.0711 | AC82: 943784.1422 | AD82: 11797.30178 | AE82: 23594.60356 | AG82: 10467.66 | AH82: 258 | AI82: Green | AK82: Derbyshire Dales | AP82: Newark and Sherwood | AQ82: East Midlands | AZ82: Derbyshire Dales | BA82: Derbyshire Dales | BH82: Derbyshire Dales | BI82: 71281
A83: Devon | B83: 7153 | C83: 408 | D83: 590783.6518 | E83: 141699.3563 | F83: 66968.17425 | G83: 470228.7065 | H83: 1269679.889 | I83: 1.659057325 | J83: South West | K83: 1.91 | L83: 58403 | M83: 3329 | N83: 4823645.689 | O83: 1156950.581 | P83: 546783.4868 | Q83: 3839335.544 | R83: 10366715.3 | S83: 1622.305556 | T83: 92.52777778 | U83: 133990.158 | V83: 32137.51615 | W83: 15188.43019 | X83: 106648.2096 | Y83: 287964.3139 | Z83: 63483.99444 | AA83: 126967.9889 | AB83: 518335.7651 | AC83: 1036671.53 | AD83: 14398.2157 | AE83: 28796.43139 | AK83: Devon | AP83: North East Derbyshire | AQ83: East Midlands | AZ83: Devon | BH83: Devon | BI83: 765302
A84: Doncaster | B84: 3561 | C84: 203 | D84: 294111.6432 | E84: 70542.62658 | F84: 33338.97225 | G84: 234095.4039 | H84: 632088.6459 | I84: 2.07797441 | J84: Yorkshire and the Humber | K84: 2.12 | L84: 64078 | M84: 3652 | N84: 5292357.73 | O84: 1269371.083 | P84: 599914.2555 | Q84: 4212402.496 | R84: 11374045.56 | S84: 3051.333333 | T84: 174 | U84: 252017.0347 | V84: 60446.24204 | W84: 28567.3455 | X84: 200590.5951 | Y84: 541621.2173 | Z84: 31604.4323 | AA84: 63208.86459 | AB84: 568702.2782 | AC84: 1137404.556 | AD84: 27081.06087 | AE84: 54162.12173 | AG84: 21067.75 | AH84: 48 | AI84: Red | AK84: Doncaster | AP84: North Kesteven | AQ84: East Midlands | AZ84: Doncaster | BA84: Doncaster | BH84: Doncaster | BI84: 304185
A85: Dorset | B85: 3482 | C85: 198 | D85: 287586.8413 | E85: 68977.65396 | F85: 32599.3545 | G85: 228902.0489 | H85: 618065.8987 | I85: 1.477675607 | J85: South West | K85: 1.91 | L85: 58403 | M85: 3329 | N85: 4823645.689 | O85: 1156950.581 | P85: 546783.4868 | Q85: 3839335.544 | R85: 10366715.3 | S85: 1622.305556 | T85: 92.52777778 | U85: 133990.158 | V85: 32137.51615 | W85: 15188.43019 | X85: 106648.2096 | Y85: 287964.3139 | Z85: 30903.29493 | AA85: 61806.58987 | AB85: 518335.7651 | AC85: 1036671.53 | AD85: 14398.2157 | AE85: 28796.43139 | AK85: Dorset | AP85: North West Leicestershire | AQ85: East Midlands | AZ85: Dorset | BH85: Dorset | BI85: 418269
A86: Dover | B86: 1170 | C86: 67 | D86: 96633.1431 | E86: 23177.4426 | F86: 10953.8325 | G86: 76914.2439 | H86: 207678.6621 | I86: 1.83679145 | J86: South East | K86: 2.05 | L86: 102406 | M86: 5837 | N86: 8457960.387 | O86: 2028640.331 | P86: 958750.5735 | Q86: 6732034.24 | R86: 18177385.53 | S86: 1528.447761 | T86: 87.10447761 | U86: 126238.2147 | V86: 30278.21389 | W86: 14309.71005 | X86: 100478.123 | Y86: 271304.2617 | Z86: 10383.93311 | AA86: 20767.86621 | AB86: 908869.2765 | AC86: 1817738.553 | AD86: 13565.21308 | AE86: 27130.42617 | AG86: 17621.37 | AH86: 116 | AI86: Amber | AK86: Dover | AP86: Northampton | AQ86: East Midlands | AZ86: Dover | BA86: Dover | BH86: Dover | BI86: 113066
A87: Dudley | B87: 3758 | C87: 214 | D87: 310382.3519 | E87: 74445.15324 | F87: 35183.3355 | G87: 247045.9219 | H87: 667056.7625 | I87: 2.112282694 | J87: West Midlands | K87: 2.18 | L87: 70123 | M87: 3997 | N87: 5791628.969 | O87: 1389121.203 | P87: 656509.0567 | Q87: 4609792.756 | R87: 12447051.98 | S87: 2337.433333 | T87: 133.2333333 | U87: 193054.299 | V87: 46304.0401 | W87: 21883.63522 | X87: 153659.7585 | Y87: 414901.7328 | Z87: 33352.83813 | AA87: 66705.67625 | AB87: 622352.5992 | AC87: 1244705.198 | AD87: 20745.08664 | AE87: 41490.17328 | AG87: 17514.88 | AH87: 118 | AI87: Amber | AK87: Dudley | AP87: Northamptonshire | AQ87: East Midlands | AZ87: Dudley | BA87: Dudley | BH87: Dudley | BI87: 315799
A88: Ealing | B88: 5474 | C88: 312 | D88: 452110.9618 | E88: 108438.7357 | F88: 51248.9565 | G88: 359853.4796 | H88: 971652.1336 | I88: 2.84010819 | J88: London | K88: 2.65 | L88: 127399 | M88: 7262 | N88: 10522192.99 | O88: 2523746.162 | P88: 1192741.288 | Q88: 8375040.819 | R88: 22613721.26 | S88: 3860.575758 | T88: 220 | U88: 318854.333 | V88: 76477.15643 | W88: 36143.67539 | X88: 253789.1157 | Y88: 685264.2806 | Z88: 48582.60668 | AA88: 97165.21336 | AB88: 1130686.063 | AC88: 2261372.126 | AD88: 34263.21403 | AE88: 68526.42806 | AG88: 19304.05 | AH88: 87 | AI88: Red | AK88: Ealing | AP88: Nottingham UA | AQ88: East Midlands | AZ88: Ealing | BA88: Ealing | BH88: Ealing | BI88: 342118
A89: EAST | B89: 71855 | C89: 4096 | D89: 5934679.058 | E89: 1423431.742 | F89: 672724.4738 | G89: 4723652.133 | H89: 12754487.41 | I89: 2.119254857 | J89: East | K89: 2.12 | L89: 71855 | M89: 4096 | N89: 5934679.058 | O89: 1423431.742 | P89: 672724.4738 | Q89: 4723652.133 | R89: 12754487.41 | S89: 1528.829787 | T89: 87.12765957 | U89: 126269.7672 | V89: 30285.78174 | W89: 14313.28668 | X89: 100503.2369 | Y89: 271372.0725 | Z89: 637724.3703 | AA89: 1275448.741 | AB89: 637724.3703 | AC89: 1275448.741 | AD89: 13568.60362 | AE89: 27137.20725 | AF89: =K89 -> 2.12 | AK89: East Cambridgeshire | AP89: Nottinghamshire | AQ89: East Midlands | AZ89: East Cambridgeshire | BA89: East Cambridgeshire | BH89: EAST | BI89: 6018383
A90: East Cambridgeshire | B90: 1035 | C90: 59 | D90: 85483.16505 | E90: 20503.1223 | F90: 9689.92875 | G90: 68039.52345 | H90: 183715.7396 | I90: 2.119348671 | J90: East | K90: 2.12 | L90: 71855 | M90: 4096 | N90: 5934679.058 | O90: 1423431.742 | P90: 672724.4738 | Q90: 4723652.133 | R90: 12754487.41 | S90: 1528.829787 | T90: 87.12765957 | U90: 126269.7672 | V90: 30285.78174 | W90: 14313.28668 | X90: 100503.2369 | Y90: 271372.0725 | Z90: 9185.786978 | AA90: 18371.57396 | AB90: 637724.3703 | AC90: 1275448.741 | AD90: 13568.60362 | AE90: 27137.20725 | AG90: 10522.67 | AH90: 255 | AI90: Green | AK90: East Devon | AP90: Oadby and Wigston | AQ90: East Midlands | AZ90: East Devon | BA90: East Devon | BH90: East Cambridgeshire | BI90: 86685
A91: East Devon | B91: 1166 | C91: 66 | D91: 96302.77338 | E91: 23098.20348 | F91: 10916.3835 | G91: 76651.28922 | H91: 206968.6496 | I91: 1.517654755 | J91: South West | K91: 1.91 | L91: 58403 | M91: 3329 | N91: 4823645.689 | O91: 1156950.581 | P91: 546783.4868 | Q91: 3839335.544 | R91: 10366715.3 | S91: 1622.305556 | T91: 92.52777778 | U91: 133990.158 | V91: 32137.51615 | W91: 15188.43019 | X91: 106648.2096 | Y91: 287964.3139 | Z91: 10348.43248 | AA91: 20696.86496 | AB91: 518335.7651 | AC91: 1036671.53 | AD91: 14398.2157 | AE91: 28796.43139 | AG91: 11004.67 | AH91: 246 | AI91: Green | AK91: East Dorset | AP91: Rushcliffe | AQ91: East Midlands | AZ91: East Dorset | BA91: East Dorset | BH91: East Devon | BI91: 136374
A92: East Dorset | B92: 662 | C92: 38 | D92: 54676.18866 | E92: 13114.07436 | F92: 6197.8095 | G92: 43518.99954 | H92: 117507.0721 | I92: 1.332491235 | J92: South West | K92: 1.91 | L92: 58403 | M92: 3329 | N92: 4823645.689 | O92: 1156950.581 | P92: 546783.4868 | Q92: 3839335.544 | R92: 10366715.3 | S92: 1622.305556 | T92: 92.52777778 | U92: 133990.158 | V92: 32137.51615 | W92: 15188.43019 | X92: 106648.2096 | Y92: 287964.3139 | Z92: 5875.353603 | AA92: 11750.70721 | AB92: 518335.7651 | AC92: 1036671.53 | AD92: 14398.2157 | AE92: 28796.43139 | AG92: 7402.8 | AH92: 303 | AI92: Green | AK92: East Hampshire | AP92: Rutland UA | AQ92: East Midlands | AZ92: East Hampshire | BA92: East Hampshire | BH92: East Dorset | BI92: 88186
A93: East Hampshire | B93: 1117 | C93: 64 | D93: 92255.74431 | E93: 22127.52426 | F93: 10457.63325 | G93: 73430.09439 | H93: 198270.9962 | I93: 1.687656905 | J93: South East | K93: 2.05 | L93: 102406 | M93: 5837 | N93: 8457960.387 | O93: 2028640.331 | P93: 958750.5735 | Q93: 6732034.24 | R93: 18177385.53 | S93: 1528.447761 | T93: 87.10447761 | U93: 126238.2147 | V93: 30278.21389 | W93: 14309.71005 | X93: 100478.123 | Y93: 271304.2617 | Z93: 9913.549811 | AA93: 19827.09962 | AB93: 908869.2765 | AC93: 1817738.553 | AD93: 13565.21308 | AE93: 27130.42617 | AG93: 6719.2 | AH93: 308 | AI93: Green | AK93: East Hertfordshire | AP93: South Derbyshire | AQ93: East Midlands | AZ93: East Hertfordshire | BA93: East Hertfordshire | BH93: East Hampshire | BI93: 117483
A94: East Hertfordshire | B94: 1625 | C94: 93 | D94: 134212.6988 | E94: 32190.8925 | F94: 15213.65625 | G94: 106825.3387 | H94: 288442.5862 | I94: 2.016784852 | J94: East | K94: 2.12 | L94: 71855 | M94: 4096 | N94: 5934679.058 | O94: 1423431.742 | P94: 672724.4738 | Q94: 4723652.133 | R94: 12754487.41 | S94: 1528.829787 | T94: 87.12765957 | U94: 126269.7672 | V94: 30285.78174 | W94: 14313.28668 | X94: 100503.2369 | Y94: 271372.0725 | Z94: 14422.12931 | AA94: 28844.25863 | AB94: 637724.3703 | AC94: 1275448.741 | AD94: 13568.60362 | AE94: 27137.20725 | AG94: 6247.35 | AH94: 315 | AI94: Green | AK94: East Lindsey | AP94: South Holland | AQ94: East Midlands | AZ94: East Lindsey | BA94: East Lindsey | BH94: East Hertfordshire | BI94: 143021
A95: East Lindsey | B95: 1202 | C95: 69 | D95: 99276.10086 | E95: 23811.35556 | F95: 11253.4245 | G95: 79017.88134 | H95: 213358.7623 | I95: 1.550313263 | J95: East Midlands | K95: 2.04 | L95: 53170 | M95: 3031 | N95: 4391439.503 | O95: 1053286.003 | P95: 497790.8325 | Q95: 3495325.084 | R95: 9437841.422 | S95: 1329.25 | T95: 75.8 | U95: 109785.9876 | V95: 26332.15007 | W95: 12444.77081 | X95: 87383.1271 | Y95: 235946.0356 | Z95: 10667.93811 | AA95: 21335.87623 | AB95: 471892.0711 | AC95: 943784.1422 | AD95: 11797.30178 | AE95: 23594.60356 | AG95: 21873.87 | AH95: 33 | AI95: Red | AK95: East Northamptonshire | AP95: South Kesteven | AQ95: East Midlands | AZ95: East Northamptonshire | BA95: East Northamptonshire | BH95: East Lindsey | BI95: 137623
A96: EAST MIDLANDS | B96: 53170 | C96: 3031 | D96: 4391439.503 | E96: 1053286.003 | F96: 497790.8325 | G96: 3495325.084 | H96: 9437841.422 | I96: 2.035152233 | J96: East Midlands | K96: 2.04 | L96: 53170 | M96: 3031 | N96: 4391439.503 | O96: 1053286.003 | P96: 497790.8325 | Q96: 3495325.084 | R96: 9437841.422 | S96: 1329.25 | T96: 75.8 | U96: 109785.9876 | V96: 26332.15007 | W96: 12444.77081 | X96: 87383.1271 | Y96: 235946.0356 | Z96: 471892.0711 | AA96: 943784.1422 | AB96: 471892.0711 | AC96: 943784.1422 | AD96: 11797.30178 | AE96: 23594.60356 | AF96: =K96 -> 2.04 | AK96: East Riding of Yorkshire UA | AP96: South Northamptonshire | AQ96: East Midlands | AZ96: East Riding of Yorkshire UA | BA96: East Riding of Yorkshire | BH96: EAST MIDLANDS | BI96: 4637413
A97: East Northamptonshire | B97: 858 | C97: 49 | D97: 70864.30494 | E97: 16996.79124 | F97: 8032.8105 | G97: 56403.77886 | H97: 152297.6855 | I97: 1.71367456 | J97: East Midlands | K97: 2.04 | L97: 53170 | M97: 3031 | N97: 4391439.503 | O97: 1053286.003 | P97: 497790.8325 | Q97: 3495325.084 | R97: 9437841.422 | S97: 1329.25 | T97: 75.8 | U97: 109785.9876 | V97: 26332.15007 | W97: 12444.77081 | X97: 87383.1271 | Y97: 235946.0356 | Z97: 7614.884277 | AA97: 15229.76855 | AB97: 471892.0711 | AC97: 943784.1422 | AD97: 11797.30178 | AE97: 23594.60356 | AG97: 11998.69 | AH97: 221 | AI97: Green | AK97: East Staffordshire | AP97: Wellingborough | AQ97: East Midlands | AZ97: East Staffordshire | BA97: East Staffordshire | BH97: East Northamptonshire | BI97: 88872
A98: East Riding of Yorkshire UA | B98: 3009 | C98: 172 | D98: 248520.6219 | E98: 59607.62802 | F98: 28171.01025 | G98: 197807.658 | H98: 534106.9182 | I98: 1.584346345 | J98: Yorkshire and the Humber | K98: 2.12 | L98: 64078 | M98: 3652 | N98: 5292357.73 | O98: 1269371.083 | P98: 599914.2555 | Q98: 4212402.496 | R98: 11374045.56 | S98: 3051.333333 | T98: 174 | U98: 252017.0347 | V98: 60446.24204 | W98: 28567.3455 | X98: 200590.5951 | Y98: 541621.2173 | Z98: 26705.34591 | AA98: 53410.69182 | AB98: 568702.2782 | AC98: 1137404.556 | AD98: 27081.06087 | AE98: 54162.12173 | AG98: 12369.24 | AH98: 215 | AI98: Amber | AK98: East Sussex | AP98: West Lindsey | AQ98: East Midlands | AZ98: East Sussex | BH98: East Riding of Yorkshire UA | BI98: 337115
A99: East Staffordshire | B99: 1438 | C99: 82 | D99: 118767.9143 | E99: 28486.46364 | F99: 13462.9155 | G99: 94532.20746 | H99: 255249.5009 | I99: 2.206837977 | J99: West Midlands | K99: 2.18 | L99: 70123 | M99: 3997 | N99: 5791628.969 | O99: 1389121.203 | P99: 656509.0567 | Q99: 4609792.756 | R99: 12447051.98 | S99: 2337.433333 | T99: 133.2333333 | U99: 193054.299 | V99: 46304.0401 | W99: 21883.63522 | X99: 153659.7585 | Y99: 414901.7328 | Z99: 12762.47505 | AA99: 25524.95009 | AB99: 622352.5992 | AC99: 1244705.198 | AD99: 20745.08664 | AE99: 41490.17328 | AG99: 15066.3 | AH99: 163 | AI99: Amber | AK99: Eastbourne | AP99: Barking and Dagenham | AQ99: London | AZ99: Eastbourne | BA99: Eastbourne | BH99: East Staffordshire | BI99: 115663
A100: East Sussex | B100: 5152 | C100: 294 | D100: 425516.1994 | E100: 102059.9866 | F100: 48234.312 | G100: 338685.6278 | H100: 914496.1258 | I100: 1.694245517 | J100: South East | K100: 2.05 | L100: 102406 | M100: 5837 | N100: 8457960.387 | O100: 2028640.331 | P100: 958750.5735 | Q100: 6732034.24 | R100: 18177385.53 | S100: 1528.447761 | T100: 87.10447761 | U100: 126238.2147 | V100: 30278.21389 | W100: 14309.71005 | X100: 100478.123 | Y100: 271304.2617 | Z100: 45724.80629 | AA100: 91449.61258 | AB100: 908869.2765 | AC100: 1817738.553 | AD100: 13565.21308 | AE100: 27130.42617 | AK100: Eastleigh | AP100: Barnet | AQ100: London | AZ100: Eastleigh | BA100: Eastleigh | BH100: East Sussex | BI100: 539766
A101: Eastbourne | B101: 1110 | C101: 63 | D101: 91677.5973 | E101: 21988.8558 | F101: 10392.0975 | G101: 72969.9237 | H101: 197028.4743 | I101: 1.940268785 | J101: South East | K101: 2.05 | L101: 102406 | M101: 5837 | N101: 8457960.387 | O101: 2028640.331 | P101: 958750.5735 | Q101: 6732034.24 | R101: 18177385.53 | S101: 1528.447761 | T101: 87.10447761 | U101: 126238.2147 | V101: 30278.21389 | W101: 14309.71005 | X101: 100478.123 | Y101: 271304.2617 | Z101: 9851.423715 | AA101: 19702.84743 | AB101: 908869.2765 | AC101: 1817738.553 | AD101: 13565.21308 | AE101: 27130.42617 | AG101: 17469.8 | AH101: 120 | AI101: Amber | AK101: Eden | AP101: Bexley | AQ101: London | AZ101: Eden | BA101: Eden | BH101: Eastbourne | BI101: 101547
A102: Eastleigh | B102: 1548 | C102: 88 | D102: 127853.0816 | E102: 30665.53944 | F102: 14492.763 | G102: 101763.4612 | H102: 274774.8452 | I102: 2.132070464 | J102: South East | K102: 2.05 | L102: 102406 | M102: 5837 | N102: 8457960.387 | O102: 2028640.331 | P102: 958750.5735 | Q102: 6732034.24 | R102: 18177385.53 | S102: 1528.447761 | T102: 87.10447761 | U102: 126238.2147 | V102: 30278.21389 | W102: 14309.71005 | X102: 100478.123 | Y102: 271304.2617 | Z102: 13738.74226 | AA102: 27477.48452 | AB102: 908869.2765 | AC102: 1817738.553 | AD102: 13565.21308 | AE102: 27130.42617 | AG102: 8049.6 | AH102: 298 | AI102: Green | AK102: Elmbridge | AP102: Brent | AQ102: London | AZ102: Elmbridge | BA102: Elmbridge | BH102: Eastleigh | BI102: 128877
A103: Eden | B103: 399 | C103: 23 | D103: 32954.37957 | E103: 7904.10222 | F103: 3735.53775 | G103: 26229.72933 | H103: 70823.74887 | I103: 1.345691599 | J103: North West | K103: 2.13 | L103: 85606 | M103: 4880 | N103: 7070407.563 | O103: 1695836.027 | P103: 801464.7735 | Q103: 5627624.584 | R103: 15195332.95 | S103: 2195.025641 | T103: 125.1538462 | U103: 181292.5016 | V103: 43482.97504 | W103: 20550.37881 | X103: 144298.0663 | Y103: 389623.9217 | Z103: 3541.187444 | AA103: 7082.374887 | AB103: 759766.6473 | AC103: 1519533.295 | AD103: 19481.19609 | AE103: 38962.39217 | AG103: 14172.84 | AH103: 182 | AI103: Amber | AK103: Enfield | AP103: Bromley | AQ103: London | AZ103: Enfield | BA103: Enfield | BH103: Eden | BI103: 52630
A104: Elmbridge | B104: 1785 | C104: 102 | D104: 147427.4876 | E104: 35360.4573 | F104: 16711.61625 | G104: 117343.5259 | H104: 316843.0871 | I104: 2.386423691 | J104: South East | K104: 2.05 | L104: 102406 | M104: 5837 | N104: 8457960.387 | O104: 2028640.331 | P104: 958750.5735 | Q104: 6732034.24 | R104: 18177385.53 | S104: 1528.447761 | T104: 87.10447761 | U104: 126238.2147 | V104: 30278.21389 | W104: 14309.71005 | X104: 100478.123 | Y104: 271304.2617 | Z104: 15842.15435 | AA104: 31684.30871 | AB104: 908869.2765 | AC104: 1817738.553 | AD104: 13565.21308 | AE104: 27130.42617 | AG104: 5434.98 | AH104: 322 | AI104: Green | AK104: Epping Forest | AP104: Camden | AQ104: London | AZ104: Epping Forest | BA104: Epping Forest | BH104: Elmbridge | BI104: 132769
A105: Enfield | B105: 4824 | C105: 275 | D105: 398425.8823 | E105: 95562.37872 | F105: 45163.494 | G105: 317123.3441 | H105: 856275.0991 | I105: 2.638150619 | J105: London | K105: 2.65 | L105: 127399 | M105: 7262 | N105: 10522192.99 | O105: 2523746.162 | P105: 1192741.288 | Q105: 8375040.819 | R105: 22613721.26 | S105: 3860.575758 | T105: 220 | U105: 318854.333 | V105: 76477.15643 | W105: 36143.67539 | X105: 253789.1157 | Y105: 685264.2806 | Z105: 42813.75496 | AA105: 85627.50991 | AB105: 1130686.063 | AC105: 2261372.126 | AD105: 34263.21403 | AE105: 68526.42806 | AG105: 20771.39 | AH105: 53 | AI105: Red | AK105: Epsom and Ewell | AP105: City of London | AQ105: London | AZ105: Epsom and Ewell | BA105: Epsom and Ewell | BH105: Enfield | BI105: 324574
A106: ENGLAND | B106: 661496 | C106: 37705 | D106: 54634562.08 | E106: 13104090.23 | F106: 6193090.926 | G106: 43485867.25 | H106: 117417610.5 | I106: 2.161725358 | Z106: 5870880.524 | AA106: 11741761.05 | AK106: Erewash | AP106: Croydon | AQ106: London | AZ106: Erewash | BA106: Erewash | BH106: ENGLAND | BI106: 54316618
A107: Epping Forest | B107: 1478 | C107: 84 | D107: 122071.6115 | E107: 29278.85484 | F107: 13837.4055 | G107: 97161.75426 | H107: 262349.6261 | I107: 2.037239772 | J107: East | K107: 2.12 | L107: 71855 | M107: 4096 | N107: 5934679.058 | O107: 1423431.742 | P107: 672724.4738 | Q107: 4723652.133 | R107: 12754487.41 | S107: 1528.829787 | T107: 87.12765957 | U107: 126269.7672 | V107: 30285.78174 | W107: 14313.28668 | X107: 100503.2369 | Y107: 271372.0725 | Z107: 13117.48131 | AA107: 26234.96261 | AB107: 637724.3703 | AC107: 1275448.741 | AD107: 13568.60362 | AE107: 27137.20725 | AG107: 13195.47 | AH107: 199 | AI107: Amber | AK107: Essex | AP107: Ealing | AQ107: London | AZ107: Essex | BH107: Epping Forest | BI107: 128777
A108: Epsom and Ewell | B108: 920 | C108: 52 | D108: 75985.0356 | E108: 18224.9976 | F108: 8613.27 | G108: 60479.5764 | H108: 163302.8796 | I108: 2.085125764 | J108: South East | K108: 2.05 | L108: 102406 | M108: 5837 | N108: 8457960.387 | O108: 2028640.331 | P108: 958750.5735 | Q108: 6732034.24 | R108: 18177385.53 | S108: 1528.447761 | T108: 87.10447761 | U108: 126238.2147 | V108: 30278.21389 | W108: 14309.71005 | X108: 100478.123 | Y108: 271304.2617 | Z108: 8165.14398 | AA108: 16330.28796 | AB108: 908869.2765 | AC108: 1817738.553 | AD108: 13565.21308 | AE108: 27130.42617 | AG108: 6385.35 | AH108: 313 | AI108: Green | AK108: Exeter | AP108: Enfield | AQ108: London | AZ108: Exeter | BA108: Exeter | BH108: Epsom and Ewell | BI108: 78318
A109: Erewash | B109: 1296 | C109: 74 | D109: 107039.7893 | E109: 25673.47488 | F109: 12133.476 | G109: 85197.31632 | H109: 230044.0565 | I109: 2.017081023 | J109: East Midlands | K109: 2.04 | L109: 53170 | M109: 3031 | N109: 4391439.503 | O109: 1053286.003 | P109: 497790.8325 | Q109: 3495325.084 | R109: 9437841.422 | S109: 1329.25 | T109: 75.8 | U109: 109785.9876 | V109: 26332.15007 | W109: 12444.77081 | X109: 87383.1271 | Y109: 235946.0356 | Z109: 11502.20282 | AA109: 23004.40565 | AB109: 471892.0711 | AC109: 943784.1422 | AD109: 11797.30178 | AE109: 23594.60356 | AG109: 15691.4 | AH109: 149 | AI109: Amber | AK109: Fareham | AP109: Greenwich | AQ109: London | AZ109: Fareham | BA109: Fareham | BH109: Erewash | BI109: 114048
A110: Essex | B110: 16449 | C110: 938 | D110: 1358562.881 | E110: 325851.0712 | F110: 153999.6503 | G110: 1081335.383 | H110: 2919748.985 | I110: 2.038997778 | J110: East | K110: 2.12 | L110: 71855 | M110: 4096 | N110: 5934679.058 | O110: 1423431.742 | P110: 672724.4738 | Q110: 4723652.133 | R110: 12754487.41 | S110: 1528.829787 | T110: 87.12765957 | U110: 126269.7672 | V110: 30285.78174 | W110: 14313.28668 | X110: 100503.2369 | Y110: 271372.0725 | Z110: 145987.4493 | AA110: 291974.8985 | AB110: 637724.3703 | AC110: 1275448.741 | AD110: 13568.60362 | AE110: 27137.20725 | AK110: Fenland | AP110: Hackney | AQ110: London | AZ110: Fenland | BA110: Fenland | BH110: Essex | BI110: 1431953
A111: Exeter | B111: 1346 | C111: 77 | D111: 111169.4108 | E111: 26663.96388 | F111: 12601.5885 | G111: 88484.24982 | H111: 238919.213 | I111: 1.921684681 | J111: South West | K111: 1.91 | L111: 58403 | M111: 3329 | N111: 4823645.689 | O111: 1156950.581 | P111: 546783.4868 | Q111: 3839335.544 | R111: 10366715.3 | S111: 1622.305556 | T111: 92.52777778 | U111: 133990.158 | V111: 32137.51615 | W111: 15188.43019 | X111: 106648.2096 | Y111: 287964.3139 | Z111: 11945.96065 | AA111: 23891.9213 | AB111: 518335.7651 | AC111: 1036671.53 | AD111: 14398.2157 | AE111: 28796.43139 | AG111: 15019.75 | AH111: 165 | AI111: Amber | AK111: Forest Heath | AP111: Hammersmith and Fulham | AQ111: London | AZ111: Forest Heath | BA111: Forest Heath | BH111: Exeter | BI111: 124328
A112: Fareham | B112: 1030 | C112: 59 | D112: 85070.2029 | E112: 20404.0734 | F112: 9643.1175 | G112: 67710.8301 | H112: 182828.2239 | I112: 1.59911331 | J112: South East | K112: 2.05 | L112: 102406 | M112: 5837 | N112: 8457960.387 | O112: 2028640.331 | P112: 958750.5735 | Q112: 6732034.24 | R112: 18177385.53 | S112: 1528.447761 | T112: 87.10447761 | U112: 126238.2147 | V112: 30278.21389 | W112: 14309.71005 | X112: 100478.123 | Y112: 271304.2617 | Z112: 9141.411195 | AA112: 18282.82239 | AB112: 908869.2765 | AC112: 1817738.553 | AD112: 13565.21308 | AE112: 27130.42617 | AG112: 6409.13 | AH112: 312 | AI112: Green | AK112: Forest of Dean | AP112: Haringey | AQ112: London | AZ112: Forest of Dean | BA112: Forest of Dean | BH112: Fareham | BI112: 114331
A113: Fenland | B113: 1118 | C113: 64 | D113: 92338.33674 | E113: 22147.33404 | F113: 10466.9955 | G113: 73495.83306 | H113: 198448.4993 | I113: 2.030537586 | J113: East | K113: 2.12 | L113: 71855 | M113: 4096 | N113: 5934679.058 | O113: 1423431.742 | P113: 672724.4738 | Q113: 4723652.133 | R113: 12754487.41 | S113: 1528.829787 | T113: 87.12765957 | U113: 126269.7672 | V113: 30285.78174 | W113: 14313.28668 | X113: 100503.2369 | Y113: 271372.0725 | Z113: 9922.424967 | AA113: 19844.84993 | AB113: 637724.3703 | AC113: 1275448.741 | AD113: 13568.60362 | AE113: 27137.20725 | AG113: 20715.72 | AH113: 55 | AI113: Red | AK113: Fylde | AP113: Harrow | AQ113: London | AZ113: Fylde | BA113: Fylde | BH113: Fenland | BI113: 97732
A114: Forest Heath | B114: 1015 | C114: 58 | D114: 83831.31645 | E114: 20106.9267 | F114: 9502.68375 | G114: 66724.75005 | H114: 180165.677 | I114: 2.868332117 | J114: East | K114: 2.12 | L114: 71855 | M114: 4096 | N114: 5934679.058 | O114: 1423431.742 | P114: 672724.4738 | Q114: 4723652.133 | R114: 12754487.41 | S114: 1528.829787 | T114: 87.12765957 | U114: 126269.7672 | V114: 30285.78174 | W114: 14313.28668 | X114: 100503.2369 | Y114: 271372.0725 | Z114: 9008.283848 | AA114: 18016.5677 | AB114: 637724.3703 | AC114: 1275448.741 | AD114: 13568.60362 | AE114: 27137.20725 | AG114: 16261.13 | AH114: 140 | AI114: Amber | AK114: Gateshead | AP114: Havering | AQ114: London | AZ114: Gateshead | BA114: Gateshead | BH114: Forest Heath | BI114: 62812
A115: Forest of Dean | B115: 779 | C115: 44 | D115: 64339.50297 | E115: 15431.81862 | F115: 7293.19275 | G115: 51210.42393 | H115: 138274.9383 | I115: 1.652543661 | J115: South West | K115: 1.91 | L115: 58403 | M115: 3329 | N115: 4823645.689 | O115: 1156950.581 | P115: 546783.4868 | Q115: 3839335.544 | R115: 10366715.3 | S115: 1622.305556 | T115: 92.52777778 | U115: 133990.158 | V115: 32137.51615 | W115: 15188.43019 | X115: 106648.2096 | Y115: 287964.3139 | Z115: 6913.746914 | AA115: 13827.49383 | AB115: 518335.7651 | AC115: 1036671.53 | AD115: 14398.2157 | AE115: 28796.43139 | AG115: 15306 | AH115: 155 | AI115: Amber | AK115: Gedling | AP115: Hillingdon | AQ115: London | AZ115: Gedling | BA115: Gedling | BH115: Forest of Dean | BI115: 83674
A116: Fylde | B116: 600 | C116: 34 | D116: 49555.458 | E116: 11885.868 | F116: 5617.35 | G116: 39443.202 | H116: 106501.878 | I116: 1.382387243 | J116: North West | K116: 2.13 | L116: 85606 | M116: 4880 | N116: 7070407.563 | O116: 1695836.027 | P116: 801464.7735 | Q116: 5627624.584 | R116: 15195332.95 | S116: 2195.025641 | T116: 125.1538462 | U116: 181292.5016 | V116: 43482.97504 | W116: 20550.37881 | X116: 144298.0663 | Y116: 389623.9217 | Z116: 5325.0939 | AA116: 10650.1878 | AB116: 759766.6473 | AC116: 1519533.295 | AD116: 19481.19609 | AE116: 38962.39217 | AG116: 12049.94 | AH116: 218 | AI116: Green | AK116: Gloucester | AP116: Hounslow | AQ116: London | AZ116: Gloucester | BA116: Gloucester | BH116: Fylde | BI116: 77042
A117: Gateshead | B117: 2274 | C117: 130 | D117: 187815.1858 | E117: 45047.43972 | F117: 21289.7565 | G117: 149489.7356 | H117: 403642.1176 | I117: 2.013127441 | J117: North East | K117: 1.93 | L117: 28456 | M117: 1622 | N117: 2350250.188 | O117: 563707.0997 | P117: 266412.186 | Q117: 1870659.594 | R117: 5051029.067 | S117: 2371.333333 | T117: 135.25 | U117: 195854.1823 | V117: 46975.59164 | W117: 22201.0155 | X117: 155888.2995 | Y117: 420919.0889 | Z117: 20182.10588 | AA117: 40364.21176 | AB117: 252551.4534 | AC117: 505102.9067 | AD117: 21045.95445 | AE117: 42091.90889 | AG117: 19643.89 | AH117: 80 | AI117: Red | AK117: Gloucestershire | AP117: Inner London | AQ117: London | AZ117: Gloucestershire | BH117: Gateshead | BI117: 200505
A118: Gedling | B118: 1243 | C118: 71 | D118: 102662.3905 | E118: 24623.55654 | F118: 11637.27675 | G118: 81713.16681 | H118: 220636.3906 | I118: 1.907992101 | J118: East Midlands | K118: 2.04 | L118: 53170 | M118: 3031 | N118: 4391439.503 | O118: 1053286.003 | P118: 497790.8325 | Q118: 3495325.084 | R118: 9437841.422 | S118: 1329.25 | T118: 75.8 | U118: 109785.9876 | V118: 26332.15007 | W118: 12444.77081 | X118: 87383.1271 | Y118: 235946.0356 | Z118: 11031.81953 | AA118: 22063.63906 | AB118: 471892.0711 | AC118: 943784.1422 | AD118: 11797.30178 | AE118: 23594.60356 | AG118: 12987.56 | AH118: 202 | AI118: Amber | AK118: Gosport | AP118: Islington | AQ118: London | AZ118: Gosport | BA118: Gosport | BH118: Gedling | BI118: 115638
A119: Gloucester | B119: 1730 | C119: 99 | D119: 142884.9039 | E119: 34270.9194 | F119: 16196.6925 | G119: 113727.8991 | H119: 307080.4149 | I119: 2.443954308 | J119: South West | K119: 1.91 | L119: 58403 | M119: 3329 | N119: 4823645.689 | O119: 1156950.581 | P119: 546783.4868 | Q119: 3839335.544 | R119: 10366715.3 | S119: 1622.305556 | T119: 92.52777778 | U119: 133990.158 | V119: 32137.51615 | W119: 15188.43019 | X119: 106648.2096 | Y119: 287964.3139 | Z119: 15354.02074 | AA119: 30708.04149 | AB119: 518335.7651 | AC119: 1036671.53 | AD119: 14398.2157 | AE119: 28796.43139 | AG119: 16266.59 | AH119: 139 | AI119: Amber | AK119: Gravesham | AP119: Kensington and Chelsea | AQ119: London | AZ119: Gravesham | BA119: Gravesham | BH119: Gloucester | BI119: 125649
A120: Gloucestershire | B120: 6631 | C120: 378 | D120: 547670.4033 | E120: 131358.6512 | F120: 62081.07975 | G120: 435913.1208 | H120: 1177023.255 | I120: 1.92534213 | J120: South West | K120: 1.91 | L120: 58403 | M120: 3329 | N120: 4823645.689 | O120: 1156950.581 | P120: 546783.4868 | Q120: 3839335.544 | R120: 10366715.3 | S120: 1622.305556 | T120: 92.52777778 | U120: 133990.158 | V120: 32137.51615 | W120: 15188.43019 | X120: 106648.2096 | Y120: 287964.3139 | Z120: 58851.16275 | AA120: 117702.3255 | AB120: 518335.7651 | AC120: 1036671.53 | AD120: 14398.2157 | AE120: 28796.43139 | AK120: Great Yarmouth | AP120: Kingston upon Thames | AQ120: London | AZ120: Great Yarmouth | BA120: Great Yarmouth | BH120: Gloucestershire | BI120: 611332
A121: Gosport | B121: 942 | C121: 54 | D121: 77802.06906 | E121: 18660.81276 | F121: 8819.2395 | G121: 61925.82714 | H121: 167207.9485 | I121: 1.983792856 | J121: South East | K121: 2.05 | L121: 102406 | M121: 5837 | N121: 8457960.387 | O121: 2028640.331 | P121: 958750.5735 | Q121: 6732034.24 | R121: 18177385.53 | S121: 1528.447761 | T121: 87.10447761 | U121: 126238.2147 | V121: 30278.21389 | W121: 14309.71005 | X121: 100478.123 | Y121: 271304.2617 | Z121: 8360.397423 | AA121: 16720.79485 | AB121: 908869.2765 | AC121: 1817738.553 | AD121: 13565.21308 | AE121: 27130.42617 | AG121: 16828.08 | AH121: 131 | AI121: Amber | AK121: Greater Manchester (Met County) | AP121: Lambeth | AQ121: London | AZ121: Greater Manchester (Met County) | BH121: Gosport | BI121: 84287
A122: Gravesham | B122: 1454 | C122: 83 | D122: 120089.3932 | E122: 28803.42012 | F122: 13612.7115 | G122: 95584.02618 | H122: 258089.551 | I122: 2.451900999 | J122: South East | K122: 2.05 | L122: 102406 | M122: 5837 | N122: 8457960.387 | O122: 2028640.331 | P122: 958750.5735 | Q122: 6732034.24 | R122: 18177385.53 | S122: 1528.447761 | T122: 87.10447761 | U122: 126238.2147 | V122: 30278.21389 | W122: 14309.71005 | X122: 100478.123 | Y122: 271304.2617 | Z122: 12904.47755 | AA122: 25808.9551 | AB122: 908869.2765 | AC122: 1817738.553 | AD122: 13565.21308 | AE122: 27130.42617 | AG122: 17262.59 | AH122: 124 | AI122: Amber | AK122: Greenwich | AP122: Lewisham | AQ122: London | AZ122: Greenwich | BA122: Greenwich | BH122: Gravesham | BI122: 105261
A123: Great Yarmouth | B123: 1076 | C123: 61 | D123: 88869.45468 | E123: 21315.32328 | F123: 10073.781 | G123: 70734.80892 | H123: 190993.3679 | I123: 1.945497371 | J123: East | K123: 2.12 | L123: 71855 | M123: 4096 | N123: 5934679.058 | O123: 1423431.742 | P123: 672724.4738 | Q123: 4723652.133 | R123: 12754487.41 | S123: 1528.829787 | T123: 87.12765957 | U123: 126269.7672 | V123: 30285.78174 | W123: 14313.28668 | X123: 100503.2369 | Y123: 271372.0725 | Z123: 9549.668394 | AA123: 19099.33679 | AB123: 637724.3703 | AC123: 1275448.741 | AD123: 13568.60362 | AE123: 27137.20725 | AG123: 22208.12 | AH123: 29 | AI123: Red | AK123: Guildford | AP123: Merton | AQ123: London | AZ123: Guildford | BA123: Guildford | BH123: Great Yarmouth | BI123: 98172
A124: Greater Manchester (Met County) | B124: 36402 | C124: 2075 | D124: 3006529.637 | E124: 721115.6116 | F124: 340804.6245 | G124: 2393019.065 | H124: 6461468.938 | I124: 2.36436668 | J124: North West | K124: 2.13 | L124: 85606 | M124: 4880 | N124: 7070407.563 | O124: 1695836.027 | P124: 801464.7735 | Q124: 5627624.584 | R124: 15195332.95 | S124: 2195.025641 | T124: 125.1538462 | U124: 181292.5016 | V124: 43482.97504 | W124: 20550.37881 | X124: 144298.0663 | Y124: 389623.9217 | Z124: 323073.4469 | AA124: 646146.8938 | AB124: 759766.6473 | AC124: 1519533.295 | AD124: 19481.19609 | AE124: 38962.39217 | AK124: Hackney | AP124: Newham | AQ124: London | AZ124: Hackney | BA124: Hackney | BH124: Greater Manchester (Met County) | BI124: 2732854
A125: Greenwich | B125: 4368 | C125: 249 | D125: 360763.7342 | E125: 86529.11904 | F125: 40894.308 | G125: 287146.5106 | H125: 775333.6718 | I125: 2.885735609 | J125: London | K125: 2.65 | L125: 127399 | M125: 7262 | N125: 10522192.99 | O125: 2523746.162 | P125: 1192741.288 | Q125: 8375040.819 | R125: 22613721.26 | S125: 3860.575758 | T125: 220 | U125: 318854.333 | V125: 76477.15643 | W125: 36143.67539 | X125: 253789.1157 | Y125: 685264.2806 | Z125: 38766.68359 | AA125: 77533.36718 | AB125: 1130686.063 | AC125: 2261372.126 | AD125: 34263.21403 | AE125: 68526.42806 | AG125: 20887.06 | AH125: 50 | AI125: Red | AK125: Halton UA | AP125: Outer London | AQ125: London | AZ125: Halton UA | BA125: Halton | BH125: Greenwich | BI125: 268678
A126: Guildford | B126: 1542 | C126: 88 | D126: 127357.5271 | E126: 30546.68076 | F126: 14436.5895 | G126: 101369.0291 | H126: 273709.8265 | I126: 1.914617066 | J126: South East | K126: 2.05 | L126: 102406 | M126: 5837 | N126: 8457960.387 | O126: 2028640.331 | P126: 958750.5735 | Q126: 6732034.24 | R126: 18177385.53 | S126: 1528.447761 | T126: 87.10447761 | U126: 126238.2147 | V126: 30278.21389 | W126: 14309.71005 | X126: 100478.123 | Y126: 271304.2617 | Z126: 13685.49132 | AA126: 27370.98265 | AB126: 908869.2765 | AC126: 1817738.553 | AD126: 13565.21308 | AE126: 27130.42617 | AG126: 7337.96 | AH126: 304 | AI126: Green | AK126: Hambleton | AP126: Redbridge | AQ126: London | AZ126: Hambleton | BA126: Hambleton | BH126: Guildford | BI126: 142958
A127: Hackney | B127: 4377 | C127: 249 | D127: 361507.0661 | E127: 86707.40706 | F127: 40978.56825 | G127: 287738.1586 | H127: 776931.2 | I127: 2.952427133 | J127: London | K127: 2.65 | L127: 127399 | M127: 7262 | N127: 10522192.99 | O127: 2523746.162 | P127: 1192741.288 | Q127: 8375040.819 | R127: 22613721.26 | S127: 3860.575758 | T127: 220 | U127: 318854.333 | V127: 76477.15643 | W127: 36143.67539 | X127: 253789.1157 | Y127: 685264.2806 | Z127: 38846.56 | AA127: 77693.12 | AB127: 1130686.063 | AC127: 2261372.126 | AD127: 34263.21403 | AE127: 68526.42806 | AG127: 26066 | AH127: 2 | AI127: Red | AK127: Hammersmith and Fulham | AP127: Richmond upon Thames | AQ127: London | AZ127: Hammersmith and Fulham | BA127: Hammersmith and Fulham | BH127: Hackney | BI127: 263150
A128: Halton UA | B128: 1556 | C128: 89 | D128: 128513.8211 | E128: 30824.01768 | F128: 14567.661 | G128: 102289.3705 | H128: 276194.8703 | I128: 2.185881494 | J128: North West | K128: 2.13 | L128: 85606 | M128: 4880 | N128: 7070407.563 | O128: 1695836.027 | P128: 801464.7735 | Q128: 5627624.584 | R128: 15195332.95 | S128: 2195.025641 | T128: 125.1538462 | U128: 181292.5016 | V128: 43482.97504 | W128: 20550.37881 | X128: 144298.0663 | Y128: 389623.9217 | Z128: 13809.74351 | AA128: 27619.48703 | AB128: 759766.6473 | AC128: 1519533.295 | AD128: 19481.19609 | AE128: 38962.39217 | AG128: 21563.08 | AH128: 36 | AI128: Red | AK128: Hampshire | AP128: Southwark | AQ128: London | AZ128: Hampshire | BH128: Halton UA | BI128: 126354
A129: Hambleton | B129: 820 | C129: 47 | D129: 67725.7926 | E129: 16244.0196 | F129: 7677.045 | G129: 53905.7094 | H129: 145552.5666 | I129: 1.620347404 | J129: Yorkshire and the Humber | K129: 2.12 | L129: 64078 | M129: 3652 | N129: 5292357.73 | O129: 1269371.083 | P129: 599914.2555 | Q129: 4212402.496 | R129: 11374045.56 | S129: 3051.333333 | T129: 174 | U129: 252017.0347 | V129: 60446.24204 | W129: 28567.3455 | X129: 200590.5951 | Y129: 541621.2173 | Z129: 7277.62833 | AA129: 14555.25666 | AB129: 568702.2782 | AC129: 1137404.556 | AD129: 27081.06087 | AE129: 54162.12173 | AG129: 11019.37 | AH129: 245 | AI129: Green | AK129: Harborough | AP129: Sutton | AQ129: London | AZ129: Harborough | BA129: Harborough | BH129: Hambleton | BI129: 89828
A130: Hammersmith and Fulham | B130: 2440 | C130: 139 | D130: 201525.5292 | E130: 48335.8632 | F130: 22843.89 | G130: 160402.3548 | H130: 433107.6372 | I130: 2.428209779 | J130: London | K130: 2.65 | L130: 127399 | M130: 7262 | N130: 10522192.99 | O130: 2523746.162 | P130: 1192741.288 | Q130: 8375040.819 | R130: 22613721.26 | S130: 3860.575758 | T130: 220 | U130: 318854.333 | V130: 76477.15643 | W130: 36143.67539 | X130: 253789.1157 | Y130: 685264.2806 | Z130: 21655.38186 | AA130: 43310.76372 | AB130: 1130686.063 | AC130: 2261372.126 | AD130: 34263.21403 | AE130: 68526.42806 | AG130: 19835.83 | AH130: 76 | AI130: Red | AK130: Haringey | AP130: Tower Hamlets | AQ130: London | AZ130: Haringey | BA130: Haringey | BH130: Hammersmith and Fulham | BI130: 178365
A131: Hampshire | B131: 14453 | C131: 824 | D131: 1193708.391 | E131: 286310.7503 | F131: 135312.5992 | G131: 950120.9975 | H131: =SUM(D131:G131) -> 2565452.738 | I131: 1.905790156 | J131: South East | K131: 2.05 | L131: 102406 | M131: 5837 | N131: 8457960.387 | O131: 2028640.331 | P131: 958750.5735 | Q131: 6732034.24 | R131: 18177385.53 | S131: 1528.447761 | T131: 87.10447761 | U131: 126238.2147 | V131: 30278.21389 | W131: 14309.71005 | X131: 100478.123 | Y131: 271304.2617 | Z131: 128272.6369 | AA131: 256545.2738 | AB131: 908869.2765 | AC131: 1817738.553 | AD131: 13565.21308 | AE131: 27130.42617 | AK131: Harlow | AP131: Waltham Forest | AQ131: London | AZ131: Harlow | BA131: Harlow | BH131: Hampshire | BI131: 1346136
A132: Harborough | B132: 817 | C132: 47 | D132: 67478.01531 | E132: 16184.59026 | F132: 7648.95825 | G132: 53708.49339 | H132: 145020.0572 | I132: 1.647805395 | J132: East Midlands | K132: 2.04 | L132: 53170 | M132: 3031 | N132: 4391439.503 | O132: 1053286.003 | P132: 497790.8325 | Q132: 3495325.084 | R132: 9437841.422 | S132: 1329.25 | T132: 75.8 | U132: 109785.9876 | V132: 26332.15007 | W132: 12444.77081 | X132: 87383.1271 | Y132: 235946.0356 | Z132: 7251.002861 | AA132: 14502.00572 | AB132: 471892.0711 | AC132: 943784.1422 | AD132: 11797.30178 | AE132: 23594.60356 | AG132: 6492.1 | AH132: 311 | AI132: Green | AK132: Harrogate | AP132: Wandsworth | AQ132: London | AZ132: Harrogate | BA132: Harrogate | BH132: Harborough | BI132: 88008
A133: Haringey | B133: 4006 | C133: 228 | D133: 330865.2746 | E133: 79357.97868 | F133: 37505.1735 | G133: 263349.112 | H133: 711077.5388 | I133: 2.657826422 | J133: London | K133: 2.65 | L133: 127399 | M133: 7262 | N133: 10522192.99 | O133: 2523746.162 | P133: 1192741.288 | Q133: 8375040.819 | R133: 22613721.26 | S133: 3860.575758 | T133: 220 | U133: 318854.333 | V133: 76477.15643 | W133: 36143.67539 | X133: 253789.1157 | Y133: 685264.2806 | Z133: 35553.87694 | AA133: 71107.75388 | AB133: 1130686.063 | AC133: 2261372.126 | AD133: 34263.21403 | AE133: 68526.42806 | AG133: 23053.34 | AH133: 21 | AI133: Red | AK133: Harrow | AP133: Westminster | AQ133: London | AZ133: Harrow | BA133: Harrow | BH133: Haringey | BI133: 267541
A134: Harlow | B134: 1364 | C134: 78 | D134: 112656.0745 | E134: 27020.53992 | F134: 12770.109 | G134: 89667.54588 | H134: 242114.2693 | I134: 2.863089132 | J134: East | K134: 2.12 | L134: 71855 | M134: 4096 | N134: 5934679.058 | O134: 1423431.742 | P134: 672724.4738 | Q134: 4723652.133 | R134: 12754487.41 | S134: 1528.829787 | T134: 87.12765957 | U134: 126269.7672 | V134: 30285.78174 | W134: 14313.28668 | X134: 100503.2369 | Y134: 271372.0725 | Z134: 12105.71347 | AA134: 24211.42693 | AB134: 637724.3703 | AC134: 1275448.741 | AD134: 13568.60362 | AE134: 27137.20725 | AG134: 19908.53 | AH134: 71 | AI134: Red | AK134: Hart | AP134: County Durham UA | AQ134: North East | AZ134: Hart | BA134: Hart | BH134: Harlow | BI134: 84564
A135: Harrogate | B135: 1426 | C135: 81 | D135: 117776.8052 | E135: 28248.74628 | F135: 13350.5685 | G135: 93743.34342 | H135: 253119.4634 | I135: 1.609488725 | J135: Yorkshire and the Humber | K135: 2.12 | L135: 64078 | M135: 3652 | N135: 5292357.73 | O135: 1269371.083 | P135: 599914.2555 | Q135: 4212402.496 | R135: 11374045.56 | S135: 3051.333333 | T135: 174 | U135: 252017.0347 | V135: 60446.24204 | W135: 28567.3455 | X135: 200590.5951 | Y135: 541621.2173 | Z135: 12655.97317 | AA135: 25311.94634 | AB135: 568702.2782 | AC135: 1137404.556 | AD135: 27081.06087 | AE135: 54162.12173 | AG135: 8593.46 | AH135: 289 | AI135: Green | AK135: Hartlepool UA | AP135: Darlington UA | AQ135: North East | AZ135: Hartlepool UA | BA135: Hartlepool | BH135: Harrogate | BI135: 157267
A136: Harrow | B136: 3525 | C136: 201 | D136: 291138.3158 | E136: 69829.4745 | F136: 33001.93125 | G136: 231728.8117 | H136: 625698.5333 | I136: 2.543376244 | J136: London | K136: 2.65 | L136: 127399 | M136: 7262 | N136: 10522192.99 | O136: 2523746.162 | P136: 1192741.288 | Q136: 8375040.819 | R136: 22613721.26 | S136: 3860.575758 | T136: 220 | U136: 318854.333 | V136: 76477.15643 | W136: 36143.67539 | X136: 253789.1157 | Y136: 685264.2806 | Z136: 31284.92666 | AA136: 62569.85333 | AB136: 1130686.063 | AC136: 2261372.126 | AD136: 34263.21403 | AE136: 68526.42806 | AG136: 12509.74 | AH136: 213 | AI136: Amber | AK136: Hastings | AP136: Gateshead | AQ136: North East | AZ136: Hastings | BA136: Hastings | BH136: Harrow | BI136: 246011
A137: Hart | B137: 1036 | C137: 59 | D137: 85565.75748 | E137: 20522.93208 | F137: 9699.291 | G137: 68105.26212 | H137: 183893.2427 | I137: 1.970460677 | J137: South East | K137: 2.05 | L137: 102406 | M137: 5837 | N137: 8457960.387 | O137: 2028640.331 | P137: 958750.5735 | Q137: 6732034.24 | R137: 18177385.53 | S137: 1528.447761 | T137: 87.10447761 | U137: 126238.2147 | V137: 30278.21389 | W137: 14309.71005 | X137: 100478.123 | Y137: 271304.2617 | Z137: 9194.662134 | AA137: 18389.32427 | AB137: 908869.2765 | AC137: 1817738.553 | AD137: 13565.21308 | AE137: 27130.42617 | AG137: 2975.66 | AH137: 326 | AI137: Green | AK137: Havant | AP137: Hartlepool UA | AQ137: North East | AZ137: Havant | BA137: Havant | BH137: Hart | BI137: 93325
A138: Hartlepool UA | B138: 1043 | C138: 59 | D138: 86143.90449 | E138: 20661.60054 | F138: 9764.82675 | G138: 68565.43281 | H138: 185135.7646 | I138: 1.999522244 | J138: North East | K138: 1.93 | L138: 28456 | M138: 1622 | N138: 2350250.188 | O138: 563707.0997 | P138: 266412.186 | Q138: 1870659.594 | R138: 5051029.067 | S138: 2371.333333 | T138: 135.25 | U138: 195854.1823 | V138: 46975.59164 | W138: 22201.0155 | X138: 155888.2995 | Y138: 420919.0889 | Z138: 9256.78823 | AA138: 18513.57646 | AB138: 252551.4534 | AC138: 505102.9067 | AD138: 21045.95445 | AE138: 42091.90889 | AG138: 21886.6 | AH138: 32 | AI138: Red | AK138: Havering | AP138: Middlesbrough UA | AQ138: North East | AZ138: Havering | BA138: Havering | BH138: Hartlepool UA | BI138: 92590
A139: Hastings | B139: 1084 | C139: 62 | D139: 89530.19412 | E139: 21473.80152 | F139: 10148.679 | G139: 71260.71828 | H139: 192413.3929 | I139: 2.112274191 | J139: South East | K139: 2.05 | L139: 102406 | M139: 5837 | N139: 8457960.387 | O139: 2028640.331 | P139: 958750.5735 | Q139: 6732034.24 | R139: 18177385.53 | S139: 1528.447761 | T139: 87.10447761 | U139: 126238.2147 | V139: 30278.21389 | W139: 14309.71005 | X139: 100478.123 | Y139: 271304.2617 | Z139: 9620.669646 | AA139: 19241.33929 | AB139: 908869.2765 | AC139: 1817738.553 | AD139: 13565.21308 | AE139: 27130.42617 | AG139: 23106.48 | AH139: 20 | AI139: Red | AK139: Herefordshire, County of UA | AP139: Newcastle upon Tyne | AQ139: North East | AZ139: Herefordshire, County of UA | BA139: Herefordshire, County of | BH139: Hastings | BI139: 91093
A140: Havant | B140: 1237 | C140: 71 | D140: 102166.8359 | E140: 24504.69786 | F140: 11581.10325 | G140: 81318.73479 | H140: 219571.3718 | I140: 1.796672709 | J140: South East | K140: 2.05 | L140: 102406 | M140: 5837 | N140: 8457960.387 | O140: 2028640.331 | P140: 958750.5735 | Q140: 6732034.24 | R140: 18177385.53 | S140: 1528.447761 | T140: 87.10447761 | U140: 126238.2147 | V140: 30278.21389 | W140: 14309.71005 | X140: 100478.123 | Y140: 271304.2617 | Z140: 10978.56859 | AA140: 21957.13718 | AB140: 908869.2765 | AC140: 1817738.553 | AD140: 13565.21308 | AE140: 27130.42617 | AG140: 16182.68 | AH140: 142 | AI140: Amber | AK140: Hertfordshire | AP140: North Tyneside | AQ140: North East | AZ140: Hertfordshire | BH140: Havant | BI140: 122210
A141: Havering | B141: 3150 | C141: 180 | D141: 260166.1545 | E141: 62400.807 | F141: 29491.0875 | G141: 207076.8105 | H141: 559134.8595 | I141: 2.273146184 | J141: London | K141: 2.65 | L141: 127399 | M141: 7262 | N141: 10522192.99 | O141: 2523746.162 | P141: 1192741.288 | Q141: 8375040.819 | R141: 22613721.26 | S141: 3860.575758 | T141: 220 | U141: 318854.333 | V141: 76477.15643 | W141: 36143.67539 | X141: 253789.1157 | Y141: 685264.2806 | Z141: 27956.74298 | AA141: 55913.48595 | AB141: 1130686.063 | AC141: 2261372.126 | AD141: 34263.21403 | AE141: 68526.42806 | AG141: 14990.93 | AH141: 166 | AI141: Amber | AK141: Hertsmere | AP141: Northumberland UA | AQ141: North East | AZ141: Hertsmere | BA141: Hertsmere | BH141: Havering | BI141: 245974
A142: Herefordshire, County of UA | B142: 1728 | C142: 98 | D142: 142719.719 | E142: 34231.29984 | F142: 16177.968 | G142: 113596.4218 | H142: 306725.4086 | I142: 1.63884061 | J142: West Midlands | K142: 2.18 | L142: 70123 | M142: 3997 | N142: 5791628.969 | O142: 1389121.203 | P142: 656509.0567 | Q142: 4609792.756 | R142: 12447051.98 | S142: 2337.433333 | T142: 133.2333333 | U142: 193054.299 | V142: 46304.0401 | W142: 21883.63522 | X142: 153659.7585 | Y142: 414901.7328 | Z142: 15336.27043 | AA142: 30672.54086 | AB142: 622352.5992 | AC142: 1244705.198 | AD142: 20745.08664 | AE142: 41490.17328 | AG142: 17235 | AH142: 126 | AI142: Amber | AK142: High Peak | AP142: Redcar and Cleveland UA | AQ142: North East | AZ142: High Peak | BA142: High Peak | BH142: Herefordshire, County of UA | BI142: 187160
A143: Hertfordshire | B143: 14493 | C143: 826 | D143: 1197012.088 | E143: 287103.1415 | F143: 135687.0892 | G143: 952750.5443 | H143: 2572552.863 | I143: 2.227769837 | J143: East | K143: 2.12 | L143: 71855 | M143: 4096 | N143: 5934679.058 | O143: 1423431.742 | P143: 672724.4738 | Q143: 4723652.133 | R143: 12754487.41 | S143: 1528.829787 | T143: 87.12765957 | U143: 126269.7672 | V143: 30285.78174 | W143: 14313.28668 | X143: 100503.2369 | Y143: 271372.0725 | Z143: 128627.6432 | AA143: 257255.2863 | AB143: 637724.3703 | AC143: 1275448.741 | AD143: 13568.60362 | AE143: 27137.20725 | AK143: Hillingdon | AP143: South Tyneside | AQ143: North East | AZ143: Hillingdon | BA143: Hillingdon | BH143: Hertfordshire | BI143: 1154766
A144: Hertsmere | B144: 1357 | C144: 77 | D144: 112077.9275 | E144: 26881.87146 | F144: 12704.57325 | G144: 89207.37519 | H144: 240871.7474 | I144: 2.351643096 | J144: East | K144: 2.12 | L144: 71855 | M144: 4096 | N144: 5934679.058 | O144: 1423431.742 | P144: 672724.4738 | Q144: 4723652.133 | R144: 12754487.41 | S144: 1528.829787 | T144: 87.12765957 | U144: 126269.7672 | V144: 30285.78174 | W144: 14313.28668 | X144: 100503.2369 | Y144: 271372.0725 | Z144: 12043.58737 | AA144: 24087.17474 | AB144: 637724.3703 | AC144: 1275448.741 | AD144: 13568.60362 | AE144: 27137.20725 | AG144: 10943.21 | AH144: 247 | AI144: Green | AK144: Hinckley and Bosworth | AP144: Stockton-on-Tees UA | AQ144: North East | AZ144: Hinckley and Bosworth | BA144: Hinckley and Bosworth | BH144: Hertsmere | BI144: 102427
A145: High Peak | B145: 882 | C145: 50 | D145: 72846.52326 | E145: 17472.22596 | F145: 8257.5045 | G145: 57981.50694 | H145: 156557.7607 | I145: 1.713560709 | J145: East Midlands | K145: 2.04 | L145: 53170 | M145: 3031 | N145: 4391439.503 | O145: 1053286.003 | P145: 497790.8325 | Q145: 3495325.084 | R145: 9437841.422 | S145: 1329.25 | T145: 75.8 | U145: 109785.9876 | V145: 26332.15007 | W145: 12444.77081 | X145: 87383.1271 | Y145: 235946.0356 | Z145: 7827.888033 | AA145: 15655.77607 | AB145: 471892.0711 | AC145: 943784.1422 | AD145: 11797.30178 | AE145: 23594.60356 | AG145: 13356.71 | AH145: 198 | AI145: Amber | AK145: Horsham | AP145: Sunderland | AQ145: North East | AZ145: Horsham | BA145: Horsham | BH145: High Peak | BI145: 91364
A146: Hillingdon | B146: 4423 | C146: 252 | D146: 365306.3179 | E146: 87618.65694 | F146: 41409.23175 | G146: 290762.1374 | H146: 785096.344 | I146: 2.682347685 | J146: London | K146: 2.65 | L146: 127399 | M146: 7262 | N146: 10522192.99 | O146: 2523746.162 | P146: 1192741.288 | Q146: 8375040.819 | R146: 22613721.26 | S146: 3860.575758 | T146: 220 | U146: 318854.333 | V146: 76477.15643 | W146: 36143.67539 | X146: 253789.1157 | Y146: 685264.2806 | Z146: 39254.8172 | AA146: 78509.6344 | AB146: 1130686.063 | AC146: 2261372.126 | AD146: 34263.21403 | AE146: 68526.42806 | AG146: 15409.43 | AH146: 153 | AI146: Amber | AK146: Hounslow | AP146: Tyne and Wear (Met County) | AQ146: North East | AZ146: Hounslow | BA146: Hounslow | BH146: Hillingdon | BI146: 292690
A147: Hinckley and Bosworth | B147: 1091 | C147: 62 | D147: 90108.34113 | E147: 21612.46998 | F147: 10214.21475 | G147: 71720.88897 | H147: 193655.9148 | I147: 1.797737833 | J147: East Midlands | K147: 2.04 | L147: 53170 | M147: 3031 | N147: 4391439.503 | O147: 1053286.003 | P147: 497790.8325 | Q147: 3495325.084 | R147: 9437841.422 | S147: 1329.25 | T147: 75.8 | U147: 109785.9876 | V147: 26332.15007 | W147: 12444.77081 | X147: 87383.1271 | Y147: 235946.0356 | Z147: 9682.795742 | AA147: 19365.59148 | AB147: 471892.0711 | AC147: 943784.1422 | AD147: 11797.30178 | AE147: 23594.60356 | AG147: 10810.17 | AH147: 248 | AI147: Green | AK147: Huntingdonshire | AP147: Allerdale | AQ147: North West | AZ147: Huntingdonshire | BA147: Huntingdonshire | BH147: Hinckley and Bosworth | BI147: 107722
A148: Horsham | B148: 1229 | C148: 70 | D148: 101506.0965 | E148: 24346.21962 | F148: 11506.20525 | G148: 80792.82543 | H148: 218151.3468 | I148: 1.62607781 | J148: South East | K148: 2.05 | L148: 102406 | M148: 5837 | N148: 8457960.387 | O148: 2028640.331 | P148: 958750.5735 | Q148: 6732034.24 | R148: 18177385.53 | S148: 1528.447761 | T148: 87.10447761 | U148: 126238.2147 | V148: 30278.21389 | W148: 14309.71005 | X148: 100478.123 | Y148: 271304.2617 | Z148: 10907.56734 | AA148: 21815.13468 | AB148: 908869.2765 | AC148: 1817738.553 | AD148: 13565.21308 | AE148: 27130.42617 | AG148: 8121.94 | AH148: 295 | AI148: Green | AK148: Hyndburn | AP148: Barrow-in-Furness | AQ148: North West | AZ148: Hyndburn | BA148: Hyndburn | BH148: Horsham | BI148: 134158
A149: Hounslow | B149: 4245 | C149: 242 | D149: 350604.8653 | E149: 84092.5161 | F149: 39742.75125 | G149: 279060.6542 | H149: 753500.7869 | I149: 2.8373177 | J149: London | K149: 2.65 | L149: 127399 | M149: 7262 | N149: 10522192.99 | O149: 2523746.162 | P149: 1192741.288 | Q149: 8375040.819 | R149: 22613721.26 | S149: 3860.575758 | T149: 220 | U149: 318854.333 | V149: 76477.15643 | W149: 36143.67539 | X149: 253789.1157 | Y149: 685264.2806 | Z149: 37675.03934 | AA149: 75350.07869 | AB149: 1130686.063 | AC149: 2261372.126 | AD149: 34263.21403 | AE149: 68526.42806 | AG149: 19324.71 | AH149: 86 | AI149: Red | AK149: Inner London | AP149: Blackburn with Darwen UA | AQ149: North West | AZ149: Inner London | BH149: Hounslow | BI149: 265568
A150: Huntingdonshire | B150: 1966 | C150: 112 | D150: 162376.7174 | E150: 38946.02748 | F150: 18406.1835 | G150: 129242.2252 | H150: 348971.1536 | I150: 2.010144602 | J150: East | K150: 2.12 | L150: 71855 | M150: 4096 | N150: 5934679.058 | O150: 1423431.742 | P150: 672724.4738 | Q150: 4723652.133 | R150: 12754487.41 | S150: 1528.829787 | T150: 87.12765957 | U150: 126269.7672 | V150: 30285.78174 | W150: 14313.28668 | X150: 100503.2369 | Y150: 271372.0725 | Z150: 17448.55768 | AA150: 34897.11536 | AB150: 637724.3703 | AC150: 1275448.741 | AD150: 13568.60362 | AE150: 27137.20725 | AG150: 9901.33 | AH150: 265 | AI150: Green | AK150: Ipswich | AP150: Blackpool UA | AQ150: North West | AZ150: Ipswich | BA150: Ipswich | BH150: Huntingdonshire | BI150: 173605
A151: Hyndburn | B151: 1085 | C151: 62 | D151: 89612.78655 | E151: 21493.6113 | F151: 10158.04125 | G151: 71326.45695 | H151: 192590.896 | I151: 2.401143228 | J151: North West | K151: 2.13 | L151: 85606 | M151: 4880 | N151: 7070407.563 | O151: 1695836.027 | P151: 801464.7735 | Q151: 5627624.584 | R151: 15195332.95 | S151: 2195.025641 | T151: 125.1538462 | U151: 181292.5016 | V151: 43482.97504 | W151: 20550.37881 | X151: 144298.0663 | Y151: 389623.9217 | Z151: 9629.544802 | AA151: 19259.08961 | AB151: 759766.6473 | AC151: 1519533.295 | AD151: 19481.19609 | AE151: 38962.39217 | AG151: 22347.09 | AH151: 28 | AI151: Red | AK151: Isle of Wight UA | AP151: Bolton | AQ151: North West | AZ151: Isle of Wight UA | BA151: Isle of Wight | BH151: Hyndburn | BI151: 80208
A152: Inner London | B152: 50574 | C152: 2883 | D152: 4177029.555 | E152: 1001859.814 | F152: 473486.4315 | G152: 3324667.497 | H152: 8977043.297 | I152: 2.64 | J152: London | K152: 2.65 | L152: 127399 | M152: 7262 | N152: 10522192.99 | O152: 2523746.162 | P152: 1192741.288 | Q152: 8375040.819 | R152: 22613721.26 | S152: 3860.575758 | T152: 220 | U152: 318854.333 | V152: 76477.15643 | W152: 36143.67539 | X152: 253789.1157 | Y152: 685264.2806 | Z152: 448852.1648 | AA152: 897704.3297 | AB152: 1130686.063 | AC152: 2261372.126 | AD152: 34263.21403 | AE152: 68526.42806 | AK152: Islington | AP152: Burnley | AQ152: North West | AZ152: Islington | BA152: Islington | BH152: Inner London
A153: Ipswich | B153: 1866 | C153: 106 | D153: 154117.4744 | E153: 36965.04948 | F153: 17469.9585 | G153: 122668.3582 | H153: 331220.8406 | I153: 2.454105779 | J153: East | K153: 2.12 | L153: 71855 | M153: 4096 | N153: 5934679.058 | O153: 1423431.742 | P153: 672724.4738 | Q153: 4723652.133 | R153: 12754487.41 | S153: 1528.829787 | T153: 87.12765957 | U153: 126269.7672 | V153: 30285.78174 | W153: 14313.28668 | X153: 100503.2369 | Y153: 271372.0725 | Z153: 16561.04203 | AA153: 33122.08406 | AB153: 637724.3703 | AC153: 1275448.741 | AD153: 13568.60362 | AE153: 27137.20725 | AG153: 19868.27 | AH153: 74 | AI153: Red | AK153: Kensington and Chelsea | AP153: Bury | AQ153: North West | AZ153: Kensington and Chelsea | BA153: Kensington and Chelsea | BH153: Ipswich | BI153: 134966
A154: Isle of Wight UA | B154: 1316 | C154: 75 | D154: 108691.6379 | E154: 26069.67048 | F154: 12320.721 | G154: 86512.08972 | H154: 233594.1191 | I154: 1.679264721 | J154: South East | K154: 2.05 | L154: 102406 | M154: 5837 | N154: 8457960.387 | O154: 2028640.331 | P154: 958750.5735 | Q154: 6732034.24 | R154: 18177385.53 | S154: 1528.447761 | T154: 87.10447761 | U154: 126238.2147 | V154: 30278.21389 | W154: 14309.71005 | X154: 100478.123 | Y154: 271304.2617 | Z154: 11679.70595 | AA154: 23359.41191 | AB154: 908869.2765 | AC154: 1817738.553 | AD154: 13565.21308 | AE154: 27130.42617 | AG154: 19388.79 | AH154: 83 | AI154: Red | AK154: Kent | AP154: Carlisle | AQ154: North West | AZ154: Kent | BH154: Isle of Wight UA | BI154: 139105
A155: Islington | B155: 2879 | C155: 164 | D155: 237783.606 | E155: 57032.35662 | F155: 26953.91775 | G155: 189261.6309 | H155: 511031.5113 | I155: 2.312045927 | J155: London | K155: 2.65 | L155: 127399 | M155: 7262 | N155: 10522192.99 | O155: 2523746.162 | P155: 1192741.288 | Q155: 8375040.819 | R155: 22613721.26 | S155: 3860.575758 | T155: 220 | U155: 318854.333 | V155: 76477.15643 | W155: 36143.67539 | X155: 253789.1157 | Y155: 685264.2806 | Z155: 25551.57556 | AA155: 51103.15113 | AB155: 1130686.063 | AC155: 2261372.126 | AD155: 34263.21403 | AE155: 68526.42806 | AG155: 24687.41 | AH155: 13 | AI155: Red | AK155: Kettering | AP155: Cheshire East UA | AQ155: North West | AZ155: Kettering | BA155: Kettering | BH155: Islington | BI155: 221030
A156: Kensington and Chelsea | B156: 1821 | C156: 104 | D156: 150400.815 | E156: 36073.60938 | F156: 17048.65725 | G156: 119710.1181 | H156: 323233.1997 | I156: 2.069487161 | J156: London | K156: 2.65 | L156: 127399 | M156: 7262 | N156: 10522192.99 | O156: 2523746.162 | P156: 1192741.288 | Q156: 8375040.819 | R156: 22613721.26 | S156: 3860.575758 | T156: 220 | U156: 318854.333 | V156: 76477.15643 | W156: 36143.67539 | X156: 253789.1157 | Y156: 685264.2806 | Z156: 16161.65999 | AA156: 32323.31997 | AB156: 1130686.063 | AC156: 2261372.126 | AD156: 34263.21403 | AE156: 68526.42806 | AG156: 18551.54 | AH156: 99 | AI156: Red | AK156: King’s Lynn and West Norfolk | AP156: Cheshire West and Chester UA | AQ156: North West | AZ156: King’s Lynn and West Norfolk | BA156: King's Lynn and West Norfolk | BH156: Kensington and Chelsea | BI156: 156190
A157: Kent | B157: 17305 | C157: 986 | D157: 1429262.001 | E157: 342808.2429 | F157: 162013.7362 | G157: 1137607.684 | H157: 3071691.665 | I157: 2.033756103 | J157: South East | K157: 2.05 | L157: 102406 | M157: 5837 | N157: 8457960.387 | O157: 2028640.331 | P157: 958750.5735 | Q157: 6732034.24 | R157: 18177385.53 | S157: 1528.447761 | T157: 87.10447761 | U157: 126238.2147 | V157: 30278.21389 | W157: 14309.71005 | X157: 100478.123 | Y157: 271304.2617 | Z157: 153584.5832 | AA157: 307169.1665 | AB157: 908869.2765 | AC157: 1817738.553 | AD157: 13565.21308 | AE157: 27130.42617 | AK157: Kingston upon Hull, City of UA | AP157: Chorley | AQ157: North West | AZ157: Kingston upon Hull, City of UA | BA157: Kingston upon Hull, City of | BH157: Kent | BI157: 1510354
A158: Kettering | B158: 1243 | C158: 71 | D158: 102662.3905 | E158: 24623.55654 | F158: 11637.27675 | G158: 81713.16681 | H158: 220636.3906 | I158: 2.275892419 | J158: East Midlands | K158: 2.04 | L158: 53170 | M158: 3031 | N158: 4391439.503 | O158: 1053286.003 | P158: 497790.8325 | Q158: 3495325.084 | R158: 9437841.422 | S158: 1329.25 | T158: 75.8 | U158: 109785.9876 | V158: 26332.15007 | W158: 12444.77081 | X158: 87383.1271 | Y158: 235946.0356 | Z158: 11031.81953 | AA158: 22063.63906 | AB158: 471892.0711 | AC158: 943784.1422 | AD158: 11797.30178 | AE158: 23594.60356 | AG158: 14901.43 | AH158: 168 | AI158: Amber | AK158: Kingston upon Thames | AP158: Copeland | AQ158: North West | AZ158: Kingston upon Thames | BA158: Kingston upon Thames | BH158: Kettering | BI158: 96945
A159: King’s Lynn and West Norfolk | B159: 1650 | C159: 94 | D159: 136277.5095 | E159: 32686.137 | F159: 15447.7125 | G159: 108468.8055 | H159: 292880.1645 | I159: 1.952196049 | J159: East | K159: 2.12 | L159: 71855 | M159: 4096 | N159: 5934679.058 | O159: 1423431.742 | P159: 672724.4738 | Q159: 4723652.133 | R159: 12754487.41 | S159: 1528.829787 | T159: 87.12765957 | U159: 126269.7672 | V159: 30285.78174 | W159: 14313.28668 | X159: 100503.2369 | Y159: 271372.0725 | Z159: 14644.00822 | AA159: 29288.01645 | AB159: 637724.3703 | AC159: 1275448.741 | AD159: 13568.60362 | AE159: 27137.20725 | AG159: 19164 | AH159: 89 | AI159: Red | AK159: Kirklees | AP159: Cumbria | AQ159: North West | AZ159: Kirklees | BA159: Kirklees | BH159: King’s Lynn and West Norfolk | BI159: 150026
A160: Kingston upon Hull, City of UA | B160: 3537 | C160: 202 | D160: 292129.4249 | E160: 70067.19186 | F160: 33114.27825 | G160: 232517.6758 | H160: 627828.5708 | I160: 2.436182417 | J160: Yorkshire and the Humber | K160: 2.12 | L160: 64078 | M160: 3652 | N160: 5292357.73 | O160: 1269371.083 | P160: 599914.2555 | Q160: 4212402.496 | R160: 11374045.56 | S160: 3051.333333 | T160: 174 | U160: 252017.0347 | V160: 60446.24204 | W160: 28567.3455 | X160: 200590.5951 | Y160: 541621.2173 | Z160: 31391.42854 | AA160: 62782.85708 | AB160: 568702.2782 | AC160: 1137404.556 | AD160: 27081.06087 | AE160: 54162.12173 | AG160: 25310.26 | AH160: 9 | AI160: Red | AK160: Knowsley | AP160: Eden | AQ160: North West | AZ160: Knowsley | BA160: Knowsley | BH160: Kingston upon Hull, City of UA | BI160: 257710
A161: Kingston upon Thames | B161: 2247 | C161: 128 | D161: 185585.1902 | E161: 44512.57566 | F161: 21036.97575 | G161: 147714.7915 | H161: 398849.5331 | I161: 2.34675351 | J161: London | K161: 2.65 | L161: 127399 | M161: 7262 | N161: 10522192.99 | O161: 2523746.162 | P161: 1192741.288 | Q161: 8375040.819 | R161: 22613721.26 | S161: 3860.575758 | T161: 220 | U161: 318854.333 | V161: 76477.15643 | W161: 36143.67539 | X161: 253789.1157 | Y161: 685264.2806 | Z161: 19942.47666 | AA161: 39884.95331 | AB161: 1130686.063 | AC161: 2261372.126 | AD161: 34263.21403 | AE161: 68526.42806 | AG161: 9361.51 | AH161: 278 | AI161: Green | AK161: Lambeth | AP161: Fylde | AQ161: North West | AZ161: Lambeth | BA161: Lambeth | BH161: Kingston upon Thames | BI161: 169958
A162: Kirklees | B162: 5472 | C162: 312 | D162: 451945.777 | E162: 108399.1162 | F162: 51230.232 | G162: 359722.0022 | H162: 971297.1274 | I162: 2.253485053 | J162: Yorkshire and the Humber | K162: 2.12 | L162: 64078 | M162: 3652 | N162: 5292357.73 | O162: 1269371.083 | P162: 599914.2555 | Q162: 4212402.496 | R162: 11374045.56 | S162: 3051.333333 | T162: 174 | U162: 252017.0347 | V162: 60446.24204 | W162: 28567.3455 | X162: 200590.5951 | Y162: 541621.2173 | Z162: 48564.85637 | AA162: 97129.71274 | AB162: 568702.2782 | AC162: 1137404.556 | AD162: 27081.06087 | AE162: 54162.12173 | AG162: 18459.78 | AH162: 101 | AI162: Red | AK162: Lancashire | AP162: Greater Manchester (Met County) | AQ162: North West | AZ162: Lancashire | BH162: Kirklees | BI162: 431020
A163: Knowsley | B163: 1892 | C163: 108 | D163: 156264.8776 | E163: 37480.10376 | F163: 17713.377 | G163: 124377.5636 | H163: 335835.922 | I163: 2.293851537 | J163: North West | K163: 2.13 | L163: 85606 | M163: 4880 | N163: 7070407.563 | O163: 1695836.027 | P163: 801464.7735 | Q163: 5627624.584 | R163: 15195332.95 | S163: 2195.025641 | T163: 125.1538462 | U163: 181292.5016 | V163: 43482.97504 | W163: 20550.37881 | X163: 144298.0663 | Y163: 389623.9217 | Z163: 16791.7961 | AA163: 33583.5922 | AB163: 759766.6473 | AC163: 1519533.295 | AD163: 19481.19609 | AE163: 38962.39217 | AG163: 25599.37 | AH163: 5 | AI163: Red | AK163: Lancaster | AP163: Halton UA | AQ163: North West | AZ163: Lancaster | BA163: Lancaster | BH163: Knowsley | BI163: 146407
A164: Lambeth | B164: 4528 | C164: 258 | D164: 373978.523 | E164: 89698.68384 | F164: 42392.268 | G164: 297664.6978 | H164: 803734.1726 | I164: 2.525750348 | J164: London | K164: 2.65 | L164: 127399 | M164: 7262 | N164: 10522192.99 | O164: 2523746.162 | P164: 1192741.288 | Q164: 8375040.819 | R164: 22613721.26 | S164: 3860.575758 | T164: 220 | U164: 318854.333 | V164: 76477.15643 | W164: 36143.67539 | X164: 253789.1157 | Y164: 685264.2806 | Z164: 40186.70863 | AA164: 80373.41726 | AB164: 1130686.063 | AC164: 2261372.126 | AD164: 34263.21403 | AE164: 68526.42806 | AG164: 23004.21 | AH164: 22 | AI164: Red | AK164: Leeds | AP164: Hyndburn | AQ164: North West | AZ164: Leeds | BA164: Leeds | BH164: Lambeth | BI164: 318216
A165: Lancashire | B165: 13210 | C165: 753 | D165: 1091046 | E165: 261687.1938 | F165: 123675.3225 | G165: 868407.8307 | H165: 2344816.347 | I165: 1.979190576 | J165: North West | K165: 2.13 | L165: 85606 | M165: 4880 | N165: 7070407.563 | O165: 1695836.027 | P165: 801464.7735 | Q165: 5627624.584 | R165: 15195332.95 | S165: 2195.025641 | T165: 125.1538462 | U165: 181292.5016 | V165: 43482.97504 | W165: 20550.37881 | X165: 144298.0663 | Y165: 389623.9217 | Z165: 117240.8174 | AA165: 234481.6347 | AB165: 759766.6473 | AC165: 1519533.295 | AD165: 19481.19609 | AE165: 38962.39217 | AK165: Leicester UA | AP165: Knowsley | AQ165: North West | AZ165: Leicester UA | BA165: Leicester | BH165: Lancashire | BI165: 1184735
A166: Lancaster | B166: 1497 | C166: 85 | D166: 123640.8677 | E166: 29655.24066 | F166: 14015.28825 | G166: 98410.78899 | H166: 265722.1856 | I166: 1.880859486 | J166: North West | K166: 2.13 | L166: 85606 | M166: 4880 | N166: 7070407.563 | O166: 1695836.027 | P166: 801464.7735 | Q166: 5627624.584 | R166: 15195332.95 | S166: 2195.025641 | T166: 125.1538462 | U166: 181292.5016 | V166: 43482.97504 | W166: 20550.37881 | X166: 144298.0663 | Y166: 389623.9217 | Z166: 13286.10928 | AA166: 26572.21856 | AB166: 759766.6473 | AC166: 1519533.295 | AD166: 19481.19609 | AE166: 38962.39217 | AG166: 17242.56 | AH166: 125 | AI166: Amber | AK166: Leicestershire | AP166: Lancashire | AQ166: North West | AZ166: Leicestershire | BH166: Lancaster | BI166: 141277
A167: Leeds | B167: 10136 | C167: 578 | D167: 837156.8705 | E167: 200791.9301 | F167: 94895.766 | G167: 666327.1591 | H167: 1799171.726 | I167: 2.347565336 | J167: Yorkshire and the Humber | K167: 2.12 | L167: 64078 | M167: 3652 | N167: 5292357.73 | O167: 1269371.083 | P167: 599914.2555 | Q167: 4212402.496 | R167: 11374045.56 | S167: 3051.333333 | T167: 174 | U167: 252017.0347 | V167: 60446.24204 | W167: 28567.3455 | X167: 200590.5951 | Y167: 541621.2173 | Z167: 89958.58628 | AA167: 179917.1726 | AB167: 568702.2782 | AC167: 1137404.556 | AD167: 27081.06087 | AE167: 54162.12173 | AG167: 18462.45 | AH167: 100 | AI167: Red | AK167: Lewes | AP167: Lancaster | AQ167: North West | AZ167: Lewes | BA167: Lewes | BH167: Leeds | BI167: 766399
A168: Leicester UA | B168: 5264 | C168: 300 | D168: 434766.5515 | E168: 104278.6819 | F168: 49282.884 | G168: 346048.3589 | H168: 934376.4763 | I168: 2.767268398 | J168: East Midlands | K168: 2.04 | L168: 53170 | M168: 3031 | N168: 4391439.503 | O168: 1053286.003 | P168: 497790.8325 | Q168: 3495325.084 | R168: 9437841.422 | S168: 1329.25 | T168: 75.8 | U168: 109785.9876 | V168: 26332.15007 | W168: 12444.77081 | X168: 87383.1271 | Y168: 235946.0356 | Z168: 46718.82382 | AA168: 93437.64763 | AB168: 471892.0711 | AC168: 943784.1422 | AD168: 11797.30178 | AE168: 23594.60356 | AG168: 23770.26 | AH168: 14 | AI168: Red | AK168: Lewisham | AP168: Liverpool | AQ168: North West | AZ168: Lewisham | BA168: Lewisham | BH168: Leicester UA | BI168: 337653
A169: Leicestershire | B169: 6789 | C169: 387 | D169: 560720.0073 | E169: 134488.5964 | F169: 63560.31525 | G169: 446299.8306 | H169: 1205068.75 | I169: 1.804251727 | J169: East Midlands | K169: 2.04 | L169: 53170 | M169: 3031 | N169: 4391439.503 | O169: 1053286.003 | P169: 497790.8325 | Q169: 3495325.084 | R169: 9437841.422 | S169: 1329.25 | T169: 75.8 | U169: 109785.9876 | V169: 26332.15007 | W169: 12444.77081 | X169: 87383.1271 | Y169: 235946.0356 | Z169: 60253.43748 | AA169: 120506.875 | AB169: 471892.0711 | AC169: 943784.1422 | AD169: 11797.30178 | AE169: 23594.60356 | AK169: Lichfield | AP169: Manchester | AQ169: North West | AZ169: Lichfield | BA169: Lichfield | BH169: Leicestershire | BI169: 667905
A170: Lewes | B170: 897 | C170: 51 | D170: 74085.40971 | E170: 17769.37266 | F170: 8397.93825 | G170: 58967.58699 | H170: 159220.3076 | I170: 1.588565262 | J170: South East | K170: 2.05 | L170: 102406 | M170: 5837 | N170: 8457960.387 | O170: 2028640.331 | P170: 958750.5735 | Q170: 6732034.24 | R170: 18177385.53 | S170: 1528.447761 | T170: 87.10447761 | U170: 126238.2147 | V170: 30278.21389 | W170: 14309.71005 | X170: 100478.123 | Y170: 271304.2617 | Z170: 7961.015381 | AA170: 15922.03076 | AB170: 908869.2765 | AC170: 1817738.553 | AD170: 13565.21308 | AE170: 27130.42617 | AG170: 13093.72 | AH170: 201 | AI170: Amber | AK170: Lincoln | AP170: Merseyside (Met County) | AQ170: North West | AZ170: Lincoln | BA170: Lincoln | BH170: Lewes | BI170: 100229
A171: Lewisham | B171: 4759 | C171: 271 | D171: 393057.3744 | E171: 94274.74302 | F171: 44554.94775 | G171: 312850.3305 | H171: 844737.3957 | I171: 2.893600229 | J171: London | K171: 2.65 | L171: 127399 | M171: 7262 | N171: 10522192.99 | O171: 2523746.162 | P171: 1192741.288 | Q171: 8375040.819 | R171: 22613721.26 | S171: 3860.575758 | T171: 220 | U171: 318854.333 | V171: 76477.15643 | W171: 36143.67539 | X171: 253789.1157 | Y171: 685264.2806 | Z171: 42236.86978 | AA171: 84473.73957 | AB171: 1130686.063 | AC171: 2261372.126 | AD171: 34263.21403 | AE171: 68526.42806 | AG171: 22695.09 | AH171: 26 | AI171: Red | AK171: Lincolnshire | AP171: Oldham | AQ171: North West | AZ171: Lincolnshire | BH171: Lewisham | BI171: 291933
A172: Lichfield | B172: 982 | C172: 56 | D172: 81105.76626 | E172: 19453.20396 | F172: 9193.7295 | G172: 64555.37394 | H172: 174308.0737 | I172: 1.707345985 | J172: West Midlands | K172: 2.18 | L172: 70123 | M172: 3997 | N172: 5791628.969 | O172: 1389121.203 | P172: 656509.0567 | Q172: 4609792.756 | R172: 12447051.98 | S172: 2337.433333 | T172: 133.2333333 | U172: 193054.299 | V172: 46304.0401 | W172: 21883.63522 | X172: 153659.7585 | Y172: 414901.7328 | Z172: 8715.403683 | AA172: 17430.80737 | AB172: 622352.5992 | AC172: 1244705.198 | AD172: 20745.08664 | AE172: 41490.17328 | AG172: 10701.16 | AH172: 252 | AI172: Green | AK172: Liverpool | AP172: Pendle | AQ172: North West | AZ172: Liverpool | BA172: Liverpool | BH172: Lichfield | BI172: 102093
A173: Lincoln | B173: 1240 | C173: 71 | D173: 102414.6132 | E173: 24564.1272 | F173: 11609.19 | G173: 81515.9508 | H173: 220103.8812 | I173: 2.287934567 | J173: East Midlands | K173: 2.04 | L173: 53170 | M173: 3031 | N173: 4391439.503 | O173: 1053286.003 | P173: 497790.8325 | Q173: 3495325.084 | R173: 9437841.422 | S173: 1329.25 | T173: 75.8 | U173: 109785.9876 | V173: 26332.15007 | W173: 12444.77081 | X173: 87383.1271 | Y173: 235946.0356 | Z173: 11005.19406 | AA173: 22010.38812 | AB173: 471892.0711 | AC173: 943784.1422 | AD173: 11797.30178 | AE173: 23594.60356 | AG173: 21274.8 | AH173: 45 | AI173: Red | AK173: Luton UA | AP173: Preston | AQ173: North West | AZ173: Luton UA | BA173: Luton | BH173: Lincoln | BI173: 96202
A174: Lincolnshire | B174: 7748 | C174: 442 | D174: 639926.1476 | E174: 153486.1754 | F174: 72538.713 | G174: 509343.2152 | H174: 1375294.251 | I174: 1.880060383 | J174: East Midlands | K174: 2.04 | L174: 53170 | M174: 3031 | N174: 4391439.503 | O174: 1053286.003 | P174: 497790.8325 | Q174: 3495325.084 | R174: 9437841.422 | S174: 1329.25 | T174: 75.8 | U174: 109785.9876 | V174: 26332.15007 | W174: 12444.77081 | X174: 87383.1271 | Y174: 235946.0356 | Z174: 68764.71256 | AA174: 137529.4251 | AB174: 471892.0711 | AC174: 943784.1422 | AD174: 11797.30178 | AE174: 23594.60356 | AK174: Maidstone | AP174: Ribble Valley | AQ174: North West | AZ174: Maidstone | BA174: Maidstone | BH174: Lincolnshire | BI174: 731516
A175: Liverpool | B175: 5851 | C175: 334 | D175: 483248.3079 | E175: 115907.0228 | F175: 54778.52475 | G175: 384636.9582 | H175: 1038570.814 | I175: 2.195371145 | J175: North West | K175: 2.13 | L175: 85606 | M175: 4880 | N175: 7070407.563 | O175: 1695836.027 | P175: 801464.7735 | Q175: 5627624.584 | R175: 15195332.95 | S175: 2195.025641 | T175: 125.1538462 | U175: 181292.5016 | V175: 43482.97504 | W175: 20550.37881 | X175: 144298.0663 | Y175: 389623.9217 | Z175: 51928.54068 | AA175: 103857.0814 | AB175: 759766.6473 | AC175: 1519533.295 | AD175: 19481.19609 | AE175: 38962.39217 | AG175: 25461.22 | AH175: 7 | AI175: Red | AK175: Maldon | AP175: Rochdale | AQ175: North West | AZ175: Maldon | BA175: Maldon | BH175: Liverpool | BI175: 473073
A176: LONDON | B176: 127399 | C176: 7262 | D176: 10522192.99 | E176: 2523746.162 | F176: 1192741.288 | G176: 8375040.819 | H176: 22613721.26 | I176: 2.648383289 | J176: London | K176: 2.65 | L176: 127399 | M176: 7262 | N176: 10522192.99 | O176: 2523746.162 | P176: 1192741.288 | Q176: 8375040.819 | R176: 22613721.26 | S176: 3860.575758 | T176: 220 | U176: 318854.333 | V176: 76477.15643 | W176: 36143.67539 | X176: 253789.1157 | Y176: 685264.2806 | Z176: 1130686.063 | AA176: 2261372.126 | AB176: 1130686.063 | AC176: 2261372.126 | AD176: 34263.21403 | AE176: 68526.42806 | AF176: =K176 -> 2.65 | AK176: Malvern Hills | AP176: Rossendale | AQ176: North West | AZ176: Malvern Hills | BA176: Malvern Hills | BH176: LONDON | BI176: 8538689
A177: Luton UA | B177: 3481 | C177: 198 | D177: 287504.2488 | E177: 68957.84418 | F177: 32589.99225 | G177: 228836.3103 | H177: 617888.3955 | I177: 2.928908503 | J177: East | K177: 2.12 | L177: 71855 | M177: 4096 | N177: 5934679.058 | O177: 1423431.742 | P177: 672724.4738 | Q177: 4723652.133 | R177: 12754487.41 | S177: 1528.829787 | T177: 87.12765957 | U177: 126269.7672 | V177: 30285.78174 | W177: 14313.28668 | X177: 100503.2369 | Y177: 271372.0725 | Z177: 30894.41978 | AA177: 61788.83955 | AB177: 637724.3703 | AC177: 1275448.741 | AD177: 13568.60362 | AE177: 27137.20725 | AG177: 21460.29 | AH177: 40 | AI177: Red | AK177: Manchester | AP177: Salford | AQ177: North West | AZ177: Manchester | BA177: Manchester | BH177: Luton UA | BI177: 210962
A178: Maidstone | B178: 1979 | C178: 113 | D178: 163450.419 | E178: 39203.55462 | F178: 18527.89275 | G178: 130096.8279 | H178: 351278.6943 | I178: 2.170812416 | J178: South East | K178: 2.05 | L178: 102406 | M178: 5837 | N178: 8457960.387 | O178: 2028640.331 | P178: 958750.5735 | Q178: 6732034.24 | R178: 18177385.53 | S178: 1528.447761 | T178: 87.10447761 | U178: 126238.2147 | V178: 30278.21389 | W178: 14309.71005 | X178: 100478.123 | Y178: 271304.2617 | Z178: 17563.93471 | AA178: 35127.86943 | AB178: 908869.2765 | AC178: 1817738.553 | AD178: 13565.21308 | AE178: 27130.42617 | AG178: 12837.25 | AH178: 206 | AI178: Amber | AK178: Mansfield | AP178: Sefton | AQ178: North West | AZ178: Mansfield | BA178: Mansfield | BH178: Maidstone | BI178: 161819
A179: Maldon | B179: 535 | C179: 30 | D179: 44186.95005 | E179: 10598.2323 | F179: 5008.80375 | G179: 35170.18845 | H179: 94964.17455 | I179: 1.512963413 | J179: East | K179: 2.12 | L179: 71855 | M179: 4096 | N179: 5934679.058 | O179: 1423431.742 | P179: 672724.4738 | Q179: 4723652.133 | R179: 12754487.41 | S179: 1528.829787 | T179: 87.12765957 | U179: 126269.7672 | V179: 30285.78174 | W179: 14313.28668 | X179: 100503.2369 | Y179: 271372.0725 | Z179: 4748.208728 | AA179: 9496.417455 | AB179: 637724.3703 | AC179: 1275448.741 | AD179: 13568.60362 | AE179: 27137.20725 | AG179: 12889.24 | AH179: 204 | AI179: Amber | AK179: Medway UA | AP179: South Lakeland | AQ179: North West | AZ179: Medway UA | BA179: Medway | BH179: Maldon | BI179: 62767
A180: Malvern Hills | B180: 598 | C180: 34 | D180: 49390.27314 | E180: 11846.24844 | F180: 5598.6255 | G180: 39311.72466 | H180: 106146.8717 | I180: 1.398306856 | J180: West Midlands | K180: 2.18 | L180: 70123 | M180: 3997 | N180: 5791628.969 | O180: 1389121.203 | P180: 656509.0567 | Q180: 4609792.756 | R180: 12447051.98 | S180: 2337.433333 | T180: 133.2333333 | U180: 193054.299 | V180: 46304.0401 | W180: 21883.63522 | X180: 153659.7585 | Y180: 414901.7328 | Z180: 5307.343587 | AA180: 10614.68717 | AB180: 622352.5992 | AC180: 1244705.198 | AD180: 20745.08664 | AE180: 41490.17328 | AG180: 13912.49 | AH180: 188 | AI180: Amber | AK180: Melton | AP180: South Ribble | AQ180: North West | AZ180: Melton | BA180: Melton | BH180: Malvern Hills | BI180: 75911
A181: Manchester | B181: 7964 | C181: 454 | D181: 657766.1125 | E181: 157765.0879 | F181: 74560.959 | G181: 523542.7679 | H181: 1413634.927 | I181: 2.717405164 | J181: North West | K181: 2.13 | L181: 85606 | M181: 4880 | N181: 7070407.563 | O181: 1695836.027 | P181: 801464.7735 | Q181: 5627624.584 | R181: 15195332.95 | S181: 2195.025641 | T181: 125.1538462 | U181: 181292.5016 | V181: 43482.97504 | W181: 20550.37881 | X181: 144298.0663 | Y181: 389623.9217 | Z181: 70681.74637 | AA181: 141363.4927 | AB181: 759766.6473 | AC181: 1519533.295 | AD181: 19481.19609 | AE181: 38962.39217 | AG181: 26366.82 | AH181: 1 | AI181: Red | AK181: Mendip | AP181: St. Helens | AQ181: North West | AZ181: Mendip | BA181: Mendip | BH181: Manchester | BI181: 520215
A182: Mansfield | B182: 1305 | C182: 74 | D182: 107783.1212 | E182: 25851.7629 | F182: 12217.73625 | G182: 85788.96435 | H182: 231641.5847 | I182: 2.187506111 | J182: East Midlands | K182: 2.04 | L182: 53170 | M182: 3031 | N182: 4391439.503 | O182: 1053286.003 | P182: 497790.8325 | Q182: 3495325.084 | R182: 9437841.422 | S182: 1329.25 | T182: 75.8 | U182: 109785.9876 | V182: 26332.15007 | W182: 12444.77081 | X182: 87383.1271 | Y182: 235946.0356 | Z182: 11582.07923 | AA182: 23164.15847 | AB182: 471892.0711 | AC182: 943784.1422 | AD182: 11797.30178 | AE182: 23594.60356 | AG182: 20467.44 | AH182: 59 | AI182: Red | AK182: Merseyside (Met County) | AP182: Stockport | AQ182: North West | AZ182: Merseyside (Met County) | BH182: Mansfield | BI182: 105893
A183: Medway UA | B183: 3531 | C183: 201 | D183: 291633.8703 | E183: 69948.33318 | F183: 33058.10475 | G183: 232123.2438 | H183: 626763.552 | I183: 2.287333 | J183: South East | K183: 2.05 | L183: 102406 | M183: 5837 | N183: 8457960.387 | O183: 2028640.331 | P183: 958750.5735 | Q183: 6732034.24 | R183: 18177385.53 | S183: 1528.447761 | T183: 87.10447761 | U183: 126238.2147 | V183: 30278.21389 | W183: 14309.71005 | X183: 100478.123 | Y183: 271304.2617 | Z183: 31338.1776 | AA183: 62676.3552 | AB183: 908869.2765 | AC183: 1817738.553 | AD183: 13565.21308 | AE183: 27130.42617 | AG183: 17456.43 | AH183: 121 | AI183: Amber | AK183: Merton | AP183: Tameside | AQ183: North West | AZ183: Merton | BA183: Merton | BH183: Medway UA | BI183: 274015
A184: Melton | B184: 512 | C184: 29 | D184: 42287.32416 | E184: 10142.60736 | F184: 4793.472 | G184: 33658.19904 | H184: 90881.60256 | I184: 1.783076038 | J184: East Midlands | K184: 2.04 | L184: 53170 | M184: 3031 | N184: 4391439.503 | O184: 1053286.003 | P184: 497790.8325 | Q184: 3495325.084 | R184: 9437841.422 | S184: 1329.25 | T184: 75.8 | U184: 109785.9876 | V184: 26332.15007 | W184: 12444.77081 | X184: 87383.1271 | Y184: 235946.0356 | Z184: 4544.080128 | AA184: 9088.160256 | AB184: 471892.0711 | AC184: 943784.1422 | AD184: 11797.30178 | AE184: 23594.60356 | AG184: 11229.74 | AH184: 236 | AI184: Green | AK184: Mid Devon | AP184: Trafford | AQ184: North West | AZ184: Mid Devon | BA184: Mid Devon | BH184: Melton | BI184: 50969
A185: Mendip | B185: 1117 | C185: 64 | D185: 92255.74431 | E185: 22127.52426 | F185: 10457.63325 | G185: 73430.09439 | H185: 198270.9962 | I185: 1.788739095 | J185: South West | K185: 1.91 | L185: 58403 | M185: 3329 | N185: 4823645.689 | O185: 1156950.581 | P185: 546783.4868 | Q185: 3839335.544 | R185: 10366715.3 | S185: 1622.305556 | T185: 92.52777778 | U185: 133990.158 | V185: 32137.51615 | W185: 15188.43019 | X185: 106648.2096 | Y185: 287964.3139 | Z185: 9913.549811 | AA185: 19827.09962 | AB185: 518335.7651 | AC185: 1036671.53 | AD185: 14398.2157 | AE185: 28796.43139 | AG185: 15108.87 | AH185: 160 | AI185: Amber | AK185: Mid Suffolk | AP185: Warrington UA | AQ185: North West | AZ185: Mid Suffolk | BA185: Mid Suffolk | BH185: Mendip | BI185: 110844
A186: Merseyside (Met County) | B186: 16025 | C186: 913 | D186: 1323543.691 | E186: 317451.7245 | F186: 150030.0563 | G186: 1053462.187 | H186: 2844487.658 | I186: 2.044756722 | J186: North West | K186: 2.13 | L186: 85606 | M186: 4880 | N186: 7070407.563 | O186: 1695836.027 | P186: 801464.7735 | Q186: 5627624.584 | R186: 15195332.95 | S186: 2195.025641 | T186: 125.1538462 | U186: 181292.5016 | V186: 43482.97504 | W186: 20550.37881 | X186: 144298.0663 | Y186: 389623.9217 | Z186: 142224.3829 | AA186: 284448.7658 | AB186: 759766.6473 | AC186: 1519533.295 | AD186: 19481.19609 | AE186: 38962.39217 | AK186: Mid Sussex | AP186: West Lancashire | AQ186: North West | AZ186: Mid Sussex | BA186: Mid Sussex | BH186: Merseyside (Met County) | BI186: 1391113
A187: Merton | B187: 3274 | C187: 187 | D187: 270407.6158 | E187: 64857.21972 | F187: 30652.0065 | G187: 215228.4056 | H187: 581145.2476 | I187: 2.85554012 | J187: London | K187: 2.65 | L187: 127399 | M187: 7262 | N187: 10522192.99 | O187: 2523746.162 | P187: 1192741.288 | Q187: 8375040.819 | R187: 22613721.26 | S187: 3860.575758 | T187: 220 | U187: 318854.333 | V187: 76477.15643 | W187: 36143.67539 | X187: 253789.1157 | Y187: 685264.2806 | Z187: 29057.26238 | AA187: 58114.52476 | AB187: 1130686.063 | AC187: 2261372.126 | AD187: 34263.21403 | AE187: 68526.42806 | AG187: 12597.06 | AH187: 212 | AI187: Amber | AK187: Middlesbrough UA | AP187: Wigan | AQ187: North West | AZ187: Middlesbrough UA | BA187: Middlesbrough | BH187: Merton | BI187: 203515
A188: Mid Devon | B188: 805 | C188: 46 | D188: 66486.90615 | E188: 15946.8729 | F188: 7536.61125 | G188: 52919.62935 | H188: 142890.0197 | I188: 1.804212476 | J188: South West | K188: 1.91 | L188: 58403 | M188: 3329 | N188: 4823645.689 | O188: 1156950.581 | P188: 546783.4868 | Q188: 3839335.544 | R188: 10366715.3 | S188: 1622.305556 | T188: 92.52777778 | U188: 133990.158 | V188: 32137.51615 | W188: 15188.43019 | X188: 106648.2096 | Y188: 287964.3139 | Z188: 7144.500983 | AA188: 14289.00197 | AB188: 518335.7651 | AC188: 1036671.53 | AD188: 14398.2157 | AE188: 28796.43139 | AG188: 15296.63 | AH188: 156 | AI188: Amber | AK188: Milton Keynes UA | AP188: Wirral | AQ188: North West | AZ188: Milton Keynes UA | BA188: Milton Keynes | BH188: Mid Devon | BI188: 79198
A189: Mid Suffolk | B189: 917 | C189: 52 | D189: 75737.25831 | E189: 18165.56826 | F189: 8585.18325 | G189: 60282.36039 | H189: 162770.3702 | I189: 1.642138096 | J189: East | K189: 2.12 | L189: 71855 | M189: 4096 | N189: 5934679.058 | O189: 1423431.742 | P189: 672724.4738 | Q189: 4723652.133 | R189: 12754487.41 | S189: 1528.829787 | T189: 87.12765957 | U189: 126269.7672 | V189: 30285.78174 | W189: 14313.28668 | X189: 100503.2369 | Y189: 271372.0725 | Z189: 8138.51851 | AA189: 16277.03702 | AB189: 637724.3703 | AC189: 1275448.741 | AD189: 13568.60362 | AE189: 27137.20725 | AG189: 11198.81 | AH189: 239 | AI189: Green | AK189: Mole Valley | AP189: Wyre | AQ189: North West | AZ189: Mole Valley | BA189: Mole Valley | BH189: Mid Suffolk | BI189: 99121
A190: Mid Sussex | B190: 1521 | C190: 87 | D190: 125623.086 | E190: 30130.67538 | F190: 14239.98225 | G190: 99988.51707 | H190: 269982.2607 | I190: 1.869981096 | J190: South East | K190: 2.05 | L190: 102406 | M190: 5837 | N190: 8457960.387 | O190: 2028640.331 | P190: 958750.5735 | Q190: 6732034.24 | R190: 18177385.53 | S190: 1528.447761 | T190: 87.10447761 | U190: 126238.2147 | V190: 30278.21389 | W190: 14309.71005 | X190: 100478.123 | Y190: 271304.2617 | Z190: 13499.11304 | AA190: 26998.22607 | AB190: 908869.2765 | AC190: 1817738.553 | AD190: 13565.21308 | AE190: 27130.42617 | AG190: 5689.67 | AH190: 321 | AI190: Green | AK190: New Forest | AP190: Adur | AQ190: South East | AZ190: New Forest | BA190: New Forest | BH190: Mid Sussex | BI190: 144377
A191: Middlesbrough UA | B191: 2003 | C191: 114 | D191: 165432.6373 | E191: 39678.98934 | F191: 18752.58675 | G191: 131674.556 | H191: 355538.7694 | I191: 2.555644947 | J191: North East | K191: 1.93 | L191: 28456 | M191: 1622 | N191: 2350250.188 | O191: 563707.0997 | P191: 266412.186 | Q191: 1870659.594 | R191: 5051029.067 | S191: 2371.333333 | T191: 135.25 | U191: 195854.1823 | V191: 46975.59164 | W191: 22201.0155 | X191: 155888.2995 | Y191: 420919.0889 | Z191: 17776.93847 | AA191: 35553.87694 | AB191: 252551.4534 | AC191: 505102.9067 | AD191: 21045.95445 | AE191: 42091.90889 | AG191: 23562.71 | AH191: 16 | AI191: Red | AK191: Newark and Sherwood | AP191: Arun | AQ191: South East | AZ191: Newark and Sherwood | BA191: Newark and Sherwood | BH191: Middlesbrough UA | BI191: 139119
A192: Milton Keynes UA | B192: 3667 | C192: 209 | D192: 302866.4408 | E192: 72642.46326 | F192: 34331.37075 | G192: 241063.7029 | H192: 650903.9777 | I192: 2.510767721 | J192: South East | K192: 2.05 | L192: 102406 | M192: 5837 | N192: 8457960.387 | O192: 2028640.331 | P192: 958750.5735 | Q192: 6732034.24 | R192: 18177385.53 | S192: 1528.447761 | T192: 87.10447761 | U192: 126238.2147 | V192: 30278.21389 | W192: 14309.71005 | X192: 100478.123 | Y192: 271304.2617 | Z192: 32545.19889 | AA192: 65090.39777 | AB192: 908869.2765 | AC192: 1817738.553 | AD192: 13565.21308 | AE192: 27130.42617 | AG192: 14255.44 | AH192: 181 | AI192: Amber | AK192: Newcastle upon Tyne | AP192: Ashford | AQ192: South East | AZ192: Newcastle upon Tyne | BA192: Newcastle upon Tyne | BH192: Milton Keynes UA | BI192: 259245
A193: Mole Valley | B193: 800 | C193: 46 | D193: 66073.944 | E193: 15847.824 | F193: 7489.8 | G193: 52590.936 | H193: 142002.504 | I193: 1.64671132 | J193: South East | K193: 2.05 | L193: 102406 | M193: 5837 | N193: 8457960.387 | O193: 2028640.331 | P193: 958750.5735 | Q193: 6732034.24 | R193: 18177385.53 | S193: 1528.447761 | T193: 87.10447761 | U193: 126238.2147 | V193: 30278.21389 | W193: 14309.71005 | X193: 100478.123 | Y193: 271304.2617 | Z193: 7100.1252 | AA193: 14200.2504 | AB193: 908869.2765 | AC193: 1817738.553 | AD193: 13565.21308 | AE193: 27130.42617 | AG193: 7097.65 | AH193: 305 | AI193: Green | AK193: Newcastle-under-Lyme | AP193: Aylesbury Vale | AQ193: South East | AZ193: Newcastle-under-Lyme | BA193: Newcastle-under-Lyme | BH193: Mole Valley | BI193: 86234
A194: New Forest | B194: 1546 | C194: 88 | D194: 127687.8968 | E194: 30625.91988 | F194: 14474.0385 | G194: 101631.9838 | H194: 274419.839 | I194: 1.533868652 | J194: South East | K194: 2.05 | L194: 102406 | M194: 5837 | N194: 8457960.387 | O194: 2028640.331 | P194: 958750.5735 | Q194: 6732034.24 | R194: 18177385.53 | S194: 1528.447761 | T194: 87.10447761 | U194: 126238.2147 | V194: 30278.21389 | W194: 14309.71005 | X194: 100478.123 | Y194: 271304.2617 | Z194: 13720.99195 | AA194: 27441.9839 | AB194: 908869.2765 | AC194: 1817738.553 | AD194: 13565.21308 | AE194: 27130.42617 | AG194: 10472.71 | AH194: 257 | AI194: Green | AK194: Newham | AP194: Basingstoke and Deane | AQ194: South East | AZ194: Newham | BA194: Newham | BH194: New Forest | BI194: 178907
A195: Newark and Sherwood | B195: 1233 | C195: 70 | D195: 101836.4662 | E195: 24425.45874 | F195: 11543.65425 | G195: 81055.78011 | H195: =SUM(D195:G195) -> 218861.3593 | I195: 1.858568923 | J195: East Midlands | K195: 2.04 | L195: 53170 | M195: 3031 | N195: 4391439.503 | O195: 1053286.003 | P195: 497790.8325 | Q195: 3495325.084 | R195: 9437841.422 | S195: 1329.25 | T195: 75.8 | U195: 109785.9876 | V195: 26332.15007 | W195: 12444.77081 | X195: 87383.1271 | Y195: 235946.0356 | Z195: 10943.06796 | AA195: 21886.13593 | AB195: 471892.0711 | AC195: 943784.1422 | AD195: 11797.30178 | AE195: 23594.60356 | AG195: 15217.26 | AH195: 158 | AI195: Amber | AK195: Norfolk | AP195: Bracknell Forest UA | AQ195: South East | AZ195: Norfolk | BH195: Newark and Sherwood | BI195: 117758
A196: Newcastle upon Tyne | B196: 3283 | C196: 187 | D196: 271150.9477 | E196: 65035.50774 | F196: 30736.26675 | G196: 215820.0536 | H196: 582742.7758 | I196: 2.010601811 | J196: North East | K196: 1.93 | L196: 28456 | M196: 1622 | N196: 2350250.188 | O196: 563707.0997 | P196: 266412.186 | Q196: 1870659.594 | R196: 5051029.067 | S196: 2371.333333 | T196: 135.25 | U196: 195854.1823 | V196: 46975.59164 | W196: 22201.0155 | X196: 155888.2995 | Y196: 420919.0889 | Z196: 29137.13879 | AA196: 58274.27758 | AB196: 252551.4534 | AC196: 505102.9067 | AD196: 21045.95445 | AE196: 42091.90889 | AG196: 18993.31 | AH196: 92 | AI196: Red | AK196: North Devon | AP196: Brighton and Hove UA | AQ196: South East | AZ196: North Devon | BA196: North Devon | BH196: Newcastle upon Tyne | BI196: 289835
A197: Newcastle-under-Lyme | B197: 1291 | C197: 74 | D197: 106626.8271 | E197: 25574.42598 | F197: 12086.66475 | G197: 84868.62297 | H197: 229156.5408 | I197: 1.817952439 | J197: West Midlands | K197: 2.18 | L197: 70123 | M197: 3997 | N197: 5791628.969 | O197: 1389121.203 | P197: 656509.0567 | Q197: 4609792.756 | R197: 12447051.98 | S197: 2337.433333 | T197: 133.2333333 | U197: 193054.299 | V197: 46304.0401 | W197: 21883.63522 | X197: 153659.7585 | Y197: 414901.7328 | Z197: 11457.82704 | AA197: 22915.65408 | AB197: 622352.5992 | AC197: 1244705.198 | AD197: 20745.08664 | AE197: 41490.17328 | AG197: 15088.67 | AH197: 161 | AI197: Amber | AK197: North Dorset | AP197: Buckinghamshire | AQ197: South East | AZ197: North Dorset | BA197: North Dorset | BH197: Newcastle-under-Lyme | BI197: 126052
A198: Newham | B198: 6023 | C198: 343 | D198: 497454.2059 | E198: 119314.3049 | F198: 56388.83175 | G198: 395944.0094 | H198: 1069101.352 | I198: 3.29641946 | J198: London | K198: 2.65 | L198: 127399 | M198: 7262 | N198: 10522192.99 | O198: 2523746.162 | P198: 1192741.288 | Q198: 8375040.819 | R198: 22613721.26 | S198: 3860.575758 | T198: 220 | U198: 318854.333 | V198: 76477.15643 | W198: 36143.67539 | X198: 253789.1157 | Y198: 685264.2806 | Z198: 53455.0676 | AA198: 106910.1352 | AB198: 1130686.063 | AC198: 2261372.126 | AD198: 34263.21403 | AE198: 68526.42806 | AG198: 25360.03 | AH198: 8 | AI198: Red | AK198: North East Derbyshire | AP198: Canterbury | AQ198: South East | AZ198: North East Derbyshire | BA198: North East Derbyshire | BH198: Newham | BI198: 324322
A199: Norfolk | B199: 9105 | C199: 519 | D199: 752004.0752 | E199: 180368.0469 | F199: 85243.28625 | G199: 598550.5903 | H199: 1616165.999 | I199: 1.84134395 | J199: East | K199: 2.12 | L199: 71855 | M199: 4096 | N199: 5934679.058 | O199: 1423431.742 | P199: 672724.4738 | Q199: 4723652.133 | R199: 12754487.41 | S199: 1528.829787 | T199: 87.12765957 | U199: 126269.7672 | V199: 30285.78174 | W199: 14313.28668 | X199: 100503.2369 | Y199: 271372.0725 | Z199: 80808.29993 | AA199: 161616.5999 | AB199: 637724.3703 | AC199: 1275448.741 | AD199: 13568.60362 | AE199: 27137.20725 | AK199: North East Lincolnshire UA | AP199: Cherwell | AQ199: South East | AZ199: North East Lincolnshire UA | BA199: North East Lincolnshire | BH199: Norfolk | BI199: 877710
A200: North Devon | B200: 933 | C200: 53 | D200: 77058.73719 | E200: 18482.52474 | F200: 8734.97925 | G200: 61334.17911 | H200: 165610.4203 | I200: 1.760707857 | J200: South West | K200: 1.91 | L200: 58403 | M200: 3329 | N200: 4823645.689 | O200: 1156950.581 | P200: 546783.4868 | Q200: 3839335.544 | R200: 10366715.3 | S200: 1622.305556 | T200: 92.52777778 | U200: 133990.158 | V200: 32137.51615 | W200: 15188.43019 | X200: 106648.2096 | Y200: 287964.3139 | Z200: 8280.521015 | AA200: 16561.04203 | AB200: 518335.7651 | AC200: 1036671.53 | AD200: 14398.2157 | AE200: 28796.43139 | AG200: 17214.65 | AH200: 127 | AI200: Amber | AK200: North Hertfordshire | AP200: Chichester | AQ200: South East | AZ200: North Hertfordshire | BA200: North Hertfordshire | BH200: North Devon | BI200: 94059
... 171 more rows

Sheet Regional Charts
E2: Cost of Unplanned Pregnancies - Comparison Across Selected Local Authorities
A29: Please note all costs are based on estimated costs per annum
A30: Item code -UKWHG02180013
A31: Date of Recertification - April 2018

Sheet Regional Charts by Type
D2: Cost of Unplanned Pregnancies - Comparison Across Selected Local Authorities
B4: Select chart type : | C4: Total education cost
A32: Please note all costs are based on estimated costs per annum
A33: Item code -UKWHG02180013
A34: Item code -UKWHG02180013

Sheet Data for charts (hidden)
B3: National
C5: =National!E7 -> Huntingdonshire | D5: =National!I7 -> East
B6: Live births | C6: =National!E10 -> 1966 | D6: =National!I10 -> 1528.829787
C8: =C5 -> Huntingdonshire | D8: =D5 -> East | H8: =C5 -> Huntingdonshire | I8: =D5 -> East
B9: Estimated number of unplanned pregnancies resulting in live births | C9: =National!E12 -> 112 | D9: =National!I12 -> 87.12765957 | G9: Live births | H9: =National!E10 -> 1966 | I9: =National!I10 -> 1528.829787
G10: Estimated unplanned pregnancies | H10: =National!E12 -> 112 | I10: =National!I12 -> 87.12765957
G11: Total education cost | H11: =National!E14 -> 162376.7174 | I11: =National!I14 -> 126269.7672
C12: =C5 -> Huntingdonshire | D12: =D5 -> East | G12: Total housing cost | H12: =National!E16 -> 38946.02748 | I12: =National!I16 -> 30285.78174
B13: Total education cost | C13: =National!E14 -> 162376.7174 | D13: =National!I14 -> 126269.7672 | G13: Total personal social services cost | H13: =National!E18 -> 18406.1835 | I13: =National!I18 -> 14313.28668
G14: Total social welfare cost | H14: =National!E20 -> 129242.2252 | I14: =National!I20 -> 100503.2369
C15: =C5 -> Huntingdonshire | D15: =D5 -> East | G15: Total public sector cost | H15: =National!E22 -> 348971.1536 | I15: =National!I22 -> 271372.0725
B16: Total housing cost | C16: =National!E16 -> 38946.02748 | D16: =National!I16 -> 30285.78174
C18: =C5 -> Huntingdonshire | D18: =D5 -> East
B19: Total personal social services cost | C19: =National!E18 -> 18406.1835 | D19: =National!I18 -> 14313.28668
C21: =C5 -> Huntingdonshire | D21: =D5 -> East
B22: Total social welfare cost | C22: =National!E20 -> 129242.2252 | D22: =National!I20 -> 100503.2369
C24: =C5 -> Huntingdonshire | D24: =D5 -> East
B25: Total public sector cost | C25: =National!E22 -> 348971.1536 | D25: =National!I22 -> 271372.0725
C30: =C5 -> Huntingdonshire | D30: =D5 -> East
B31: ='National Charts by Type'!$D$4 -> Estimated unplanned pregnancies | C31: =IF(B31="Live births",H9,IF(B31="Estimated unplanned pregnancies",H10,IF(B31="Total education cost",H11,IF(B31="Total housing cost",H12,IF(B31="Total personal social services cost",H13,IF(B31="Total social welfare cost",H14,IF(B31="Total public sector cost",H15,0))))))) -> 112 | D31: =IF(B31="Live births",I9,IF(B31="Estimated unplanned pregnancies",I10,IF(B31="Total education cost",I11,IF(B31="Total housing cost",I12,IF(B31="Total personal social services cost",I13,IF(B31="Total social welfare cost",I14,IF(B31="Total public sector cost",I15,0))))))) -> 87.12765957
B34: Regional
C36: =Regional!E7 -> Huntingdonshire | D36: =Regional!G7 -> Tameside | E36: =Regional!I7 -> Salford | F36: =Regional!K7 -> Aylesbury Vale | I36: =C36 -> Huntingdonshire | J36: =D36 -> Tameside | K36: =E36 -> Salford | L36: =F36 -> Aylesbury Vale
B37: Live births | C37: =Regional!E9 -> 1966 | D37: =Regional!G9 -> 2975 | E37: =Regional!I9 -> 3512 | F37: =Regional!K9 -> 2207 | H37: Live births | I37: =Regional!E9 -> 1966 | J37: =Regional!G9 -> 2975 | K37: =Regional!I9 -> 3512 | L37: =Regional!K9 -> 2207
H38: Estimated unplanned pregnancies | I38: =Regional!E11 -> 112 | J38: =Regional!G11 -> 170 | K38: =Regional!I11 -> 200 | L38: =Regional!K11 -> 126
C39: =C36 -> Huntingdonshire | D39: =D36 -> Tameside | E39: =E36 -> Salford | F39: =F36 -> Aylesbury Vale | H39: Total education cost | I39: =Regional!E13 -> 162376.7174 | J39: =Regional!G13 -> 245712.4793 | K39: =Regional!I13 -> 290064.6142 | L39: =Regional!K13 -> 182281.493
B40: Estimated number of unplanned pregnancies resulting in live births | C40: =Regional!E11 -> 112 | D40: =Regional!G11 -> 170 | E40: =Regional!I11 -> 200 | F40: =Regional!K11 -> 126 | H40: Total housing cost | I40: =Regional!E15 -> 38946.02748 | J40: =Regional!G15 -> 58934.0955 | K40: =Regional!I15 -> 69571.94736 | L40: =Regional!K15 -> 43720.18446
H41: Total personal social services cost | I41: =Regional!E17 -> 18406.1835 | J41: =Regional!G17 -> 27852.69375 | K41: =Regional!I17 -> 32880.222 | L41: =Regional!K17 -> 20662.48575
H42: Total social welfare cost | I42: =Regional!E19 -> 129242.2252 | J42: =Regional!G19 -> 195572.5433 | K42: =Regional!I19 -> 230874.209 | L42: =Regional!K19 -> 145085.2447
C43: =Regional!E7 -> Huntingdonshire | D43: =Regional!G7 -> Tameside | E43: =Regional!I7 -> Salford | F43: =Regional!K7 -> Aylesbury Vale | H43: Total public sector cost | I43: =Regional!E21 -> 348971.1536 | J43: =Regional!G21 -> 528071.8117 | K43: =Regional!I21 -> 623390.9926 | L43: =Regional!K21 -> 391749.4079
B44: Total education cost | C44: =Regional!E13 -> 162376.7174 | D44: =Regional!G13 -> 245712.4793 | E44: =Regional!I13 -> 290064.6142 | F44: =Regional!K13 -> 182281.493
C46: =C36 -> Huntingdonshire | D46: =D36 -> Tameside | E46: =E36 -> Salford | F46: =F36 -> Aylesbury Vale
B47: Total housing cost | C47: =Regional!E15 -> 38946.02748 | D47: =Regional!G15 -> 58934.0955 | E47: =Regional!I15 -> 69571.94736 | F47: =Regional!K15 -> 43720.18446
C49: =C36 -> Huntingdonshire | D49: =D36 -> Tameside | E49: =E36 -> Salford | F49: =F36 -> Aylesbury Vale
B50: Total personal social services cost | C50: =Regional!E17 -> 18406.1835 | D50: =Regional!G17 -> 27852.69375 | E50: =Regional!I17 -> 32880.222 | F50: =Regional!K17 -> 20662.48575
C52: =C36 -> Huntingdonshire | D52: =D36 -> Tameside | E52: =E36 -> Salford | F52: =F36 -> Aylesbury Vale
B53: Total social welfare cost | C53: =Regional!E19 -> 129242.2252 | D53: =Regional!G19 -> 195572.5433 | E53: =Regional!I19 -> 230874.209 | F53: =Regional!K19 -> 145085.2447
C55: =C36 -> Huntingdonshire | D55: =D36 -> Tameside | E55: =E36 -> Salford | F55: =F36 -> Aylesbury Vale
B56: Total public sector cost | C56: =Regional!E21 -> 348971.1536 | D56: =Regional!G21 -> 528071.8117 | E56: =Regional!I21 -> 623390.9926 | F56: =Regional!K21 -> 391749.4079
C58: =C36 -> Huntingdonshire | D58: =D36 -> Tameside | E58: =E36 -> Salford | F58: =F36 -> Aylesbury Vale
B59: Total public sector cost per capita | C59: =Regional!E23 -> 2.010144602 | D59: =Regional!G23 -> 2.391943741 | E59: =Regional!I23 -> 2.575570123 | F59: =Regional!K23 -> 2.122612743
C61: =C36 -> Huntingdonshire | D61: =D36 -> Tameside | E61: =E36 -> Salford | F61: =F36 -> Aylesbury Vale
B62: Additional cost associated with 5% increase in unplanned pregnancies resulting in live births | C62: =Regional!E25 -> 17448.55768 | D62: =Regional!G25 -> 26403.59059 | E62: =Regional!I25 -> 31169.54963 | F62: =Regional!K25 -> 19587.4704
C65: =C36 -> Huntingdonshire | D65: =D36 -> Tameside | E65: =E36 -> Salford | F65: =F36 -> Aylesbury Vale
B66: ='Regional Charts by Type'!C4 -> Total education cost | C66: =IF(B66="Live births",I37,IF(B66="Estimated unplanned pregnancies",I38,IF(B66="Total education cost",I39,IF(B66="Total housing cost",I40,IF(B66="Total personal social services cost",I41,IF(B66="Total social welfare cost",I42,IF(B66="Total public sector cost",I43,IF(B66="Total public sector cost per capita",I44,IF(B66="5% increase in unplanned pregnancies",I45,0))))))))) -> 162376.7174 | D66: =IF(B66="Live births",J37,IF(B66="Estimated unplanned pregnancies",J38,IF(B66="Total education cost",J39,IF(B66="Total housing cost",J40,IF(B66="Total personal social services cost",J41,IF(B66="Total social welfare cost",J42,IF(B66="Total public sector cost",J43,IF(B66="Total public sector cost per capita",J44,IF(B66="5% increase in unplanned pregnancies",J45,0))))))))) -> 245712.4793 | E66: =IF(B66="Live births",K37,IF(B66="Estimated unplanned pregnancies",K38,IF(B66="Total education cost",K39,IF(B66="Total housing cost",K40,IF(B66="Total personal social services cost",K41,IF(B66="Total social welfare cost",K42,IF(B66="Total public sector cost",K43,IF(B66="Total public sector cost per capita",K44,IF(B66="5% increase in unplanned pregnancies",K45,0))))))))) -> 290064.6142 | F66: =IF(B66="Live births",L37,IF(B66="Estimated unplanned pregnancies",L38,IF(B66="Total education cost",L39,IF(B66="Total housing cost",L40,IF(B66="Total personal social services cost",L41,IF(B66="Total social welfare cost",L42,IF(B66="Total public sector cost",L43,IF(B66="Total public sector cost per capita",L44,IF(B66="5% increase in unplanned pregnancies",L45,0))))))))) -> 182281.493
B69: Savings
C72: =National!E7 -> Huntingdonshire | D72: =National!I7 -> East | E72: National Average | I72: =C72 -> Huntingdonshire | J72: East | K72: National Average
B73: Additional savings associated with 5% reduction in unplanned pregnancies resulting in live births : | C73: =National!E26 -> 17448.55768 | D73: =National!I26 -> 13568.60362 | E73: =Summary!BF14 -> 18064 | H73: =B73 -> Additional savings associated with 5% reduction in unplanned pregnancies resulting in live births : | I73: 17448.55768 | J73: 13568.60362 | K73: 18064
H74: =B75 -> Additional savings associated with 10% reduction in unplanned pregnancies resulting in live births : | I74: =C75 -> 34897.11536 | J74: =D75 -> 27137.20725 | K74: =E75 -> 36128
B75: Additional savings associated with 10% reduction in unplanned pregnancies resulting in live births : | C75: =National!E28 -> 34897.11536 | D75: =National!I28 -> 27137.20725 | E75: =Summary!BF15 -> 36128
C78: =Regional!E7 -> Huntingdonshire | D78: =Regional!G7 -> Tameside | E78: =Regional!I7 -> Salford | F78: =Regional!K7 -> Aylesbury Vale | I78: =C78 -> Huntingdonshire | J78: Tameside | K78: Salford | L78: Aylesbury Vale
B79: Additional savings associated with 5% reduction in unplanned pregnancies resulting in live births : | C79: =Regional!E25 -> 17448.55768 | D79: =Regional!G25 -> 26403.59059 | E79: =Regional!I25 -> 31169.54963 | F79: =Regional!K25 -> 19587.4704 | H79: Additional savings associated with 5% reduction in unplanned pregnancies resulting in live births : | I79: 17448.55768 | J79: 26403.59059 | K79: 31169.54963 | L79: 19587.4704
H80: Additional savings associated with 10% reduction in unplanned pregnancies resulting in live births : | I80: =C81 -> 34897.11536 | J80: =D81 -> 52807.18118 | K80: =E81 -> 62339.09926 | L80: =F81 -> 39174.94079
B81: Additional savings associated with 10% reduction in unplanned pregnancies resulting in live births : | C81: =Regional!E27 -> 34897.11536 | D81: =Regional!G27 -> 52807.18118 | E81: =Regional!I27 -> 62339.09926 | F81: =Regional!K27 -> 39174.94079

Sheet National Charts for Printing (hidden)
E2: ="Cost of Unintended Pregnancies - "&National!E7&" LA & "&National!I7 -> Cost of Unintended Pregnancies - Huntingdonshire LA & East
A66: Item code - L.GB.MKT.09.2015.12846c
A67: Date of Preparation - Janaury 2016

Sheet Regional Charts for Printing (hidden)
F2: Cost of Unintended Pregnancy - Comparison Across Selected Local Authorities
A65: Item code - L.GB.MKT.09.2015.12846c
A66: Date of Preparation - January 2016

Sheet Overview
C7: ="For "&National!E7&" the estimated number of unplanned pregnancies resulting in live births is "&National!E12&" per annum" -> For Huntingdonshire the estimated number of unplanned pregnancies resulting in live births is 112 per annum
C10: ="The total public sector cost of these unplanned pregnancies in "&National!E7&" is "&TEXT(National!E22,"£#,000,000")&" per annum" -> The total public sector cost of these unplanned pregnancies in Huntingdonshire is £348,971 per annum
C13: ="With an additional 5% reduction of unplanned pregnancies "&National!E7&" could save "&TEXT(National!E26,"£#,000")&" per annum" -> With an additional 5% reduction of unplanned pregnancies Huntingdonshire could save £17,449 per annum
C16: ="If unplanned pregnancies could be reduced by 10% "&National!E7&" could save "&TEXT(National!E28,"£#,000")&" per annum" -> If unplanned pregnancies could be reduced by 10% Huntingdonshire could save £34,897 per annum
A24: As of April 2013 commissioning of Specialist Contraception Services and General Practice provision of intra-uterine methods and implants for contraception has been the responsibility of England’s 152 single and upper-tier authorities5
A25: Please note all costs are based on estimated costs per annum
A26: Item code -UKWHG02180013
A27: Date of Recertification - April 2018

Sheet Refs
D4: References
D7: 1 | E7: : | F7: Wellings K et al, 'The prevalence of unplanned pregnancy and associated factors in Britain: findings from the third National Survey of Sexual Attitudes and Lifestyles (Natsal-3), Lancet 2013: 382: 1807-16. Available here: http://www.thelancet.com/journals/lancet/article/PIIS0140-6736(13)62071-1/fulltext
D8: 2 | E8: : | F8: FPA, Unprotected Nation 2015: An Update on the Financial and Economic Impacts of Restricted Contraceptive and Sexual Health Services, November 2015. Available here: http://www.fpa.org.uk/sites/default/files/unprotected-nation-sexual-health-full-report.pdf
D9: 3 | E9: : | F9: ONS, Birth Summary Tables, England and Wales 2014, released 15 July 2015 (latest). Available here: http://www.ons.gov.uk/ons/publications/re-reference-tables.html?edition=tcm%3A77-370345
D10: 4 | E10: : | F10: ONS, Population Estimate, mid-2014. Available here: http://www.ons.gov.uk/ons/rel/pop-estimate/population-estimates-for-uk--england-and-wales--scotland-and-northern-ireland/mid-2014/stb---mid-2014-uk-population-estimates.html
D11: 5 | E11: : | F11: NHS England, The Local Authorities (Public Health Functions and Entry to Premises by Local Healthwatch Representatives) Regulations 2013, No.351. Available here: http://www.legislation.gov.uk/uksi/2013/351/contents/made
D12: 6 | E12: : | F12: ONS, The English Indices of Deprivation 2015. Available here: https://www.gov.uk/government/statistics/english-indices-of-deprivation-2015
A16: Item code -UKWHG02180013
A17: Date of Recertification - April 2018
